Workbook

Sheet DATOS
B1: Ingrese los siguientes datos: | E1: Variables resultantes: | L1: ROMA INVESTI
B3: Horizonte de proyecto (años) | C3: 5 | E3: Costos Construcción/m2 inicial | F3: =+DATOS!C20*DATOS!C7 -> 2378000
B4: Terreno (m2) | C4: 500 | E4: Área comercializable (m2) | F4: =+DATOS!C4*DATOS!C5*DATOS!C6 -> 700
B5: índice de construcción | C5: 2.8 | E5: Volumen de ventas inicial | F5: =+DATOS!C20*DATOS!F4 -> 2870000000
B6: Factor de eficiencia | C6: 0.5 | E6: Capital de inicio (Efectivo+PP&E+Intangibles) | F6: =+DATOS!F5*DATOS!C21 -> 1004500000
B7: Costos construcción (% ventas) | C7: 0.58
B8: Costo terreno (% ventas) | C8: 0.14
B9: Costos estructuración (% ventas) | C9: 0.03
B10: Costos gerencia (% construcción) | C10: 0.1
B11: Gastos comercialización (% ventas) | C11: 0.03
B12: Costos licencias y permisos (% ventas) | C12: 0.02
B13: Gastos Fiduciarios (% total inversión proyecto) | C13: 0.03
B14: Gastos escrituración (% ventas) | C14: 0.0027
B15: Apalancamiento (Deuda/Costo Construcción) | C15: 0.7
B16: Tasa de Interés (E.A) | C16: 0.12
B17: Costo del Capital-WACC (E.A) | C17: 0.15
B18: Inicio construcción (Año) | C18: 2
B19: Inicio ventas (Año) | C19: 2
B20: Precio venta/m2 inicial | C20: 4100000
B21: % Capital inicial /ventas | C21: 0.35

Sheet SUPUESTOS (hidden)
B1: Supuestos | L1: ROMA INVESTI
C3: Año 1 | D3: Año 2 | E3: Año 3 | F3: Año 4 | G3: Año 5
B4: Costos estructuración | C4: =+IF(C3="","",IF(VALUE(RIGHT(C3,LEN(C3)-FIND(" ",C3)))=1,DATOS!$C$9*DATOS!$F$5,0)) -> 86100000 | D4: =+IF(D3="","",IF(VALUE(RIGHT(D3,LEN(D3)-FIND(" ",D3)))=1,DATOS!$C$9*DATOS!$F$5,0)) -> 0 | E4: =+IF(E3="","",IF(VALUE(RIGHT(E3,LEN(E3)-FIND(" ",E3)))=1,DATOS!$C$9*DATOS!$F$5,0)) -> 0 | F4: =+IF(F3="","",IF(VALUE(RIGHT(F3,LEN(F3)-FIND(" ",F3)))=1,DATOS!$C$9*DATOS!$F$5,0)) -> 0 | G4: =+IF(G3="","",IF(VALUE(RIGHT(G3,LEN(G3)-FIND(" ",G3)))=1,DATOS!$C$9*DATOS!$F$5,0)) -> 0 | H4: =+IF(H3="","",IF(VALUE(RIGHT(H3,LEN(H3)-FIND(" ",H3)))=1,DATOS!$C$9*DATOS!$F$5,0)) ->  | I4: =+IF(I3="","",IF(VALUE(RIGHT(I3,LEN(I3)-FIND(" ",I3)))=1,DATOS!$C$9*DATOS!$F$5,0)) ->  | J4: =+IF(J3="","",IF(VALUE(RIGHT(J3,LEN(J3)-FIND(" ",J3)))=1,DATOS!$C$9*DATOS!$F$5,0)) ->  | K4: =+IF(K3="","",IF(VALUE(RIGHT(K3,LEN(K3)-FIND(" ",K3)))=1,DATOS!$C$9*DATOS!$F$5,0)) ->  | L4: =+IF(L3="","",IF(VALUE(RIGHT(L3,LEN(L3)-FIND(" ",L3)))=1,DATOS!$C$9*DATOS!$F$5,0)) -> 
B5: Costo terreno | C5: =+IF(C3="","",IF(VALUE(RIGHT(C3,LEN(C3)-FIND(" ",C3)))=1,DATOS!$F$5*DATOS!$C$8,0)) -> 401800000 | D5: =+IF(D3="","",IF(VALUE(RIGHT(D3,LEN(D3)-FIND(" ",D3)))=1,DATOS!$F$5*DATOS!$C$8,0)) -> 0 | E5: =+IF(E3="","",IF(VALUE(RIGHT(E3,LEN(E3)-FIND(" ",E3)))=1,DATOS!$F$5*DATOS!$C$8,0)) -> 0 | F5: =+IF(F3="","",IF(VALUE(RIGHT(F3,LEN(F3)-FIND(" ",F3)))=1,DATOS!$F$5*DATOS!$C$8,0)) -> 0 | G5: =+IF(G3="","",IF(VALUE(RIGHT(G3,LEN(G3)-FIND(" ",G3)))=1,DATOS!$F$5*DATOS!$C$8,0)) -> 0 | H5: =+IF(H3="","",IF(VALUE(RIGHT(H3,LEN(H3)-FIND(" ",H3)))=1,DATOS!$F$5*DATOS!$C$8,0)) ->  | I5: =+IF(I3="","",IF(VALUE(RIGHT(I3,LEN(I3)-FIND(" ",I3)))=1,DATOS!$F$5*DATOS!$C$8,0)) ->  | J5: =+IF(J3="","",IF(VALUE(RIGHT(J3,LEN(J3)-FIND(" ",J3)))=1,DATOS!$F$5*DATOS!$C$8,0)) ->  | K5: =+IF(K3="","",IF(VALUE(RIGHT(K3,LEN(K3)-FIND(" ",K3)))=1,DATOS!$F$5*DATOS!$C$8,0)) ->  | L5: =+IF(L3="","",IF(VALUE(RIGHT(L3,LEN(L3)-FIND(" ",L3)))=1,DATOS!$F$5*DATOS!$C$8,0)) -> 
B6: Costos de licencias y permisos | C6: =+IF(C3="","",IF(VALUE(RIGHT(C3,LEN(C3)-FIND(" ",C3)))=1,DATOS!$F$5*DATOS!$C$12,0)) -> 57400000 | D6: =+IF(D3="","",IF(VALUE(RIGHT(D3,LEN(D3)-FIND(" ",D3)))=1,DATOS!$F$5*DATOS!$C$12,0)) -> 0 | E6: =+IF(E3="","",IF(VALUE(RIGHT(E3,LEN(E3)-FIND(" ",E3)))=1,DATOS!$F$5*DATOS!$C$12,0)) -> 0 | F6: =+IF(F3="","",IF(VALUE(RIGHT(F3,LEN(F3)-FIND(" ",F3)))=1,DATOS!$F$5*DATOS!$C$12,0)) -> 0 | G6: =+IF(G3="","",IF(VALUE(RIGHT(G3,LEN(G3)-FIND(" ",G3)))=1,DATOS!$F$5*DATOS!$C$12,0)) -> 0 | H6: =+IF(H3="","",IF(VALUE(RIGHT(H3,LEN(H3)-FIND(" ",H3)))=1,DATOS!$F$5*DATOS!$C$12,0)) ->  | I6: =+IF(I3="","",IF(VALUE(RIGHT(I3,LEN(I3)-FIND(" ",I3)))=1,DATOS!$F$5*DATOS!$C$12,0)) ->  | J6: =+IF(J3="","",IF(VALUE(RIGHT(J3,LEN(J3)-FIND(" ",J3)))=1,DATOS!$F$5*DATOS!$C$12,0)) ->  | K6: =+IF(K3="","",IF(VALUE(RIGHT(K3,LEN(K3)-FIND(" ",K3)))=1,DATOS!$F$5*DATOS!$C$12,0)) ->  | L6: =+IF(L3="","",IF(VALUE(RIGHT(L3,LEN(L3)-FIND(" ",L3)))=1,DATOS!$F$5*DATOS!$C$12,0)) -> 
B7: Costos construcción/m2 | C7: =IF(ISBLANK(C3),"",DATOS!$F$3*((1+SUPUESTOS!$C$61)^(MID(C3,5,3)))) -> 2496900 | D7: =IF(ISBLANK(D3),"",DATOS!$F$3*((1+SUPUESTOS!$C$61)^(MID(D3,5,3)))) -> 2621745 | E7: =IF(ISBLANK(E3),"",DATOS!$F$3*((1+SUPUESTOS!$C$61)^(MID(E3,5,3)))) -> 2752832.25 | F7: =IF(ISBLANK(F3),"",DATOS!$F$3*((1+SUPUESTOS!$C$61)^(MID(F3,5,3)))) -> 2890473.862 | G7: =IF(ISBLANK(G3),"",DATOS!$F$3*((1+SUPUESTOS!$C$61)^(MID(G3,5,3)))) -> 3034997.556 | H7: =IF(ISBLANK(H3),"",DATOS!$F$3*((1+SUPUESTOS!$C$61)^(MID(H3,5,3)))) ->  | I7: =IF(ISBLANK(I3),"",DATOS!$F$3*((1+SUPUESTOS!$C$61)^(MID(I3,5,3)))) ->  | J7: =IF(ISBLANK(J3),"",DATOS!$F$3*((1+SUPUESTOS!$C$61)^(MID(J3,5,3)))) ->  | K7: =IF(ISBLANK(K3),"",DATOS!$F$3*((1+SUPUESTOS!$C$61)^(MID(K3,5,3)))) ->  | L7: =IF(ISBLANK(L3),"",DATOS!$F$3*((1+SUPUESTOS!$C$61)^(MID(L3,5,3)))) -> 
B8: Indice avance construcción acumulado (Curva S) | C8: =+IF(C3="","",IF(VALUE(RIGHT(C3,LEN(C3)-FIND(" ",C3)))>=DATOS!$C$18,((1/(1+EXP(-10*(((MID(C3,5,3)-DATOS!$C$18+1)/(DATOS!$C$3-DATOS!$C$18+1))-0.5))))-(1/(1+EXP(-10*(0-0.5)))))/((1/(1+EXP(-10*(1-0.5))))-(1/(1+EXP(-10*(0-0.5))))),0)) -> 0 | D8: =+IF(D3="","",IF(VALUE(RIGHT(D3,LEN(D3)-FIND(" ",D3)))>=DATOS!$C$18,((1/(1+EXP(-10*(((MID(D3,5,3)-DATOS!$C$18+1)/(DATOS!$C$3-DATOS!$C$18+1))-0.5))))-(1/(1+EXP(-10*(0-0.5)))))/((1/(1+EXP(-10*(1-0.5))))-(1/(1+EXP(-10*(0-0.5))))),0)) -> 0.07010371655 | E8: =+IF(E3="","",IF(VALUE(RIGHT(E3,LEN(E3)-FIND(" ",E3)))>=DATOS!$C$18,((1/(1+EXP(-10*(((MID(E3,5,3)-DATOS!$C$18+1)/(DATOS!$C$3-DATOS!$C$18+1))-0.5))))-(1/(1+EXP(-10*(0-0.5)))))/((1/(1+EXP(-10*(1-0.5))))-(1/(1+EXP(-10*(0-0.5))))),0)) -> 0.5 | F8: =+IF(F3="","",IF(VALUE(RIGHT(F3,LEN(F3)-FIND(" ",F3)))>=DATOS!$C$18,((1/(1+EXP(-10*(((MID(F3,5,3)-DATOS!$C$18+1)/(DATOS!$C$3-DATOS!$C$18+1))-0.5))))-(1/(1+EXP(-10*(0-0.5)))))/((1/(1+EXP(-10*(1-0.5))))-(1/(1+EXP(-10*(0-0.5))))),0)) -> 0.9298962835 | G8: =+IF(G3="","",IF(VALUE(RIGHT(G3,LEN(G3)-FIND(" ",G3)))>=DATOS!$C$18,((1/(1+EXP(-10*(((MID(G3,5,3)-DATOS!$C$18+1)/(DATOS!$C$3-DATOS!$C$18+1))-0.5))))-(1/(1+EXP(-10*(0-0.5)))))/((1/(1+EXP(-10*(1-0.5))))-(1/(1+EXP(-10*(0-0.5))))),0)) -> 1 | H8: =+IF(H3="","",IF(VALUE(RIGHT(H3,LEN(H3)-FIND(" ",H3)))>=DATOS!$C$18,((1/(1+EXP(-10*(((MID(H3,5,3)-DATOS!$C$18+1)/(DATOS!$C$3-DATOS!$C$18+1))-0.5))))-(1/(1+EXP(-10*(0-0.5)))))/((1/(1+EXP(-10*(1-0.5))))-(1/(1+EXP(-10*(0-0.5))))),0)) ->  | I8: =+IF(I3="","",IF(VALUE(RIGHT(I3,LEN(I3)-FIND(" ",I3)))>=DATOS!$C$18,((1/(1+EXP(-10*(((MID(I3,5,3)-DATOS!$C$18+1)/(DATOS!$C$3-DATOS!$C$18+1))-0.5))))-(1/(1+EXP(-10*(0-0.5)))))/((1/(1+EXP(-10*(1-0.5))))-(1/(1+EXP(-10*(0-0.5))))),0)) ->  | J8: =+IF(J3="","",IF(VALUE(RIGHT(J3,LEN(J3)-FIND(" ",J3)))>=DATOS!$C$18,((1/(1+EXP(-10*(((MID(J3,5,3)-DATOS!$C$18+1)/(DATOS!$C$3-DATOS!$C$18+1))-0.5))))-(1/(1+EXP(-10*(0-0.5)))))/((1/(1+EXP(-10*(1-0.5))))-(1/(1+EXP(-10*(0-0.5))))),0)) ->  | K8: =+IF(K3="","",IF(VALUE(RIGHT(K3,LEN(K3)-FIND(" ",K3)))>=DATOS!$C$18,((1/(1+EXP(-10*(((MID(K3,5,3)-DATOS!$C$18+1)/(DATOS!$C$3-DATOS!$C$18+1))-0.5))))-(1/(1+EXP(-10*(0-0.5)))))/((1/(1+EXP(-10*(1-0.5))))-(1/(1+EXP(-10*(0-0.5))))),0)) ->  | L8: =+IF(L3="","",IF(VALUE(RIGHT(L3,LEN(L3)-FIND(" ",L3)))>=DATOS!$C$18,((1/(1+EXP(-10*(((MID(L3,5,3)-DATOS!$C$18+1)/(DATOS!$C$3-DATOS!$C$18+1))-0.5))))-(1/(1+EXP(-10*(0-0.5)))))/((1/(1+EXP(-10*(1-0.5))))-(1/(1+EXP(-10*(0-0.5))))),0)) -> 
B9: Indice avance construcción periodo | C9: =+IF(C3="","",IF(ISNUMBER(B8)=FALSE,C8,C8-B8)) -> 0 | D9: 0.07010371655 | E9: 0.4298962835 | F9: 0.4298962835 | G9: 0.07010371655
B10: Costo construcción | C10: =+IF(C3="","",DATOS!$F$4*C7*C9) -> 0 | D10: =+IF(D3="","",DATOS!$F$4*D7*D9) -> 128655847.8 | E10: =+IF(E3="","",DATOS!$F$4*E7*E9) -> 828402647.3 | F10: =+IF(F3="","",DATOS!$F$4*F7*F9) -> 869822779.6 | G10: =+IF(G3="","",DATOS!$F$4*G7*G9) -> 148935225.8 | H10: =+IF(H3="","",DATOS!$F$4*H7*H9) ->  | I10: =+IF(I3="","",DATOS!$F$4*I7*I9) ->  | J10: =+IF(J3="","",DATOS!$F$4*J7*J9) ->  | K10: =+IF(K3="","",DATOS!$F$4*K7*K9) ->  | L10: =+IF(L3="","",DATOS!$F$4*L7*L9) -> 
B11: Costos gerencia proyecto | C11: =+IF(C3="","",C10*DATOS!$C$10) -> 0 | D11: =+IF(D3="","",D10*DATOS!$C$10) -> 12865584.78 | E11: =+IF(E3="","",E10*DATOS!$C$10) -> 82840264.73 | F11: =+IF(F3="","",F10*DATOS!$C$10) -> 86982277.96 | G11: =+IF(G3="","",G10*DATOS!$C$10) -> 14893522.58 | H11: =+IF(H3="","",H10*DATOS!$C$10) ->  | I11: =+IF(I3="","",I10*DATOS!$C$10) ->  | J11: =+IF(J3="","",J10*DATOS!$C$10) ->  | K11: =+IF(K3="","",K10*DATOS!$C$10) ->  | L11: =+IF(L3="","",L10*DATOS!$C$10) -> 
B12: Gastos fiduciarios | C12: =+IF(C3="","",DATOS!$C$13*(C4+C5+C6+C7+C10+C11+C16+C17+C18)) -> 16433907 | D12: =+IF(D3="","",DATOS!$C$13*(D4+D5+D6+D7+D10+D11+D16+D17+D18)) -> 4785754.478 | E12: =+IF(E3="","",DATOS!$C$13*(E4+E5+E6+E7+E10+E11+E16+E17+E18)) -> 27909019.03 | F12: =+IF(F3="","",DATOS!$C$13*(F4+F5+F6+F7+F10+F11+F16+F17+F18)) -> 29309361.44 | G12: =+IF(G3="","",DATOS!$C$13*(G4+G5+G6+G7+G10+G11+G16+G17+G18)) -> 8853148.99 | H12: =+IF(H3="","",DATOS!$C$13*(H4+H5+H6+H7+H10+H11+H16+H17+H18)) ->  | I12: =+IF(I3="","",DATOS!$C$13*(I4+I5+I6+I7+I10+I11+I16+I17+I18)) ->  | J12: =+IF(J3="","",DATOS!$C$13*(J4+J5+J6+J7+J10+J11+J16+J17+J18)) ->  | K12: =+IF(K3="","",DATOS!$C$13*(K4+K5+K6+K7+K10+K11+K16+K17+K18)) ->  | L12: =+IF(L3="","",DATOS!$C$13*(L4+L5+L6+L7+L10+L11+L16+L17+L18)) -> 
B13: Índice ventas periodo | C13: =+IF(C3="","",IF(AND((DATOS!$C$3-DATOS!$C$19)=0,(VALUE(RIGHT(C3,LEN(C3)-FIND(" ",C3))))=DATOS!$C$19),1,IF(VALUE(RIGHT(C3,LEN(C3)-FIND(" ",C3)))<DATOS!$C$19,0,IF((VALUE(RIGHT(C3,LEN(C3)-FIND(" ",C3))))=DATOS!$C$3,0.7,(0.3/(DATOS!$C$3-DATOS!$C$19)))))) -> 0 | D13: =+IF(D3="","",IF(AND((DATOS!$C$3-DATOS!$C$19)=0,(VALUE(RIGHT(D3,LEN(D3)-FIND(" ",D3))))=DATOS!$C$19),1,IF(VALUE(RIGHT(D3,LEN(D3)-FIND(" ",D3)))<DATOS!$C$19,0,IF((VALUE(RIGHT(D3,LEN(D3)-FIND(" ",D3))))=DATOS!$C$3,0.7,(0.3/(DATOS!$C$3-DATOS!$C$19)))))) -> 0.1 | E13: =+IF(E3="","",IF(AND((DATOS!$C$3-DATOS!$C$19)=0,(VALUE(RIGHT(E3,LEN(E3)-FIND(" ",E3))))=DATOS!$C$19),1,IF(VALUE(RIGHT(E3,LEN(E3)-FIND(" ",E3)))<DATOS!$C$19,0,IF((VALUE(RIGHT(E3,LEN(E3)-FIND(" ",E3))))=DATOS!$C$3,0.7,(0.3/(DATOS!$C$3-DATOS!$C$19)))))) -> 0.1 | F13: =+IF(F3="","",IF(AND((DATOS!$C$3-DATOS!$C$19)=0,(VALUE(RIGHT(F3,LEN(F3)-FIND(" ",F3))))=DATOS!$C$19),1,IF(VALUE(RIGHT(F3,LEN(F3)-FIND(" ",F3)))<DATOS!$C$19,0,IF((VALUE(RIGHT(F3,LEN(F3)-FIND(" ",F3))))=DATOS!$C$3,0.7,(0.3/(DATOS!$C$3-DATOS!$C$19)))))) -> 0.1 | G13: =+IF(G3="","",IF(AND((DATOS!$C$3-DATOS!$C$19)=0,(VALUE(RIGHT(G3,LEN(G3)-FIND(" ",G3))))=DATOS!$C$19),1,IF(VALUE(RIGHT(G3,LEN(G3)-FIND(" ",G3)))<DATOS!$C$19,0,IF((VALUE(RIGHT(G3,LEN(G3)-FIND(" ",G3))))=DATOS!$C$3,0.7,(0.3/(DATOS!$C$3-DATOS!$C$19)))))) -> 0.7 | H13: =+IF(H3="","",IF(AND((DATOS!$C$3-DATOS!$C$19)=0,(VALUE(RIGHT(H3,LEN(H3)-FIND(" ",H3))))=DATOS!$C$19),1,IF(VALUE(RIGHT(H3,LEN(H3)-FIND(" ",H3)))<DATOS!$C$19,0,IF((VALUE(RIGHT(H3,LEN(H3)-FIND(" ",H3))))=DATOS!$C$3,0.7,(0.3/(DATOS!$C$3-DATOS!$C$19)))))) ->  | I13: =+IF(I3="","",IF(AND((DATOS!$C$3-DATOS!$C$19)=0,(VALUE(RIGHT(I3,LEN(I3)-FIND(" ",I3))))=DATOS!$C$19),1,IF(VALUE(RIGHT(I3,LEN(I3)-FIND(" ",I3)))<DATOS!$C$19,0,IF((VALUE(RIGHT(I3,LEN(I3)-FIND(" ",I3))))=DATOS!$C$3,0.7,(0.3/(DATOS!$C$3-DATOS!$C$19)))))) ->  | J13: =+IF(J3="","",IF(AND((DATOS!$C$3-DATOS!$C$19)=0,(VALUE(RIGHT(J3,LEN(J3)-FIND(" ",J3))))=DATOS!$C$19),1,IF(VALUE(RIGHT(J3,LEN(J3)-FIND(" ",J3)))<DATOS!$C$19,0,IF((VALUE(RIGHT(J3,LEN(J3)-FIND(" ",J3))))=DATOS!$C$3,0.7,(0.3/(DATOS!$C$3-DATOS!$C$19)))))) ->  | K13: =+IF(K3="","",IF(AND((DATOS!$C$3-DATOS!$C$19)=0,(VALUE(RIGHT(K3,LEN(K3)-FIND(" ",K3))))=DATOS!$C$19),1,IF(VALUE(RIGHT(K3,LEN(K3)-FIND(" ",K3)))<DATOS!$C$19,0,IF((VALUE(RIGHT(K3,LEN(K3)-FIND(" ",K3))))=DATOS!$C$3,0.7,(0.3/(DATOS!$C$3-DATOS!$C$19)))))) ->  | L13: =+IF(L3="","",IF(AND((DATOS!$C$3-DATOS!$C$19)=0,(VALUE(RIGHT(L3,LEN(L3)-FIND(" ",L3))))=DATOS!$C$19),1,IF(VALUE(RIGHT(L3,LEN(L3)-FIND(" ",L3)))<DATOS!$C$19,0,IF((VALUE(RIGHT(L3,LEN(L3)-FIND(" ",L3))))=DATOS!$C$3,0.7,(0.3/(DATOS!$C$3-DATOS!$C$19)))))) -> 
B14: Precio / m2 | C14: =IF(ISBLANK(C3),"",DATOS!$C$20*(1+SUPUESTOS!$C$62)^(MID(C3,5,3))) -> 4346000 | D14: =IF(ISBLANK(D3),"",DATOS!$C$20*(1+SUPUESTOS!$C$62)^(MID(D3,5,3))) -> 4606760 | E14: =IF(ISBLANK(E3),"",DATOS!$C$20*(1+SUPUESTOS!$C$62)^(MID(E3,5,3))) -> 4883165.6 | F14: =IF(ISBLANK(F3),"",DATOS!$C$20*(1+SUPUESTOS!$C$62)^(MID(F3,5,3))) -> 5176155.536 | G14: =IF(ISBLANK(G3),"",DATOS!$C$20*(1+SUPUESTOS!$C$62)^(MID(G3,5,3))) -> 5486724.868 | H14: =IF(ISBLANK(H3),"",DATOS!$C$20*(1+SUPUESTOS!$C$62)^(MID(H3,5,3))) ->  | I14: =IF(ISBLANK(I3),"",DATOS!$C$20*(1+SUPUESTOS!$C$62)^(MID(I3,5,3))) ->  | J14: =IF(ISBLANK(J3),"",DATOS!$C$20*(1+SUPUESTOS!$C$62)^(MID(J3,5,3))) ->  | K14: =IF(ISBLANK(K3),"",DATOS!$C$20*(1+SUPUESTOS!$C$62)^(MID(K3,5,3))) ->  | L14: =IF(ISBLANK(L3),"",DATOS!$C$20*(1+SUPUESTOS!$C$62)^(MID(L3,5,3))) -> 
B15: Ventas ($) | C15: =+IF(C3="","",IF(VALUE(RIGHT(C3,LEN(C3)-FIND(" ",C3)))>=DATOS!$C$19,C13*C14*DATOS!$F$4,0)) -> 0 | D15: =+IF(D3="","",IF(VALUE(RIGHT(D3,LEN(D3)-FIND(" ",D3)))>=DATOS!$C$19,D13*D14*DATOS!$F$4,0)) -> 322473200 | E15: =+IF(E3="","",IF(VALUE(RIGHT(E3,LEN(E3)-FIND(" ",E3)))>=DATOS!$C$19,E13*E14*DATOS!$F$4,0)) -> 341821592 | F15: =+IF(F3="","",IF(VALUE(RIGHT(F3,LEN(F3)-FIND(" ",F3)))>=DATOS!$C$19,F13*F14*DATOS!$F$4,0)) -> 362330887.5 | G15: =+IF(G3="","",IF(VALUE(RIGHT(G3,LEN(G3)-FIND(" ",G3)))>=DATOS!$C$19,G13*G14*DATOS!$F$4,0)) -> 2688495185 | H15: =+IF(H3="","",IF(VALUE(RIGHT(H3,LEN(H3)-FIND(" ",H3)))>=DATOS!$C$19,H13*H14*DATOS!$F$4,0)) ->  | I15: =+IF(I3="","",IF(VALUE(RIGHT(I3,LEN(I3)-FIND(" ",I3)))>=DATOS!$C$19,I13*I14*DATOS!$F$4,0)) ->  | J15: =+IF(J3="","",IF(VALUE(RIGHT(J3,LEN(J3)-FIND(" ",J3)))>=DATOS!$C$19,J13*J14*DATOS!$F$4,0)) ->  | K15: =+IF(K3="","",IF(VALUE(RIGHT(K3,LEN(K3)-FIND(" ",K3)))>=DATOS!$C$19,K13*K14*DATOS!$F$4,0)) ->  | L15: =+IF(L3="","",IF(VALUE(RIGHT(L3,LEN(L3)-FIND(" ",L3)))>=DATOS!$C$19,L13*L14*DATOS!$F$4,0)) -> 
B16: Costos comercialización | C16: =+IF(C3="","",C15*DATOS!$C$11) -> 0 | D16: =+IF(D3="","",D15*DATOS!$C$11) -> 9674196 | E16: =+IF(E3="","",E15*DATOS!$C$11) -> 10254647.76 | F16: =+IF(F3="","",F15*DATOS!$C$11) -> 10869926.63 | G16: =+IF(G3="","",G15*DATOS!$C$11) -> 80654855.56 | H16: =+IF(H3="","",H15*DATOS!$C$11) ->  | I16: =+IF(I3="","",I15*DATOS!$C$11) ->  | J16: =+IF(J3="","",J15*DATOS!$C$11) ->  | K16: =+IF(K3="","",K15*DATOS!$C$11) ->  | L16: =+IF(L3="","",L15*DATOS!$C$11) -> 
B17: Gastos de escrituración | C17: =+IF(C3="","",C15*DATOS!$C$14) -> 0 | D17: =+IF(D3="","",D15*DATOS!$C$14) -> 870677.64 | E17: =+IF(E3="","",E15*DATOS!$C$14) -> 922918.2984 | F17: =+IF(F3="","",F15*DATOS!$C$14) -> 978293.3963 | G17: =+IF(G3="","",G15*DATOS!$C$14) -> 7258937.001 | H17: =+IF(H3="","",H15*DATOS!$C$14) ->  | I17: =+IF(I3="","",I15*DATOS!$C$14) ->  | J17: =+IF(J3="","",J15*DATOS!$C$14) ->  | K17: =+IF(K3="","",K15*DATOS!$C$14) ->  | L17: =+IF(L3="","",L15*DATOS!$C$14) -> 
B18: ICA | C18: =+IF(C3="","",C15*SUPUESTOS!$C$59) -> 0 | D18: =+IF(D3="","",D15*SUPUESTOS!$C$59) -> 4837098 | E18: =+IF(E3="","",E15*SUPUESTOS!$C$59) -> 5127323.88 | F18: =+IF(F3="","",F15*SUPUESTOS!$C$59) -> 5434963.313 | G18: =+IF(G3="","",G15*SUPUESTOS!$C$59) -> 40327427.78 | H18: =+IF(H3="","",H15*SUPUESTOS!$C$59) ->  | I18: =+IF(I3="","",I15*SUPUESTOS!$C$59) ->  | J18: =+IF(J3="","",J15*SUPUESTOS!$C$59) ->  | K18: =+IF(K3="","",K15*SUPUESTOS!$C$59) ->  | L18: =+IF(L3="","",L15*SUPUESTOS!$C$59) -> 
B19: Deuda del período | C19: =+IF(C3="","",C10*DATOS!$C$15) -> 0 | D19: =+IF(D3="","",D10*DATOS!$C$15) -> 90059093.48 | E19: =+IF(E3="","",E10*DATOS!$C$15) -> 579881853.1 | F19: =+IF(F3="","",F10*DATOS!$C$15) -> 608875945.7 | I19: =+IF(I3="","",I10*DATOS!$C$15) ->  | J19: =+IF(J3="","",J10*DATOS!$C$15) ->  | K19: =+IF(K3="","",K10*DATOS!$C$15) ->  | L19: =+IF(L3="","",L10*DATOS!$C$15) -> 
B20: Amortizaciones de deuda | C20: =+IF(C3="","",IF(VALUE(RIGHT(C3,LEN(C3)-FIND(" ",C3)))<DATOS!$C$18,0,IF(VALUE(RIGHT(C3,LEN(C3)-FIND(" ",C3)))=DATOS!$C$3,B21+C19,(B21+C19)/(DATOS!$C$3+1-MID(C3,5,3))))) -> 0 | D20: =+IF(D3="","",IF(VALUE(RIGHT(D3,LEN(D3)-FIND(" ",D3)))<DATOS!$C$18,0,IF(VALUE(RIGHT(D3,LEN(D3)-FIND(" ",D3)))=DATOS!$C$3,C21+D19,(C21+D19)/(DATOS!$C$3+1-MID(D3,5,3))))) -> 22514773.37 | E20: =+IF(E3="","",IF(VALUE(RIGHT(E3,LEN(E3)-FIND(" ",E3)))<DATOS!$C$18,0,IF(VALUE(RIGHT(E3,LEN(E3)-FIND(" ",E3)))=DATOS!$C$3,D21+E19,(D21+E19)/(DATOS!$C$3+1-MID(E3,5,3))))) -> 215808724.4 | F20: =+IF(F3="","",IF(VALUE(RIGHT(F3,LEN(F3)-FIND(" ",F3)))<DATOS!$C$18,0,IF(VALUE(RIGHT(F3,LEN(F3)-FIND(" ",F3)))=DATOS!$C$3,E21+F19,(E21+F19)/(DATOS!$C$3+1-MID(F3,5,3))))) -> 520246697.3 | G20: =+IF(G3="","",IF(VALUE(RIGHT(G3,LEN(G3)-FIND(" ",G3)))<DATOS!$C$18,0,IF(VALUE(RIGHT(G3,LEN(G3)-FIND(" ",G3)))=DATOS!$C$3,F21+G19,(F21+G19)/(DATOS!$C$3+1-MID(G3,5,3))))) -> 520246697.3 | H20: =+IF(H3="","",IF(VALUE(RIGHT(H3,LEN(H3)-FIND(" ",H3)))<DATOS!$C$18,0,IF(VALUE(RIGHT(H3,LEN(H3)-FIND(" ",H3)))=DATOS!$C$3,G21+H19,(G21+H19)/(DATOS!$C$3+1-MID(H3,5,3))))) ->  | I20: =+IF(I3="","",IF(VALUE(RIGHT(I3,LEN(I3)-FIND(" ",I3)))<DATOS!$C$18,0,IF(VALUE(RIGHT(I3,LEN(I3)-FIND(" ",I3)))=DATOS!$C$3,H21+I19,(H21+I19)/(DATOS!$C$3+1-MID(I3,5,3))))) ->  | J20: =+IF(J3="","",IF(VALUE(RIGHT(J3,LEN(J3)-FIND(" ",J3)))<DATOS!$C$18,0,IF(VALUE(RIGHT(J3,LEN(J3)-FIND(" ",J3)))=DATOS!$C$3,I21+J19,(I21+J19)/(DATOS!$C$3+1-MID(J3,5,3))))) ->  | K20: =+IF(K3="","",IF(VALUE(RIGHT(K3,LEN(K3)-FIND(" ",K3)))<DATOS!$C$18,0,IF(VALUE(RIGHT(K3,LEN(K3)-FIND(" ",K3)))=DATOS!$C$3,J21+K19,(J21+K19)/(DATOS!$C$3+1-MID(K3,5,3))))) ->  | L20: =+IF(L3="","",IF(VALUE(RIGHT(L3,LEN(L3)-FIND(" ",L3)))<DATOS!$C$18,0,IF(VALUE(RIGHT(L3,LEN(L3)-FIND(" ",L3)))=DATOS!$C$3,K21+L19,(K21+L19)/(DATOS!$C$3+1-MID(L3,5,3))))) -> 
B21: Deuda Acumulada | C21: =+IF(C3="","",IF(VALUE(RIGHT(C3,LEN(C3)-FIND(" ",C3)))=1,C19-C20,B21+C19-C20)) -> 0 | D21: 67544320.11 | E21: 431617448.8 | F21: 520246697.3 | G21: 0
B22: Intereses | C22: =+IF(C3="","",IF(ISNUMBER(B21)=FALSE,0,B21*DATOS!$C$16)) -> 0 | D22: =+IF(D3="","",IF(ISNUMBER(C21)=FALSE,0,C21*DATOS!$C$16)) -> 0 | E22: =+IF(E3="","",IF(ISNUMBER(D21)=FALSE,0,D21*DATOS!$C$16)) -> 8105318.414 | F22: =+IF(F3="","",IF(ISNUMBER(E21)=FALSE,0,E21*DATOS!$C$16)) -> 51794093.86 | G22: =+IF(G3="","",IF(ISNUMBER(F21)=FALSE,0,F21*DATOS!$C$16)) -> 62429603.67 | H22: =+IF(H3="","",IF(ISNUMBER(G21)=FALSE,0,G21*DATOS!$C$16)) ->  | I22: =+IF(I3="","",IF(ISNUMBER(H21)=FALSE,0,H21*DATOS!$C$16)) ->  | J22: =+IF(J3="","",IF(ISNUMBER(I21)=FALSE,0,I21*DATOS!$C$16)) ->  | K22: =+IF(K3="","",IF(ISNUMBER(J21)=FALSE,0,J21*DATOS!$C$16)) ->  | L22: =+IF(L3="","",IF(ISNUMBER(K21)=FALSE,0,K21*DATOS!$C$16)) -> 
B23: % Deuda CP | C23: =+IF(C3="","",0.2) -> 0.2 | D23: 0.2 | E23: 0.2 | F23: 0.2 | G23: 0.2
B24: % Deuda LP | C24: =+IF(C3="","",(1-C23)) -> 0.8 | D24: 0.8 | E24: 0.8 | F24: 0.8 | G24: 0.8
B26: Depreciaciones & Amortizaciones
B27: Depreciaciónes del costo | C27: =+IF(C3="","",1/(50*12)) -> 0.001666666667 | D27: 0.001666666667 | E27: 0.001666666667 | F27: 0.001666666667 | G27: 0.001666666667
B28: Amortizaciones del costo | C28: =+IF(C3="","",0%) -> 0 | D28: 0 | E28: 0 | F28: 0 | G28: 0
B29: Depreciaciónes del gasto - Activos fijos | C29: =+IF(C3="","",10%) -> 0.1 | D29: 0.1 | E29: 0.1 | F29: 0.1 | G29: 0.1
B30: Amortizaciones del gasto - Intangibles | C30: =+IF(C3="","",5%) -> 0.05 | D30: 0.05 | E30: 0.05 | F30: 0.05 | G30: 0.05
B32: Otros Ingresos & Egresos
B33: Ingresos financieros - Yield de Efectivo | C33: =+IF(C3="","",(1+0.08)^(1/12)-1) -> 0.00643403011 | D33: 0.00643403011 | E33: 0.00643403011 | F33: 0.00643403011 | G33: 0.00643403011
B34: Otros Gastos financieros - Porcentaje de Erogaciones (4x1000) | C34: =+IF(C3="","",0.4%) -> 0.004 | D34: 0.004 | E34: 0.004 | F34: 0.004 | G34: 0.004
B36: Dividendos
B37: PayOut Ratio | C37: =+IF(C3="","",0) -> 0 | D37: 0 | E37: 0 | F37: 0 | G37: 0
B39: Capital de Trabajo
B40: Días de cartera | C40: =+IF(C3="","",30) -> 30 | D40: 30 | E40: 30 | F40: 30 | G40: 30
B41: Días de proveedores | C41: =+IF(C3="","",30) -> 30 | D41: 30 | E41: 30 | F41: 30 | G41: 30
B43: CapEx
B44: CapEx no operativo-porcentaje del total CapEx | C44: =+IF(C3="","",90%) -> 0.9 | D44: 0.9 | E44: 0.9 | F44: 0.9 | G44: 0.9
B45: Aportes de capital adicional | C45: =+IF(C3="","",0) -> 0 | D45: 0 | E45: 0 | F45: 0 | G45: 0
B47: Activos Inicio
B48: % del capital inicial en efectivo | C48: =1-C49-C50 -> 0.95 | K48: =+IF(K3="","",500000000) ->  | L48: =+IF(L3="","",500000000) -> 
B49: % del capital inicial en PP&E | C49: 0.04 | K49: =+IF(K3="","",50%) ->  | L49: =+IF(L3="","",50%) -> 
B50: % del capital inicial en Intangibles | C50: 0.01
B51: PP&E | C51: =+IF(C3="","",IF(VALUE(RIGHT(C3,LEN(C3)-FIND(" ",C3)))=1,DATOS!$F$6*$C$49*(1-C29),B51*(1-C29))) -> 36162000 | D51: =+IF(D3="","",IF(VALUE(RIGHT(D3,LEN(D3)-FIND(" ",D3)))=1,DATOS!$F$6*$C$49*(1-D29),C51*(1-D29))) -> 32545800 | E51: =+IF(E3="","",IF(VALUE(RIGHT(E3,LEN(E3)-FIND(" ",E3)))=1,DATOS!$F$6*$C$49*(1-E29),D51*(1-E29))) -> 29291220 | F51: =+IF(F3="","",IF(VALUE(RIGHT(F3,LEN(F3)-FIND(" ",F3)))=1,DATOS!$F$6*$C$49*(1-F29),E51*(1-F29))) -> 26362098 | G51: =+IF(G3="","",IF(VALUE(RIGHT(G3,LEN(G3)-FIND(" ",G3)))=1,DATOS!$F$6*$C$49*(1-G29),F51*(1-G29))) -> 23725888.2 | H51: =+IF(H3="","",IF(VALUE(RIGHT(H3,LEN(H3)-FIND(" ",H3)))=1,DATOS!$F$6*$C$49*(1-H29),G51*(1-H29))) ->  | I51: =+IF(I3="","",IF(VALUE(RIGHT(I3,LEN(I3)-FIND(" ",I3)))=1,DATOS!$F$6*$C$49*(1-I29),H51*(1-I29))) ->  | J51: =+IF(J3="","",IF(VALUE(RIGHT(J3,LEN(J3)-FIND(" ",J3)))=1,DATOS!$F$6*$C$49*(1-J29),I51*(1-J29))) ->  | K51: =+IF(K3="","",IF(VALUE(RIGHT(K3,LEN(K3)-FIND(" ",K3)))=1,DATOS!$F$6*$C$49*(1-K29),J51*(1-K29))) ->  | L51: =+IF(L3="","",IF(VALUE(RIGHT(L3,LEN(L3)-FIND(" ",L3)))=1,DATOS!$F$6*$C$49*(1-L29),K51*(1-L29))) -> 
B52: Intangibles | C52: =+IF(C3="","",IF(VALUE(RIGHT(C3,LEN(C3)-FIND(" ",C3)))=1,DATOS!$F$6*$C$50*(1-C30),B52*(1-C30))) -> 9542750 | D52: =+IF(D3="","",IF(VALUE(RIGHT(D3,LEN(D3)-FIND(" ",D3)))=1,DATOS!$F$6*$C$50*(1-D30),C52*(1-D30))) -> 9065612.5 | E52: =+IF(E3="","",IF(VALUE(RIGHT(E3,LEN(E3)-FIND(" ",E3)))=1,DATOS!$F$6*$C$50*(1-E30),D52*(1-E30))) -> 8612331.875 | F52: =+IF(F3="","",IF(VALUE(RIGHT(F3,LEN(F3)-FIND(" ",F3)))=1,DATOS!$F$6*$C$50*(1-F30),E52*(1-F30))) -> 8181715.281 | G52: =+IF(G3="","",IF(VALUE(RIGHT(G3,LEN(G3)-FIND(" ",G3)))=1,DATOS!$F$6*$C$50*(1-G30),F52*(1-G30))) -> 7772629.517 | H52: =+IF(H3="","",IF(VALUE(RIGHT(H3,LEN(H3)-FIND(" ",H3)))=1,DATOS!$F$6*$C$50*(1-H30),G52*(1-H30))) ->  | I52: =+IF(I3="","",IF(VALUE(RIGHT(I3,LEN(I3)-FIND(" ",I3)))=1,DATOS!$F$6*$C$50*(1-I30),H52*(1-I30))) ->  | J52: =+IF(J3="","",IF(VALUE(RIGHT(J3,LEN(J3)-FIND(" ",J3)))=1,DATOS!$F$6*$C$50*(1-J30),I52*(1-J30))) ->  | K52: =+IF(K3="","",IF(VALUE(RIGHT(K3,LEN(K3)-FIND(" ",K3)))=1,DATOS!$F$6*$C$50*(1-K30),J52*(1-K30))) ->  | L52: =+IF(L3="","",IF(VALUE(RIGHT(L3,LEN(L3)-FIND(" ",L3)))=1,DATOS!$F$6*$C$50*(1-L30),K52*(1-L30))) -> 
B54: Otros Pasivos
B55: Beneficios a los empleados-porcentaje de utilidad neta | C55: =+IF(C3="","",2%) -> 0.02 | D55: 0.02 | E55: 0.02 | F55: 0.02 | G55: 0.02
B56: Provisiones beneficios a los empleados-porcentaje utilidad neta | C56: =+IF(C3="","",1%) -> 0.01 | D56: 0.01 | E56: 0.01 | F56: 0.01 | G56: 0.01
B58: Macroeconómicos
B59: ICA | C59: 0.015
B60: Impuesto renta | C60: 0.35
B61: ICCVN | C61: 0.05
B62: IPVN | C62: =+C61+1% -> 0.06

Sheet P&G
B1: ESTADO DE RESULTADOS INTEGRAL | L1: ROMA INVESTI
C3: =IF(SUPUESTOS!C3="","",SUPUESTOS!C3) -> Año 1 | D3: =IF(SUPUESTOS!D3="","",SUPUESTOS!D3) -> Año 2 | E3: =IF(SUPUESTOS!E3="","",SUPUESTOS!E3) -> Año 3 | F3: =IF(SUPUESTOS!F3="","",SUPUESTOS!F3) -> Año 4 | G3: =IF(SUPUESTOS!G3="","",SUPUESTOS!G3) -> Año 5 | H3: =IF(SUPUESTOS!H3="","",SUPUESTOS!H3) ->  | I3: =IF(SUPUESTOS!I3="","",SUPUESTOS!I3) ->  | J3: =IF(SUPUESTOS!J3="","",SUPUESTOS!J3) ->  | K3: =IF(SUPUESTOS!K3="","",SUPUESTOS!K3) ->  | L3: =IF(SUPUESTOS!L3="","",SUPUESTOS!L3) -> 
B4: (+) Ventas | C4: =+IF(C3="","",SUPUESTOS!C15) -> 0 | D4: =+IF(D3="","",SUPUESTOS!D15) -> 322473200 | E4: =+IF(E3="","",SUPUESTOS!E15) -> 341821592 | F4: =+IF(F3="","",SUPUESTOS!F15) -> 362330887.5 | G4: =+IF(G3="","",SUPUESTOS!G15) -> 2688495185 | H4: =+IF(H3="","",SUPUESTOS!H15) ->  | I4: =+IF(I3="","",SUPUESTOS!I15) ->  | J4: =+IF(J3="","",SUPUESTOS!J15) ->  | K4: =+IF(K3="","",SUPUESTOS!K15) ->  | L4: =+IF(L3="","",SUPUESTOS!L15) -> 
B5: Total Ingresos | C5: =+IF(C3="","",C4) -> 0 | D5: 322473200 | E5: 341821592 | F5: 362330887.5 | G5: 2688495185
B6: ( - ) Costo Directo | C6: =+IF(C3="","",SUPUESTOS!C10+SUPUESTOS!C11) -> 0 | D6: =+IF(D3="","",SUPUESTOS!D10+SUPUESTOS!D11) -> 141521432.6 | E6: =+IF(E3="","",SUPUESTOS!E10+SUPUESTOS!E11) -> 911242912 | F6: =+IF(F3="","",SUPUESTOS!F10+SUPUESTOS!F11) -> 956805057.6 | G6: =+IF(G3="","",SUPUESTOS!G10+SUPUESTOS!G11) -> 163828748.4 | H6: =+IF(H3="","",SUPUESTOS!H10+SUPUESTOS!H11) ->  | I6: =+IF(I3="","",SUPUESTOS!I10+SUPUESTOS!I11) ->  | J6: =+IF(J3="","",SUPUESTOS!J10+SUPUESTOS!J11) ->  | K6: =+IF(K3="","",SUPUESTOS!K10+SUPUESTOS!K11) ->  | L6: =+IF(L3="","",SUPUESTOS!L10+SUPUESTOS!L11) -> 
B7: ( - ) Depreciaciones costo | C7: =+IF(C3="","",C6*SUPUESTOS!C27) -> 0 | D7: =+IF(D3="","",D6*SUPUESTOS!D27) -> 235869.0544 | E7: =+IF(E3="","",E6*SUPUESTOS!E27) -> 1518738.187 | F7: =+IF(F3="","",F6*SUPUESTOS!F27) -> 1594675.096 | G7: =+IF(G3="","",G6*SUPUESTOS!G27) -> 273047.9141 | H7: =+IF(H3="","",H6*SUPUESTOS!H27) ->  | I7: =+IF(I3="","",I6*SUPUESTOS!I27) ->  | J7: =+IF(J3="","",J6*SUPUESTOS!J27) ->  | K7: =+IF(K3="","",K6*SUPUESTOS!K27) ->  | L7: =+IF(L3="","",L6*SUPUESTOS!L27) -> 
B8: ( - ) Amortizaciones costo | C8: =++IF(C3="","",C6*SUPUESTOS!C28) -> 0 | D8: =++IF(D3="","",D6*SUPUESTOS!D28) -> 0 | E8: =++IF(E3="","",E6*SUPUESTOS!E28) -> 0 | F8: =++IF(F3="","",F6*SUPUESTOS!F28) -> 0 | G8: =++IF(G3="","",G6*SUPUESTOS!G28) -> 0 | H8: =++IF(H3="","",H6*SUPUESTOS!H28) ->  | I8: =++IF(I3="","",I6*SUPUESTOS!I28) ->  | J8: =++IF(J3="","",J6*SUPUESTOS!J28) ->  | K8: =++IF(K3="","",K6*SUPUESTOS!K28) ->  | L8: =++IF(L3="","",L6*SUPUESTOS!L28) -> 
B9: (=) Utilidad Bruta | C9: =IF(C3="","",C5-SUM(C6:C8)) -> 0 | D9: 180715898.3 | E9: -570940058.2 | F9: -596068845.2 | G9: 2524393389
B10: ( - ) Gastos Generales, Administración & Ventas | C10: =+IF(C3="","",SUPUESTOS!C16+SUPUESTOS!C17+SUPUESTOS!C18+SUPUESTOS!C12) -> 16433907 | D10: =+IF(D3="","",SUPUESTOS!D16+SUPUESTOS!D17+SUPUESTOS!D18+SUPUESTOS!D12) -> 20167726.12 | E10: =+IF(E3="","",SUPUESTOS!E16+SUPUESTOS!E17+SUPUESTOS!E18+SUPUESTOS!E12) -> 44213908.96 | F10: =+IF(F3="","",SUPUESTOS!F16+SUPUESTOS!F17+SUPUESTOS!F18+SUPUESTOS!F12) -> 46592544.78 | G10: =+IF(G3="","",SUPUESTOS!G16+SUPUESTOS!G17+SUPUESTOS!G18+SUPUESTOS!G12) -> 137094369.3 | H10: =+IF(H3="","",SUPUESTOS!H16+SUPUESTOS!H17+SUPUESTOS!H18+SUPUESTOS!H12) ->  | I10: =+IF(I3="","",SUPUESTOS!I16+SUPUESTOS!I17+SUPUESTOS!I18+SUPUESTOS!I12) ->  | J10: =+IF(J3="","",SUPUESTOS!J16+SUPUESTOS!J17+SUPUESTOS!J18+SUPUESTOS!J12) ->  | K10: =+IF(K3="","",SUPUESTOS!K16+SUPUESTOS!K17+SUPUESTOS!K18+SUPUESTOS!K12) ->  | L10: =+IF(L3="","",SUPUESTOS!L16+SUPUESTOS!L17+SUPUESTOS!L18+SUPUESTOS!L12) -> 
B11: ( - ) Depreciaciones gasto | C11: =+IF(C3="","",IF(VALUE(RIGHT(C3,LEN(C3)-FIND(" ",C3)))=1,DATOS!$F$6*SUPUESTOS!$C$49-SUPUESTOS!$C$51,SUPUESTOS!B51-SUPUESTOS!C51)) -> 4018000 | D11: =+IF(D3="","",IF(VALUE(RIGHT(D3,LEN(D3)-FIND(" ",D3)))=1,DATOS!$F$6*SUPUESTOS!$C$49-SUPUESTOS!$C$51,SUPUESTOS!C51-SUPUESTOS!D51)) -> 3616200 | E11: =+IF(E3="","",IF(VALUE(RIGHT(E3,LEN(E3)-FIND(" ",E3)))=1,DATOS!$F$6*SUPUESTOS!$C$49-SUPUESTOS!$C$51,SUPUESTOS!D51-SUPUESTOS!E51)) -> 3254580 | F11: =+IF(F3="","",IF(VALUE(RIGHT(F3,LEN(F3)-FIND(" ",F3)))=1,DATOS!$F$6*SUPUESTOS!$C$49-SUPUESTOS!$C$51,SUPUESTOS!E51-SUPUESTOS!F51)) -> 2929122 | G11: =+IF(G3="","",IF(VALUE(RIGHT(G3,LEN(G3)-FIND(" ",G3)))=1,DATOS!$F$6*SUPUESTOS!$C$49-SUPUESTOS!$C$51,SUPUESTOS!F51-SUPUESTOS!G51)) -> 2636209.8 | H11: =+IF(H3="","",IF(VALUE(RIGHT(H3,LEN(H3)-FIND(" ",H3)))=1,DATOS!$F$6*SUPUESTOS!$C$49-SUPUESTOS!$C$51,SUPUESTOS!G51-SUPUESTOS!H51)) ->  | I11: =+IF(I3="","",IF(VALUE(RIGHT(I3,LEN(I3)-FIND(" ",I3)))=1,DATOS!$F$6*SUPUESTOS!$C$49-SUPUESTOS!$C$51,SUPUESTOS!H51-SUPUESTOS!I51)) ->  | J11: =+IF(J3="","",IF(VALUE(RIGHT(J3,LEN(J3)-FIND(" ",J3)))=1,DATOS!$F$6*SUPUESTOS!$C$49-SUPUESTOS!$C$51,SUPUESTOS!I51-SUPUESTOS!J51)) ->  | K11: =+IF(K3="","",IF(VALUE(RIGHT(K3,LEN(K3)-FIND(" ",K3)))=1,DATOS!$F$6*SUPUESTOS!$C$49-SUPUESTOS!$C$51,SUPUESTOS!J51-SUPUESTOS!K51)) ->  | L11: =+IF(L3="","",IF(VALUE(RIGHT(L3,LEN(L3)-FIND(" ",L3)))=1,DATOS!$F$6*SUPUESTOS!$C$49-SUPUESTOS!$C$51,SUPUESTOS!K51-SUPUESTOS!L51)) -> 
B12: ( - ) Amortizaciones gasto | C12: =+IF(C3="","",IF(VALUE(RIGHT(C3,LEN(C3)-FIND(" ",C3)))=1,DATOS!$F$6*SUPUESTOS!$C$50-SUPUESTOS!$C$52,SUPUESTOS!B52-SUPUESTOS!C52)) -> 502250 | D12: =+IF(D3="","",IF(VALUE(RIGHT(D3,LEN(D3)-FIND(" ",D3)))=1,DATOS!$F$6*SUPUESTOS!$C$50-SUPUESTOS!$C$52,SUPUESTOS!C52-SUPUESTOS!D52)) -> 477137.5 | E12: =+IF(E3="","",IF(VALUE(RIGHT(E3,LEN(E3)-FIND(" ",E3)))=1,DATOS!$F$6*SUPUESTOS!$C$50-SUPUESTOS!$C$52,SUPUESTOS!D52-SUPUESTOS!E52)) -> 453280.625 | F12: =+IF(F3="","",IF(VALUE(RIGHT(F3,LEN(F3)-FIND(" ",F3)))=1,DATOS!$F$6*SUPUESTOS!$C$50-SUPUESTOS!$C$52,SUPUESTOS!E52-SUPUESTOS!F52)) -> 430616.5938 | G12: =+IF(G3="","",IF(VALUE(RIGHT(G3,LEN(G3)-FIND(" ",G3)))=1,DATOS!$F$6*SUPUESTOS!$C$50-SUPUESTOS!$C$52,SUPUESTOS!F52-SUPUESTOS!G52)) -> 409085.7641 | H12: =+IF(H3="","",IF(VALUE(RIGHT(H3,LEN(H3)-FIND(" ",H3)))=1,DATOS!$F$6*SUPUESTOS!$C$50-SUPUESTOS!$C$52,SUPUESTOS!G52-SUPUESTOS!H52)) ->  | I12: =+IF(I3="","",IF(VALUE(RIGHT(I3,LEN(I3)-FIND(" ",I3)))=1,DATOS!$F$6*SUPUESTOS!$C$50-SUPUESTOS!$C$52,SUPUESTOS!H52-SUPUESTOS!I52)) ->  | J12: =+IF(J3="","",IF(VALUE(RIGHT(J3,LEN(J3)-FIND(" ",J3)))=1,DATOS!$F$6*SUPUESTOS!$C$50-SUPUESTOS!$C$52,SUPUESTOS!I52-SUPUESTOS!J52)) ->  | K12: =+IF(K3="","",IF(VALUE(RIGHT(K3,LEN(K3)-FIND(" ",K3)))=1,DATOS!$F$6*SUPUESTOS!$C$50-SUPUESTOS!$C$52,SUPUESTOS!J52-SUPUESTOS!K52)) ->  | L12: =+IF(L3="","",IF(VALUE(RIGHT(L3,LEN(L3)-FIND(" ",L3)))=1,DATOS!$F$6*SUPUESTOS!$C$50-SUPUESTOS!$C$52,SUPUESTOS!K52-SUPUESTOS!L52)) -> 
B13: (=) Utilidad Operacional | C13: =IF(C3="","",C9-SUM(C10:C12)) -> -20954157 | D13: 156454834.7 | E13: -618861827.8 | F13: -646021128.6 | G13: 2384253724
B14: ( + ) Ingresos Financieros | C14: =+IF(C3="","",IF(VALUE(RIGHT(C3,LEN(C3)-FIND(" ",C3)))=1,DATOS!$F$6*SUPUESTOS!$C$48*SUPUESTOS!C33,BALANCE!B6*SUPUESTOS!C33)) -> 6139834.083 | D14: =+IF(D3="","",IF(VALUE(RIGHT(D3,LEN(D3)-FIND(" ",D3)))=1,DATOS!$F$6*SUPUESTOS!$C$48*SUPUESTOS!D33,BALANCE!C6*SUPUESTOS!D33)) -> 2241552.982 | E14: =+IF(E3="","",IF(VALUE(RIGHT(E3,LEN(E3)-FIND(" ",E3)))=1,DATOS!$F$6*SUPUESTOS!$C$48*SUPUESTOS!E33,BALANCE!D6*SUPUESTOS!E33)) -> 5491594.596 | F14: =+IF(F3="","",IF(VALUE(RIGHT(F3,LEN(F3)-FIND(" ",F3)))=1,DATOS!$F$6*SUPUESTOS!$C$48*SUPUESTOS!F33,BALANCE!E6*SUPUESTOS!F33)) -> 5268192.133 | G14: =+IF(G3="","",IF(VALUE(RIGHT(G3,LEN(G3)-FIND(" ",G3)))=1,DATOS!$F$6*SUPUESTOS!$C$48*SUPUESTOS!G33,BALANCE!F6*SUPUESTOS!G33)) -> 1357197.586 | H14: =+IF(H3="","",IF(VALUE(RIGHT(H3,LEN(H3)-FIND(" ",H3)))=1,DATOS!$F$6*SUPUESTOS!$C$48*SUPUESTOS!H33,BALANCE!G6*SUPUESTOS!H33)) ->  | I14: =+IF(I3="","",IF(VALUE(RIGHT(I3,LEN(I3)-FIND(" ",I3)))=1,DATOS!$F$6*SUPUESTOS!$C$48*SUPUESTOS!I33,BALANCE!H6*SUPUESTOS!I33)) ->  | J14: =+IF(J3="","",IF(VALUE(RIGHT(J3,LEN(J3)-FIND(" ",J3)))=1,DATOS!$F$6*SUPUESTOS!$C$48*SUPUESTOS!J33,BALANCE!I6*SUPUESTOS!J33)) ->  | K14: =+IF(K3="","",IF(VALUE(RIGHT(K3,LEN(K3)-FIND(" ",K3)))=1,DATOS!$F$6*SUPUESTOS!$C$48*SUPUESTOS!K33,BALANCE!J6*SUPUESTOS!K33)) ->  | L14: =+IF(L3="","",IF(VALUE(RIGHT(L3,LEN(L3)-FIND(" ",L3)))=1,DATOS!$F$6*SUPUESTOS!$C$48*SUPUESTOS!L33,BALANCE!K6*SUPUESTOS!L33)) -> 
B15: ( - ) Intereses | C15: =+IF(C3="","",SUPUESTOS!C22) -> 0 | D15: =+IF(D3="","",SUPUESTOS!D22) -> 0 | E15: =+IF(E3="","",SUPUESTOS!E22) -> 8105318.414 | F15: =+IF(F3="","",SUPUESTOS!F22) -> 51794093.86 | G15: =+IF(G3="","",SUPUESTOS!G22) -> 62429603.67 | H15: =+IF(H3="","",SUPUESTOS!H22) ->  | I15: =+IF(I3="","",SUPUESTOS!I22) ->  | J15: =+IF(J3="","",SUPUESTOS!J22) ->  | K15: =+IF(K3="","",SUPUESTOS!K22) ->  | L15: =+IF(L3="","",SUPUESTOS!L22) -> 
B16: ( - ) Otros Gastos Financieros | C16: =+IF(C3="","",(C6+C10+C15)*SUPUESTOS!C34) -> 65735.628 | D16: =+IF(D3="","",(D6+D10+D15)*SUPUESTOS!D34) -> 646756.6349 | E16: =+IF(E3="","",(E6+E10+E15)*SUPUESTOS!E34) -> 3854248.558 | F16: =+IF(F3="","",(F6+F10+F15)*SUPUESTOS!F34) -> 4220766.785 | G16: =+IF(G3="","",(G6+G10+G15)*SUPUESTOS!G34) -> 1453410.886 | H16: =+IF(H3="","",(H6+H10+H15)*SUPUESTOS!H34) ->  | I16: =+IF(I3="","",(I6+I10+I15)*SUPUESTOS!I34) ->  | J16: =+IF(J3="","",(J6+J10+J15)*SUPUESTOS!J34) ->  | K16: =+IF(K3="","",(K6+K10+K15)*SUPUESTOS!K34) ->  | L16: =+IF(L3="","",(L6+L10+L15)*SUPUESTOS!L34) -> 
B17: (=) Utilidad antes de Impuestos | C17: =+IF(C3="","",C13+C14-C15-C16) -> -14880058.54 | D17: 158049631.1 | E17: -625329800.2 | F17: -696767797.1 | G17: 2321727907
B18: ( - ) Impuestos | C18: =+IF('P&G'!C3="","",C17*SUPUESTOS!$C$60) -> -5208020.491 | D18: =+IF('P&G'!D3="","",D17*SUPUESTOS!$C$60) -> 55317370.87 | E18: =+IF('P&G'!E3="","",E17*SUPUESTOS!$C$60) -> -218865430.1 | F18: =+IF('P&G'!F3="","",F17*SUPUESTOS!$C$60) -> -243868729 | G18: =+IF('P&G'!G3="","",G17*SUPUESTOS!$C$60) -> 812604767.5 | H18: =+IF('P&G'!H3="","",H17*SUPUESTOS!$C$60) ->  | I18: =+IF('P&G'!I3="","",I17*SUPUESTOS!$C$60) ->  | J18: =+IF('P&G'!J3="","",J17*SUPUESTOS!$C$60) ->  | K18: =+IF('P&G'!K3="","",K17*SUPUESTOS!$C$60) ->  | L18: =+IF('P&G'!L3="","",L17*SUPUESTOS!$C$60) -> 
B19: Utilidad Neta | C19: =+IF(C3="","",C17-C18) -> -9672038.054 | D19: 102732260.2 | E19: -406464370.1 | F19: -452899068.1 | G19: 1509123140

Sheet BALANCE
B1: ESTADO DE LA SITUACIÓN FINANCIERA | L1: ROMA INVESTI
C3: =+IF(SUPUESTOS!C3="","",SUPUESTOS!C3) -> Año 1 | D3: =+IF(SUPUESTOS!D3="","",SUPUESTOS!D3) -> Año 2 | E3: =+IF(SUPUESTOS!E3="","",SUPUESTOS!E3) -> Año 3 | F3: =+IF(SUPUESTOS!F3="","",SUPUESTOS!F3) -> Año 4 | G3: =+IF(SUPUESTOS!G3="","",SUPUESTOS!G3) -> Año 5 | H3: =+IF(SUPUESTOS!H3="","",SUPUESTOS!H3) ->  | I3: =+IF(SUPUESTOS!I3="","",SUPUESTOS!I3) ->  | J3: =+IF(SUPUESTOS!J3="","",SUPUESTOS!J3) ->  | K3: =+IF(SUPUESTOS!K3="","",SUPUESTOS!K3) ->  | L3: =+IF(SUPUESTOS!L3="","",SUPUESTOS!L3) -> 
B4: ACTIVO
B5: Activo Corriente
B6: Efectivo y equivalentes | C6: =+IF(C3="","",IF(VALUE(RIGHT(C3,LEN(C3)-FIND(" ",C3)))=1,DATOS!$F$6*SUPUESTOS!C48+'FLUJO DE CAJA'!C36,BALANCE!B6+'FLUJO DE CAJA'!C36)) -> 348390191.5 | D6: =+IF(D3="","",IF(VALUE(RIGHT(D3,LEN(D3)-FIND(" ",D3)))=1,DATOS!$F$6*SUPUESTOS!D53+'FLUJO DE CAJA'!D36,BALANCE!C6+'FLUJO DE CAJA'!D36)) -> 853523297.6 | E6: =+IF(E3="","",IF(VALUE(RIGHT(E3,LEN(E3)-FIND(" ",E3)))=1,DATOS!$F$6*SUPUESTOS!E53+'FLUJO DE CAJA'!E36,BALANCE!D6+'FLUJO DE CAJA'!E36)) -> 818801286.7 | F6: =+IF(F3="","",IF(VALUE(RIGHT(F3,LEN(F3)-FIND(" ",F3)))=1,DATOS!$F$6*SUPUESTOS!F53+'FLUJO DE CAJA'!F36,BALANCE!E6+'FLUJO DE CAJA'!F36)) -> 210940508.9 | G6: =+IF(G3="","",IF(VALUE(RIGHT(G3,LEN(G3)-FIND(" ",G3)))=1,DATOS!$F$6*SUPUESTOS!G53+'FLUJO DE CAJA'!G36,BALANCE!F6+'FLUJO DE CAJA'!G36)) -> 1710870100 | H6: =+IF(H3="","",IF(VALUE(RIGHT(H3,LEN(H3)-FIND(" ",H3)))=1,DATOS!$F$6*SUPUESTOS!H53+'FLUJO DE CAJA'!H36,BALANCE!G6+'FLUJO DE CAJA'!H36)) ->  | I6: =+IF(I3="","",IF(VALUE(RIGHT(I3,LEN(I3)-FIND(" ",I3)))=1,DATOS!$F$6*SUPUESTOS!I53+'FLUJO DE CAJA'!I36,BALANCE!H6+'FLUJO DE CAJA'!I36)) ->  | J6: =+IF(J3="","",IF(VALUE(RIGHT(J3,LEN(J3)-FIND(" ",J3)))=1,DATOS!$F$6*SUPUESTOS!J53+'FLUJO DE CAJA'!J36,BALANCE!I6+'FLUJO DE CAJA'!J36)) ->  | K6: =+IF(K3="","",IF(VALUE(RIGHT(K3,LEN(K3)-FIND(" ",K3)))=1,DATOS!$F$6*SUPUESTOS!K53+'FLUJO DE CAJA'!K36,BALANCE!J6+'FLUJO DE CAJA'!K36)) ->  | L6: =+IF(L3="","",IF(VALUE(RIGHT(L3,LEN(L3)-FIND(" ",L3)))=1,DATOS!$F$6*SUPUESTOS!L53+'FLUJO DE CAJA'!L36,BALANCE!K6+'FLUJO DE CAJA'!L36)) -> 
B7: Excedentes (requerimientos) de efectivo | C7: =+IF(C3="","",0) -> 0 | D7: 0 | E7: 0 | F7: 0 | G7: 0
B8: Deudores comerciales y otras cuentas por cobrar | C8: =IF(C3="","",('P&G'!C5/360)*SUPUESTOS!C40) -> 0 | D8: =IF(D3="","",('P&G'!D5/360)*SUPUESTOS!D40) -> 26872766.67 | E8: =IF(E3="","",('P&G'!E5/360)*SUPUESTOS!E40) -> 28485132.67 | F8: =IF(F3="","",('P&G'!F5/360)*SUPUESTOS!F40) -> 30194240.63 | G8: =IF(G3="","",('P&G'!G5/360)*SUPUESTOS!G40) -> 224041265.4 | H8: =IF(H3="","",('P&G'!H5/360)*SUPUESTOS!H40) ->  | I8: =IF(I3="","",('P&G'!I5/360)*SUPUESTOS!I40) ->  | J8: =IF(J3="","",('P&G'!J5/360)*SUPUESTOS!J40) ->  | K8: =IF(K3="","",('P&G'!K5/360)*SUPUESTOS!K40) ->  | L8: =IF(L3="","",('P&G'!L5/360)*SUPUESTOS!L40) -> 
B9: Inventario | C9: =+IF(C3="","",IF(VALUE(RIGHT(C3,LEN(C3)-FIND(" ",C3)))=1,IF((SUPUESTOS!C4+SUPUESTOS!C5+SUPUESTOS!C6-'KPI''S'!C17)<0,0,SUPUESTOS!C4+SUPUESTOS!C5+SUPUESTOS!C6-'KPI''S'!C17),IF((B9+SUPUESTOS!C4+SUPUESTOS!C5+SUPUESTOS!C6-'KPI''S'!C17)<0,0,B9+SUPUESTOS!C4+SUPUESTOS!C5+SUPUESTOS!C6-'KPI''S'!C17))) -> 545300000 | D9: =+IF(D3="","",IF(VALUE(RIGHT(D3,LEN(D3)-FIND(" ",D3)))=1,IF((SUPUESTOS!D4+SUPUESTOS!D5+SUPUESTOS!D6-'KPI''S'!D17)<0,0,SUPUESTOS!D4+SUPUESTOS!D5+SUPUESTOS!D6-'KPI''S'!D17),IF((C9+SUPUESTOS!D4+SUPUESTOS!D5+SUPUESTOS!D6-'KPI''S'!D17)<0,0,C9+SUPUESTOS!D4+SUPUESTOS!D5+SUPUESTOS!D6-'KPI''S'!D17))) -> 222826800 | E9: =+IF(E3="","",IF(VALUE(RIGHT(E3,LEN(E3)-FIND(" ",E3)))=1,IF((SUPUESTOS!E4+SUPUESTOS!E5+SUPUESTOS!E6-'KPI''S'!E17)<0,0,SUPUESTOS!E4+SUPUESTOS!E5+SUPUESTOS!E6-'KPI''S'!E17),IF((D9+SUPUESTOS!E4+SUPUESTOS!E5+SUPUESTOS!E6-'KPI''S'!E17)<0,0,D9+SUPUESTOS!E4+SUPUESTOS!E5+SUPUESTOS!E6-'KPI''S'!E17))) -> 0 | F9: =+IF(F3="","",IF(VALUE(RIGHT(F3,LEN(F3)-FIND(" ",F3)))=1,IF((SUPUESTOS!F4+SUPUESTOS!F5+SUPUESTOS!F6-'KPI''S'!F17)<0,0,SUPUESTOS!F4+SUPUESTOS!F5+SUPUESTOS!F6-'KPI''S'!F17),IF((E9+SUPUESTOS!F4+SUPUESTOS!F5+SUPUESTOS!F6-'KPI''S'!F17)<0,0,E9+SUPUESTOS!F4+SUPUESTOS!F5+SUPUESTOS!F6-'KPI''S'!F17))) -> 0 | G9: =+IF(G3="","",IF(VALUE(RIGHT(G3,LEN(G3)-FIND(" ",G3)))=1,IF((SUPUESTOS!G4+SUPUESTOS!G5+SUPUESTOS!G6-'KPI''S'!G17)<0,0,SUPUESTOS!G4+SUPUESTOS!G5+SUPUESTOS!G6-'KPI''S'!G17),IF((F9+SUPUESTOS!G4+SUPUESTOS!G5+SUPUESTOS!G6-'KPI''S'!G17)<0,0,F9+SUPUESTOS!G4+SUPUESTOS!G5+SUPUESTOS!G6-'KPI''S'!G17))) -> 0 | H9: =+IF(H3="","",IF(VALUE(RIGHT(H3,LEN(H3)-FIND(" ",H3)))=1,IF((SUPUESTOS!H4+SUPUESTOS!H5+SUPUESTOS!H6-'KPI''S'!H17)<0,0,SUPUESTOS!H4+SUPUESTOS!H5+SUPUESTOS!H6-'KPI''S'!H17),IF((G9+SUPUESTOS!H4+SUPUESTOS!H5+SUPUESTOS!H6-'KPI''S'!H17)<0,0,G9+SUPUESTOS!H4+SUPUESTOS!H5+SUPUESTOS!H6-'KPI''S'!H17))) ->  | I9: =+IF(I3="","",IF(VALUE(RIGHT(I3,LEN(I3)-FIND(" ",I3)))=1,IF((SUPUESTOS!I4+SUPUESTOS!I5+SUPUESTOS!I6-'KPI''S'!I17)<0,0,SUPUESTOS!I4+SUPUESTOS!I5+SUPUESTOS!I6-'KPI''S'!I17),IF((H9+SUPUESTOS!I4+SUPUESTOS!I5+SUPUESTOS!I6-'KPI''S'!I17)<0,0,H9+SUPUESTOS!I4+SUPUESTOS!I5+SUPUESTOS!I6-'KPI''S'!I17))) ->  | J9: =+IF(J3="","",IF(VALUE(RIGHT(J3,LEN(J3)-FIND(" ",J3)))=1,IF((SUPUESTOS!J4+SUPUESTOS!J5+SUPUESTOS!J6-'KPI''S'!J17)<0,0,SUPUESTOS!J4+SUPUESTOS!J5+SUPUESTOS!J6-'KPI''S'!J17),IF((I9+SUPUESTOS!J4+SUPUESTOS!J5+SUPUESTOS!J6-'KPI''S'!J17)<0,0,I9+SUPUESTOS!J4+SUPUESTOS!J5+SUPUESTOS!J6-'KPI''S'!J17))) ->  | K9: =+IF(K3="","",IF(VALUE(RIGHT(K3,LEN(K3)-FIND(" ",K3)))=1,IF((SUPUESTOS!K4+SUPUESTOS!K5+SUPUESTOS!K6-'KPI''S'!K17)<0,0,SUPUESTOS!K4+SUPUESTOS!K5+SUPUESTOS!K6-'KPI''S'!K17),IF((J9+SUPUESTOS!K4+SUPUESTOS!K5+SUPUESTOS!K6-'KPI''S'!K17)<0,0,J9+SUPUESTOS!K4+SUPUESTOS!K5+SUPUESTOS!K6-'KPI''S'!K17))) ->  | L9: =+IF(L3="","",IF(VALUE(RIGHT(L3,LEN(L3)-FIND(" ",L3)))=1,IF((SUPUESTOS!L4+SUPUESTOS!L5+SUPUESTOS!L6-'KPI''S'!L17)<0,0,SUPUESTOS!L4+SUPUESTOS!L5+SUPUESTOS!L6-'KPI''S'!L17),IF((K9+SUPUESTOS!L4+SUPUESTOS!L5+SUPUESTOS!L6-'KPI''S'!L17)<0,0,K9+SUPUESTOS!L4+SUPUESTOS!L5+SUPUESTOS!L6-'KPI''S'!L17))) -> 
B10: Activos por impuestos | C10: =+IF(C3="","",0) -> 0 | D10: 0 | E10: 0 | F10: 0 | G10: 0
B11: Otros activos no financieros | C11: =+IF(C3="","",0) -> 0 | D11: 0 | E11: 0 | F11: 0 | G11: 0
B12: Total Activo Corriente | C12: =IF(C3="","",SUM(C6:C11)) -> 893690191.5 | D12: 1103222864 | E12: 847286419.4 | F12: 241134749.5 | G12: 1934911366
B13: Activo No Corriente
B14: Propiedad, Planta y Equipo (Neto) | C14: =+IF(C3="","",SUPUESTOS!C51) -> 36162000 | D14: =+IF(D3="","",SUPUESTOS!D51) -> 32545800 | E14: =+IF(E3="","",SUPUESTOS!E51) -> 29291220 | F14: =+IF(F3="","",SUPUESTOS!F51) -> 26362098 | G14: =+IF(G3="","",SUPUESTOS!G51) -> 23725888.2 | H14: =+IF(H3="","",SUPUESTOS!H51) ->  | I14: =+IF(I3="","",SUPUESTOS!I51) ->  | J14: =+IF(J3="","",SUPUESTOS!J51) ->  | K14: =+IF(K3="","",SUPUESTOS!K51) ->  | L14: =+IF(L3="","",SUPUESTOS!L51) -> 
B15: Inmuebles (Neto) | C15: =+IF(C3="","",0) -> 0 | D15: 0 | E15: 0 | F15: 0 | G15: 0
B16: Depreciaciónes + Amortizaciónes acumuladas | C16: =+IF(C3="","",IF(VALUE(RIGHT(C3,LEN(C3)-FIND(" ",C3)))=1,'P&G'!C7+'P&G'!C8+'P&G'!C11+'P&G'!C12,BALANCE!B16+'P&G'!C7+'P&G'!C8+'P&G'!C11+'P&G'!C12)) -> 4520250 | D16: =+IF(D3="","",IF(VALUE(RIGHT(D3,LEN(D3)-FIND(" ",D3)))=1,'P&G'!D7+'P&G'!D8+'P&G'!D11+'P&G'!D12,BALANCE!C16+'P&G'!D7+'P&G'!D8+'P&G'!D11+'P&G'!D12)) -> 8849456.554 | E16: =+IF(E3="","",IF(VALUE(RIGHT(E3,LEN(E3)-FIND(" ",E3)))=1,'P&G'!E7+'P&G'!E8+'P&G'!E11+'P&G'!E12,BALANCE!D16+'P&G'!E7+'P&G'!E8+'P&G'!E11+'P&G'!E12)) -> 14076055.37 | F16: =+IF(F3="","",IF(VALUE(RIGHT(F3,LEN(F3)-FIND(" ",F3)))=1,'P&G'!F7+'P&G'!F8+'P&G'!F11+'P&G'!F12,BALANCE!E16+'P&G'!F7+'P&G'!F8+'P&G'!F11+'P&G'!F12)) -> 19030469.06 | G16: =+IF(G3="","",IF(VALUE(RIGHT(G3,LEN(G3)-FIND(" ",G3)))=1,'P&G'!G7+'P&G'!G8+'P&G'!G11+'P&G'!G12,BALANCE!F16+'P&G'!G7+'P&G'!G8+'P&G'!G11+'P&G'!G12)) -> 22348812.53 | H16: =+IF(H3="","",IF(VALUE(RIGHT(H3,LEN(H3)-FIND(" ",H3)))=1,'P&G'!H7+'P&G'!H8+'P&G'!H11+'P&G'!H12,BALANCE!G16+'P&G'!H7+'P&G'!H8+'P&G'!H11+'P&G'!H12)) ->  | I16: =+IF(I3="","",IF(VALUE(RIGHT(I3,LEN(I3)-FIND(" ",I3)))=1,'P&G'!I7+'P&G'!I8+'P&G'!I11+'P&G'!I12,BALANCE!H16+'P&G'!I7+'P&G'!I8+'P&G'!I11+'P&G'!I12)) ->  | J16: =+IF(J3="","",IF(VALUE(RIGHT(J3,LEN(J3)-FIND(" ",J3)))=1,'P&G'!J7+'P&G'!J8+'P&G'!J11+'P&G'!J12,BALANCE!I16+'P&G'!J7+'P&G'!J8+'P&G'!J11+'P&G'!J12)) ->  | K16: =+IF(K3="","",IF(VALUE(RIGHT(K3,LEN(K3)-FIND(" ",K3)))=1,'P&G'!K7+'P&G'!K8+'P&G'!K11+'P&G'!K12,BALANCE!J16+'P&G'!K7+'P&G'!K8+'P&G'!K11+'P&G'!K12)) ->  | L16: =+IF(L3="","",IF(VALUE(RIGHT(L3,LEN(L3)-FIND(" ",L3)))=1,'P&G'!L7+'P&G'!L8+'P&G'!L11+'P&G'!L12,BALANCE!K16+'P&G'!L7+'P&G'!L8+'P&G'!L11+'P&G'!L12)) -> 
B17: Activos intangibles (Neto) | C17: =+IF(C3="","",SUPUESTOS!C52) -> 9542750 | D17: =+IF(D3="","",SUPUESTOS!D52) -> 9065612.5 | E17: =+IF(E3="","",SUPUESTOS!E52) -> 8612331.875 | F17: =+IF(F3="","",SUPUESTOS!F52) -> 8181715.281 | G17: =+IF(G3="","",SUPUESTOS!G52) -> 7772629.517 | H17: =+IF(H3="","",SUPUESTOS!H52) ->  | I17: =+IF(I3="","",SUPUESTOS!I52) ->  | J17: =+IF(J3="","",SUPUESTOS!J52) ->  | K17: =+IF(K3="","",SUPUESTOS!K52) ->  | L17: =+IF(L3="","",SUPUESTOS!L52) -> 
B18: Inversiones financieras | C18: =+IF(C3="","",0) -> 0 | D18: 0 | E18: 0 | F18: 0 | G18: 0
B19: Deudores comerciales-LP | C19: =+IF(C3="","",0) -> 0 | D19: 0 | E19: 0 | F19: 0 | G19: 0
B20: Activos por impuestos diferidos | C20: =+IF(C3="","",IF(VALUE(RIGHT(C3,LEN(C3)-FIND(" ",C3)))=1,IF('P&G'!C18<0,ABS('P&G'!C18),0),IF('P&G'!C18<0,ABS('P&G'!C18)+B20,IF((B20-'P&G'!C18)>0,(B20-'P&G'!C18),0)))) -> 5208020.491 | D20: =+IF(D3="","",IF(VALUE(RIGHT(D3,LEN(D3)-FIND(" ",D3)))=1,IF('P&G'!D18<0,ABS('P&G'!D18),0),IF('P&G'!D18<0,ABS('P&G'!D18)+C20,IF((C20-'P&G'!D18)>0,(C20-'P&G'!D18),0)))) -> 0 | E20: =+IF(E3="","",IF(VALUE(RIGHT(E3,LEN(E3)-FIND(" ",E3)))=1,IF('P&G'!E18<0,ABS('P&G'!E18),0),IF('P&G'!E18<0,ABS('P&G'!E18)+D20,IF((D20-'P&G'!E18)>0,(D20-'P&G'!E18),0)))) -> 218865430.1 | F20: =+IF(F3="","",IF(VALUE(RIGHT(F3,LEN(F3)-FIND(" ",F3)))=1,IF('P&G'!F18<0,ABS('P&G'!F18),0),IF('P&G'!F18<0,ABS('P&G'!F18)+E20,IF((E20-'P&G'!F18)>0,(E20-'P&G'!F18),0)))) -> 462734159 | G20: =+IF(G3="","",IF(VALUE(RIGHT(G3,LEN(G3)-FIND(" ",G3)))=1,IF('P&G'!G18<0,ABS('P&G'!G18),0),IF('P&G'!G18<0,ABS('P&G'!G18)+F20,IF((F20-'P&G'!G18)>0,(F20-'P&G'!G18),0)))) -> 0 | H20: =+IF(H3="","",IF(VALUE(RIGHT(H3,LEN(H3)-FIND(" ",H3)))=1,IF('P&G'!H18<0,ABS('P&G'!H18),0),IF('P&G'!H18<0,ABS('P&G'!H18)+G20,IF((G20-'P&G'!H18)>0,(G20-'P&G'!H18),0)))) ->  | I20: =+IF(I3="","",IF(VALUE(RIGHT(I3,LEN(I3)-FIND(" ",I3)))=1,IF('P&G'!I18<0,ABS('P&G'!I18),0),IF('P&G'!I18<0,ABS('P&G'!I18)+H20,IF((H20-'P&G'!I18)>0,(H20-'P&G'!I18),0)))) ->  | J20: =+IF(J3="","",IF(VALUE(RIGHT(J3,LEN(J3)-FIND(" ",J3)))=1,IF('P&G'!J18<0,ABS('P&G'!J18),0),IF('P&G'!J18<0,ABS('P&G'!J18)+I20,IF((I20-'P&G'!J18)>0,(I20-'P&G'!J18),0)))) ->  | K20: =+IF(K3="","",IF(VALUE(RIGHT(K3,LEN(K3)-FIND(" ",K3)))=1,IF('P&G'!K18<0,ABS('P&G'!K18),0),IF('P&G'!K18<0,ABS('P&G'!K18)+J20,IF((J20-'P&G'!K18)>0,(J20-'P&G'!K18),0)))) ->  | L20: =+IF(L3="","",IF(VALUE(RIGHT(L3,LEN(L3)-FIND(" ",L3)))=1,IF('P&G'!L18<0,ABS('P&G'!L18),0),IF('P&G'!L18<0,ABS('P&G'!L18)+K20,IF((K20-'P&G'!L18)>0,(K20-'P&G'!L18),0)))) -> 
B21: Otros activos-LP | C21: =+IF(C3="","",0) -> 0 | D21: 0 | E21: 0 | F21: 0 | G21: 0
B22: Total Activo No Corriente | C22: =IF(C3="","",SUM(C14:C15,C17:C21)) -> 50912770.49 | D22: 41611412.5 | E22: 256768981.9 | F22: 497277972.3 | G22: 31498517.72
B23: TOTAL ACTIVO | C23: =+IF(C3="","",C12+C22) -> 944602961.9 | D23: 1144834277 | E23: 1104055401 | F23: 738412721.8 | G23: 1966409883
B25: PASIVO
B26: Pasivo Corriente
B27: Pasivos financieros CP | C27: =+IF(C3="","",SUPUESTOS!C21*SUPUESTOS!C23) -> 0 | D27: =+IF(D3="","",SUPUESTOS!D21*SUPUESTOS!D23) -> 13508864.02 | E27: =+IF(E3="","",SUPUESTOS!E21*SUPUESTOS!E23) -> 86323489.76 | F27: =+IF(F3="","",SUPUESTOS!F21*SUPUESTOS!F23) -> 104049339.5 | G27: =+IF(G3="","",SUPUESTOS!G21*SUPUESTOS!G23) -> 0 | H27: =+IF(H3="","",SUPUESTOS!H21*SUPUESTOS!H23) ->  | I27: =+IF(I3="","",SUPUESTOS!I21*SUPUESTOS!I23) ->  | J27: =+IF(J3="","",SUPUESTOS!J21*SUPUESTOS!J23) ->  | K27: =+IF(K3="","",SUPUESTOS!K21*SUPUESTOS!K23) ->  | L27: =+IF(L3="","",SUPUESTOS!L21*SUPUESTOS!L23) -> 
B28: Pasivos comerciales y otras cuentas por pagar | C28: =+IF(C3="","",'P&G'!C5/360*SUPUESTOS!C41) -> 0 | D28: =+IF(D3="","",'P&G'!D5/360*SUPUESTOS!D41) -> 26872766.67 | E28: =+IF(E3="","",'P&G'!E5/360*SUPUESTOS!E41) -> 28485132.67 | F28: =+IF(F3="","",'P&G'!F5/360*SUPUESTOS!F41) -> 30194240.63 | G28: =+IF(G3="","",'P&G'!G5/360*SUPUESTOS!G41) -> 224041265.4 | H28: =+IF(H3="","",'P&G'!H5/360*SUPUESTOS!H41) ->  | I28: =+IF(I3="","",'P&G'!I5/360*SUPUESTOS!I41) ->  | J28: =+IF(J3="","",'P&G'!J5/360*SUPUESTOS!J41) ->  | K28: =+IF(K3="","",'P&G'!K5/360*SUPUESTOS!K41) ->  | L28: =+IF(L3="","",'P&G'!L5/360*SUPUESTOS!L41) -> 
B29: Otras provisiones | C29: =+IF(C3="","",0) -> 0 | D29: 0 | E29: 0 | F29: 0 | G29: 0
B30: Pasivos por impuestos-CP | C30: =+IF(C3="","",0) -> 0 | D30: 0 | E30: 0 | F30: 0 | G30: 0
B31: Beneficios a empleados | C31: =+IF(C3="","",IF(VALUE(RIGHT(C3,LEN(C3)-FIND(" ",C3)))=1,IF('P&G'!C19>0,'P&G'!C19*SUPUESTOS!C55,0),IF('P&G'!B19>0,'P&G'!B19*SUPUESTOS!B55+IF('P&G'!C19>0,'P&G'!C19*SUPUESTOS!C55,0),IF('P&G'!C19>0,'P&G'!C19*SUPUESTOS!C55,0)))) -> 0 | D31: =+IF(D3="","",IF(VALUE(RIGHT(D3,LEN(D3)-FIND(" ",D3)))=1,IF('P&G'!D19>0,'P&G'!D19*SUPUESTOS!D55,0),IF('P&G'!C19>0,'P&G'!C19*SUPUESTOS!C55+IF('P&G'!D19>0,'P&G'!D19*SUPUESTOS!D55,0),IF('P&G'!D19>0,'P&G'!D19*SUPUESTOS!D55,0)))) -> 2054645.204 | E31: =+IF(E3="","",IF(VALUE(RIGHT(E3,LEN(E3)-FIND(" ",E3)))=1,IF('P&G'!E19>0,'P&G'!E19*SUPUESTOS!E55,0),IF('P&G'!D19>0,'P&G'!D19*SUPUESTOS!D55+IF('P&G'!E19>0,'P&G'!E19*SUPUESTOS!E55,0),IF('P&G'!E19>0,'P&G'!E19*SUPUESTOS!E55,0)))) -> 2054645.204 | F31: =+IF(F3="","",IF(VALUE(RIGHT(F3,LEN(F3)-FIND(" ",F3)))=1,IF('P&G'!F19>0,'P&G'!F19*SUPUESTOS!F55,0),IF('P&G'!E19>0,'P&G'!E19*SUPUESTOS!E55+IF('P&G'!F19>0,'P&G'!F19*SUPUESTOS!F55,0),IF('P&G'!F19>0,'P&G'!F19*SUPUESTOS!F55,0)))) -> 0 | G31: =+IF(G3="","",IF(VALUE(RIGHT(G3,LEN(G3)-FIND(" ",G3)))=1,IF('P&G'!G19>0,'P&G'!G19*SUPUESTOS!G55,0),IF('P&G'!F19>0,'P&G'!F19*SUPUESTOS!F55+IF('P&G'!G19>0,'P&G'!G19*SUPUESTOS!G55,0),IF('P&G'!G19>0,'P&G'!G19*SUPUESTOS!G55,0)))) -> 30182462.79 | H31: =+IF(H3="","",IF(VALUE(RIGHT(H3,LEN(H3)-FIND(" ",H3)))=1,IF('P&G'!H19>0,'P&G'!H19*SUPUESTOS!H55,0),IF('P&G'!G19>0,'P&G'!G19*SUPUESTOS!G55+IF('P&G'!H19>0,'P&G'!H19*SUPUESTOS!H55,0),IF('P&G'!H19>0,'P&G'!H19*SUPUESTOS!H55,0)))) ->  | I31: =+IF(I3="","",IF(VALUE(RIGHT(I3,LEN(I3)-FIND(" ",I3)))=1,IF('P&G'!I19>0,'P&G'!I19*SUPUESTOS!I55,0),IF('P&G'!H19>0,'P&G'!H19*SUPUESTOS!H55+IF('P&G'!I19>0,'P&G'!I19*SUPUESTOS!I55,0),IF('P&G'!I19>0,'P&G'!I19*SUPUESTOS!I55,0)))) ->  | J31: =+IF(J3="","",IF(VALUE(RIGHT(J3,LEN(J3)-FIND(" ",J3)))=1,IF('P&G'!J19>0,'P&G'!J19*SUPUESTOS!J55,0),IF('P&G'!I19>0,'P&G'!I19*SUPUESTOS!I55+IF('P&G'!J19>0,'P&G'!J19*SUPUESTOS!J55,0),IF('P&G'!J19>0,'P&G'!J19*SUPUESTOS!J55,0)))) ->  | K31: =+IF(K3="","",IF(VALUE(RIGHT(K3,LEN(K3)-FIND(" ",K3)))=1,IF('P&G'!K19>0,'P&G'!K19*SUPUESTOS!K55,0),IF('P&G'!J19>0,'P&G'!J19*SUPUESTOS!J55+IF('P&G'!K19>0,'P&G'!K19*SUPUESTOS!K55,0),IF('P&G'!K19>0,'P&G'!K19*SUPUESTOS!K55,0)))) ->  | L31: =+IF(L3="","",IF(VALUE(RIGHT(L3,LEN(L3)-FIND(" ",L3)))=1,IF('P&G'!L19>0,'P&G'!L19*SUPUESTOS!L55,0),IF('P&G'!K19>0,'P&G'!K19*SUPUESTOS!K55+IF('P&G'!L19>0,'P&G'!L19*SUPUESTOS!L55,0),IF('P&G'!L19>0,'P&G'!L19*SUPUESTOS!L55,0)))) -> 
B32: Otros pasivos | C32: =+IF(C3="","",0) -> 0 | D32: 0 | E32: 0 | F32: 0 | G32: 0
B33: Total Pasivo Corriente | C33: =IF(C3="","",SUM(C27:C32)) -> 0 | D33: 42436275.89 | E33: 116863267.6 | F33: 134243580.1 | G33: 254223728.2
B34: Pasivo No Corriente
B35: Pasivos financieros LP | C35: =+IF(C3="","",SUPUESTOS!C21*SUPUESTOS!C24) -> 0 | D35: =+IF(D3="","",SUPUESTOS!D21*SUPUESTOS!D24) -> 54035456.09 | E35: =+IF(E3="","",SUPUESTOS!E21*SUPUESTOS!E24) -> 345293959 | F35: =+IF(F3="","",SUPUESTOS!F21*SUPUESTOS!F24) -> 416197357.8 | G35: =+IF(G3="","",SUPUESTOS!G21*SUPUESTOS!G24) -> 0 | H35: =+IF(H3="","",SUPUESTOS!H21*SUPUESTOS!H24) ->  | I35: =+IF(I3="","",SUPUESTOS!I21*SUPUESTOS!I24) ->  | J35: =+IF(J3="","",SUPUESTOS!J21*SUPUESTOS!J24) ->  | K35: =+IF(K3="","",SUPUESTOS!K21*SUPUESTOS!K24) ->  | L35: =+IF(L3="","",SUPUESTOS!L21*SUPUESTOS!L24) -> 
B36: Otras provisiones no corrientes | C36: =+IF(C3="","",0) -> 0 | D36: 0 | E36: 0 | F36: 0 | G36: 0
B37: Pasivos por impuestos diferidos | C37: =+IF(C3="","",0) -> 0 | D37: 0 | E37: 0 | F37: 0 | G37: 0
B38: Provisiones por beneficios a empleados | C38: =+IF(C3="","",IF(VALUE(RIGHT(C3,LEN(C3)-FIND(" ",C3)))=1,IF('P&G'!C19>0,'P&G'!C19*SUPUESTOS!C56,0),IF('P&G'!B19>0,'P&G'!B19*SUPUESTOS!B56+IF('P&G'!C19>0,'P&G'!C19*SUPUESTOS!C56,0),IF('P&G'!C19>0,'P&G'!C19*SUPUESTOS!C56,0)))) -> 0 | D38: =+IF(D3="","",IF(VALUE(RIGHT(D3,LEN(D3)-FIND(" ",D3)))=1,IF('P&G'!D19>0,'P&G'!D19*SUPUESTOS!D56,0),IF('P&G'!C19>0,'P&G'!C19*SUPUESTOS!C56+IF('P&G'!D19>0,'P&G'!D19*SUPUESTOS!D56,0),IF('P&G'!D19>0,'P&G'!D19*SUPUESTOS!D56,0)))) -> 1027322.602 | E38: =+IF(E3="","",IF(VALUE(RIGHT(E3,LEN(E3)-FIND(" ",E3)))=1,IF('P&G'!E19>0,'P&G'!E19*SUPUESTOS!E56,0),IF('P&G'!D19>0,'P&G'!D19*SUPUESTOS!D56+IF('P&G'!E19>0,'P&G'!E19*SUPUESTOS!E56,0),IF('P&G'!E19>0,'P&G'!E19*SUPUESTOS!E56,0)))) -> 1027322.602 | F38: =+IF(F3="","",IF(VALUE(RIGHT(F3,LEN(F3)-FIND(" ",F3)))=1,IF('P&G'!F19>0,'P&G'!F19*SUPUESTOS!F56,0),IF('P&G'!E19>0,'P&G'!E19*SUPUESTOS!E56+IF('P&G'!F19>0,'P&G'!F19*SUPUESTOS!F56,0),IF('P&G'!F19>0,'P&G'!F19*SUPUESTOS!F56,0)))) -> 0 | G38: =+IF(G3="","",IF(VALUE(RIGHT(G3,LEN(G3)-FIND(" ",G3)))=1,IF('P&G'!G19>0,'P&G'!G19*SUPUESTOS!G56,0),IF('P&G'!F19>0,'P&G'!F19*SUPUESTOS!F56+IF('P&G'!G19>0,'P&G'!G19*SUPUESTOS!G56,0),IF('P&G'!G19>0,'P&G'!G19*SUPUESTOS!G56,0)))) -> 15091231.4 | H38: =+IF(H3="","",IF(VALUE(RIGHT(H3,LEN(H3)-FIND(" ",H3)))=1,IF('P&G'!H19>0,'P&G'!H19*SUPUESTOS!H56,0),IF('P&G'!G19>0,'P&G'!G19*SUPUESTOS!G56+IF('P&G'!H19>0,'P&G'!H19*SUPUESTOS!H56,0),IF('P&G'!H19>0,'P&G'!H19*SUPUESTOS!H56,0)))) ->  | I38: =+IF(I3="","",IF(VALUE(RIGHT(I3,LEN(I3)-FIND(" ",I3)))=1,IF('P&G'!I19>0,'P&G'!I19*SUPUESTOS!I56,0),IF('P&G'!H19>0,'P&G'!H19*SUPUESTOS!H56+IF('P&G'!I19>0,'P&G'!I19*SUPUESTOS!I56,0),IF('P&G'!I19>0,'P&G'!I19*SUPUESTOS!I56,0)))) ->  | J38: =+IF(J3="","",IF(VALUE(RIGHT(J3,LEN(J3)-FIND(" ",J3)))=1,IF('P&G'!J19>0,'P&G'!J19*SUPUESTOS!J56,0),IF('P&G'!I19>0,'P&G'!I19*SUPUESTOS!I56+IF('P&G'!J19>0,'P&G'!J19*SUPUESTOS!J56,0),IF('P&G'!J19>0,'P&G'!J19*SUPUESTOS!J56,0)))) ->  | K38: =+IF(K3="","",IF(VALUE(RIGHT(K3,LEN(K3)-FIND(" ",K3)))=1,IF('P&G'!K19>0,'P&G'!K19*SUPUESTOS!K56,0),IF('P&G'!J19>0,'P&G'!J19*SUPUESTOS!J56+IF('P&G'!K19>0,'P&G'!K19*SUPUESTOS!K56,0),IF('P&G'!K19>0,'P&G'!K19*SUPUESTOS!K56,0)))) ->  | L38: =+IF(L3="","",IF(VALUE(RIGHT(L3,LEN(L3)-FIND(" ",L3)))=1,IF('P&G'!L19>0,'P&G'!L19*SUPUESTOS!L56,0),IF('P&G'!K19>0,'P&G'!K19*SUPUESTOS!K56+IF('P&G'!L19>0,'P&G'!L19*SUPUESTOS!L56,0),IF('P&G'!L19>0,'P&G'!L19*SUPUESTOS!L56,0)))) -> 
B39: Total Pasivo No Corriente | C39: =IF(C3="","",SUM(C35:C38)) -> 0 | D39: 55062778.69 | E39: 346321281.6 | F39: 416197357.8 | G39: 15091231.4
B40: TOTAL PASIVO | C40: =IF(C3="","",C39+C33) -> 0 | D40: 97499054.58 | E40: 463184549.3 | F40: 550440937.9 | G40: 269314959.6
B42: PATRIMONIO
B43: Capital suscrito y pagado | C43: =+IF(C3="","",DATOS!$F$6-DATOS!$F$6*(SUPUESTOS!$C$49+SUPUESTOS!$C$50)) -> 954275000 | D43: =+IF(D3="","",DATOS!$F$6-DATOS!$F$6*(SUPUESTOS!$C$49+SUPUESTOS!$C$50)) -> 954275000 | E43: =+IF(E3="","",DATOS!$F$6-DATOS!$F$6*(SUPUESTOS!$C$49+SUPUESTOS!$C$50)) -> 954275000 | F43: =+IF(F3="","",DATOS!$F$6-DATOS!$F$6*(SUPUESTOS!$C$49+SUPUESTOS!$C$50)) -> 954275000 | G43: =+IF(G3="","",DATOS!$F$6-DATOS!$F$6*(SUPUESTOS!$C$49+SUPUESTOS!$C$50)) -> 954275000 | H43: =+IF(H3="","",DATOS!$F$6-DATOS!$F$6*(SUPUESTOS!$C$49+SUPUESTOS!$C$50)) ->  | I43: =+IF(I3="","",DATOS!$F$6-DATOS!$F$6*(SUPUESTOS!$C$49+SUPUESTOS!$C$50)) ->  | J43: =+IF(J3="","",DATOS!$F$6-DATOS!$F$6*(SUPUESTOS!$C$49+SUPUESTOS!$C$50)) ->  | K43: =+IF(K3="","",DATOS!$F$6-DATOS!$F$6*(SUPUESTOS!$C$49+SUPUESTOS!$C$50)) ->  | L43: =+IF(L3="","",DATOS!$F$6-DATOS!$F$6*(SUPUESTOS!$C$49+SUPUESTOS!$C$50)) -> 
B44: Primas en colocación de acciones | C44: =+IF(C3="","",0) -> 0 | D44: 0 | E44: 0 | F44: 0 | G44: 0
B45: Reservas | C45: =+IF(C3="","",0) -> 0 | D45: 0 | E45: 0 | F45: 0 | G45: 0
B46: Ganancia neta del periodo | C46: =+IF(C3="","",'P&G'!C19) -> -9672038.054 | D46: =+IF(D3="","",'P&G'!D19) -> 102732260.2 | E46: =+IF(E3="","",'P&G'!E19) -> -406464370.1 | F46: =+IF(F3="","",'P&G'!F19) -> -452899068.1 | G46: =+IF(G3="","",'P&G'!G19) -> 1509123140 | H46: =+IF(H3="","",'P&G'!H19) ->  | I46: =+IF(I3="","",'P&G'!I19) ->  | J46: =+IF(J3="","",'P&G'!J19) ->  | K46: =+IF(K3="","",'P&G'!K19) ->  | L46: =+IF(L3="","",'P&G'!L19) -> 
B47: Resultados acumulados | C47: =+IF(C3="","",IF(VALUE(RIGHT(C3,LEN(C3)-FIND(" ",C3)))=1,C46,B47+C46)) -> -9672038.054 | D47: 93060222.13 | E47: -313404148 | F47: -766303216.1 | G47: 742819923.6
B48: Otro resultado integral | C48: =+IF(C3="","",0) -> 0 | D48: 0 | E48: 0 | F48: 0 | G48: 0
B49: Ganancias acumuladas balance de apertura | C49: =+IF(C3="","",0) -> 0 | D49: 0 | E49: 0 | F49: 0 | G49: 0
B50: Participaciones no controlada | C50: =+IF(C3="","",0) -> 0 | D50: 0 | E50: 0 | F50: 0 | G50: 0
B51: TOTAL PATRIMONIO | C51: =IF(C3="","",SUM(C43:C45,C47:C50)) -> 944602961.9 | D51: 1047335222 | E51: 640870852 | F51: 187971783.9 | G51: 1697094924
B52: TOTAL PASIVO + PATRIMONIO | C52: =IF(C3="","",C51+C40) -> 944602961.9 | D52: 1144834277 | E52: 1104055401 | F52: 738412721.8 | G52: 1966409883
B53: Check-------> | C53: =IF(C3="","",C23-C52) -> 0 | D53: 0 | E53: 0 | F53: 0 | G53: 0

Sheet FLUJO DE CAJA
B1: ESTADO DE FLUJO DE CAJA | L1: ROMA INVESTI
C3: =+IF(SUPUESTOS!C3="","",SUPUESTOS!C3) -> Año 1 | D3: =+IF(SUPUESTOS!D3="","",SUPUESTOS!D3) -> Año 2 | E3: =+IF(SUPUESTOS!E3="","",SUPUESTOS!E3) -> Año 3 | F3: =+IF(SUPUESTOS!F3="","",SUPUESTOS!F3) -> Año 4 | G3: =+IF(SUPUESTOS!G3="","",SUPUESTOS!G3) -> Año 5 | H3: =+IF(SUPUESTOS!H3="","",SUPUESTOS!H3) ->  | I3: =+IF(SUPUESTOS!I3="","",SUPUESTOS!I3) ->  | J3: =+IF(SUPUESTOS!J3="","",SUPUESTOS!J3) ->  | K3: =+IF(SUPUESTOS!K3="","",SUPUESTOS!K3) ->  | L3: =+IF(SUPUESTOS!L3="","",SUPUESTOS!L3) -> 
B4: (=) NOPAT | C4: =+IF(C3="","",'P&G'!C13*(1-SUPUESTOS!$C$60)) -> -13620202.05 | D4: =+IF(D3="","",'P&G'!D13*(1-SUPUESTOS!$C$60)) -> 101695642.6 | E4: =+IF(E3="","",'P&G'!E13*(1-SUPUESTOS!$C$60)) -> -402260188.1 | F4: =+IF(F3="","",'P&G'!F13*(1-SUPUESTOS!$C$60)) -> -419913733.6 | G4: =+IF(G3="","",'P&G'!G13*(1-SUPUESTOS!$C$60)) -> 1549764921 | H4: =+IF(H3="","",'P&G'!H13*(1-SUPUESTOS!$C$60)) ->  | I4: =+IF(I3="","",'P&G'!I13*(1-SUPUESTOS!$C$60)) ->  | J4: =+IF(J3="","",'P&G'!J13*(1-SUPUESTOS!$C$60)) ->  | K4: =+IF(K3="","",'P&G'!K13*(1-SUPUESTOS!$C$60)) ->  | L4: =+IF(L3="","",'P&G'!L13*(1-SUPUESTOS!$C$60)) -> 
B5: (+) Depreciaciones | C5: =+IF(C3="","",'P&G'!C7+'P&G'!C11) -> 4018000 | D5: =+IF(D3="","",'P&G'!D7+'P&G'!D11) -> 3852069.054 | E5: =+IF(E3="","",'P&G'!E7+'P&G'!E11) -> 4773318.187 | F5: =+IF(F3="","",'P&G'!F7+'P&G'!F11) -> 4523797.096 | G5: =+IF(G3="","",'P&G'!G7+'P&G'!G11) -> 2909257.714 | H5: =+IF(H3="","",'P&G'!H7+'P&G'!H11) ->  | I5: =+IF(I3="","",'P&G'!I7+'P&G'!I11) ->  | J5: =+IF(J3="","",'P&G'!J7+'P&G'!J11) ->  | K5: =+IF(K3="","",'P&G'!K7+'P&G'!K11) ->  | L5: =+IF(L3="","",'P&G'!L7+'P&G'!L11) -> 
B6: (+) Amortizaciones | C6: =+IF(C3="","",'P&G'!C8+'P&G'!C12) -> 502250 | D6: =+IF(D3="","",'P&G'!D8+'P&G'!D12) -> 477137.5 | E6: =+IF(E3="","",'P&G'!E8+'P&G'!E12) -> 453280.625 | F6: =+IF(F3="","",'P&G'!F8+'P&G'!F12) -> 430616.5938 | G6: =+IF(G3="","",'P&G'!G8+'P&G'!G12) -> 409085.7641 | H6: =+IF(H3="","",'P&G'!H8+'P&G'!H12) ->  | I6: =+IF(I3="","",'P&G'!I8+'P&G'!I12) ->  | J6: =+IF(J3="","",'P&G'!J8+'P&G'!J12) ->  | K6: =+IF(K3="","",'P&G'!K8+'P&G'!K12) ->  | L6: =+IF(L3="","",'P&G'!L8+'P&G'!L12) -> 
B7: (=) Flujo de Caja Bruto | C7: =IF(C3="","",C4+C5+C6) -> -9099952.05 | D7: 106024849.1 | E7: -397033589.2 | F7: -414959319.9 | G7: 1553083264
B8: (-) Incremento en cartera | C8: =+IF(C3="","",IF(VALUE(RIGHT(C3,LEN(C3)-FIND(" ",C3)))=1,BALANCE!C8,BALANCE!C8-BALANCE!B8)) -> 0 | D8: =+IF(D3="","",IF(VALUE(RIGHT(D3,LEN(D3)-FIND(" ",D3)))=1,BALANCE!D8,BALANCE!D8-BALANCE!C8)) -> 26872766.67 | E8: =+IF(E3="","",IF(VALUE(RIGHT(E3,LEN(E3)-FIND(" ",E3)))=1,BALANCE!E8,BALANCE!E8-BALANCE!D8)) -> 1612366 | F8: =+IF(F3="","",IF(VALUE(RIGHT(F3,LEN(F3)-FIND(" ",F3)))=1,BALANCE!F8,BALANCE!F8-BALANCE!E8)) -> 1709107.96 | G8: =+IF(G3="","",IF(VALUE(RIGHT(G3,LEN(G3)-FIND(" ",G3)))=1,BALANCE!G8,BALANCE!G8-BALANCE!F8)) -> 193847024.8 | H8: =+IF(H3="","",IF(VALUE(RIGHT(H3,LEN(H3)-FIND(" ",H3)))=1,BALANCE!H8,BALANCE!H8-BALANCE!G8)) ->  | I8: =+IF(I3="","",IF(VALUE(RIGHT(I3,LEN(I3)-FIND(" ",I3)))=1,BALANCE!I8,BALANCE!I8-BALANCE!H8)) ->  | J8: =+IF(J3="","",IF(VALUE(RIGHT(J3,LEN(J3)-FIND(" ",J3)))=1,BALANCE!J8,BALANCE!J8-BALANCE!I8)) ->  | K8: =+IF(K3="","",IF(VALUE(RIGHT(K3,LEN(K3)-FIND(" ",K3)))=1,BALANCE!K8,BALANCE!K8-BALANCE!J8)) ->  | L8: =+IF(L3="","",IF(VALUE(RIGHT(L3,LEN(L3)-FIND(" ",L3)))=1,BALANCE!L8,BALANCE!L8-BALANCE!K8)) -> 
B9: (-) Incremento en inventario | C9: =+IF(C3="","",IF(VALUE(RIGHT(C3,LEN(C3)-FIND(" ",C3)))=1,BALANCE!C9,BALANCE!C9-BALANCE!B9)) -> 545300000 | D9: =+IF(D3="","",IF(VALUE(RIGHT(D3,LEN(D3)-FIND(" ",D3)))=1,BALANCE!D9,BALANCE!D9-BALANCE!C9)) -> -322473200 | E9: =+IF(E3="","",IF(VALUE(RIGHT(E3,LEN(E3)-FIND(" ",E3)))=1,BALANCE!E9,BALANCE!E9-BALANCE!D9)) -> -222826800 | F9: =+IF(F3="","",IF(VALUE(RIGHT(F3,LEN(F3)-FIND(" ",F3)))=1,BALANCE!F9,BALANCE!F9-BALANCE!E9)) -> 0 | G9: =+IF(G3="","",IF(VALUE(RIGHT(G3,LEN(G3)-FIND(" ",G3)))=1,BALANCE!G9,BALANCE!G9-BALANCE!F9)) -> 0 | H9: =+IF(H3="","",IF(VALUE(RIGHT(H3,LEN(H3)-FIND(" ",H3)))=1,BALANCE!H9,BALANCE!H9-BALANCE!G9)) ->  | I9: =+IF(I3="","",IF(VALUE(RIGHT(I3,LEN(I3)-FIND(" ",I3)))=1,BALANCE!I9,BALANCE!I9-BALANCE!H9)) ->  | J9: =+IF(J3="","",IF(VALUE(RIGHT(J3,LEN(J3)-FIND(" ",J3)))=1,BALANCE!J9,BALANCE!J9-BALANCE!I9)) ->  | K9: =+IF(K3="","",IF(VALUE(RIGHT(K3,LEN(K3)-FIND(" ",K3)))=1,BALANCE!K9,BALANCE!K9-BALANCE!J9)) ->  | L9: =+IF(L3="","",IF(VALUE(RIGHT(L3,LEN(L3)-FIND(" ",L3)))=1,BALANCE!L9,BALANCE!L9-BALANCE!K9)) -> 
B10: (+) Incremento en cuentas por pagar | C10: =+IF(C3="","",IF(VALUE(RIGHT(C3,LEN(C3)-FIND(" ",C3)))=1,BALANCE!C28,BALANCE!C28-BALANCE!B28)) -> 0 | D10: =+IF(D3="","",IF(VALUE(RIGHT(D3,LEN(D3)-FIND(" ",D3)))=1,BALANCE!D28,BALANCE!D28-BALANCE!C28)) -> 26872766.67 | E10: =+IF(E3="","",IF(VALUE(RIGHT(E3,LEN(E3)-FIND(" ",E3)))=1,BALANCE!E28,BALANCE!E28-BALANCE!D28)) -> 1612366 | F10: =+IF(F3="","",IF(VALUE(RIGHT(F3,LEN(F3)-FIND(" ",F3)))=1,BALANCE!F28,BALANCE!F28-BALANCE!E28)) -> 1709107.96 | G10: =+IF(G3="","",IF(VALUE(RIGHT(G3,LEN(G3)-FIND(" ",G3)))=1,BALANCE!G28,BALANCE!G28-BALANCE!F28)) -> 193847024.8 | H10: =+IF(H3="","",IF(VALUE(RIGHT(H3,LEN(H3)-FIND(" ",H3)))=1,BALANCE!H28,BALANCE!H28-BALANCE!G28)) ->  | I10: =+IF(I3="","",IF(VALUE(RIGHT(I3,LEN(I3)-FIND(" ",I3)))=1,BALANCE!I28,BALANCE!I28-BALANCE!H28)) ->  | J10: =+IF(J3="","",IF(VALUE(RIGHT(J3,LEN(J3)-FIND(" ",J3)))=1,BALANCE!J28,BALANCE!J28-BALANCE!I28)) ->  | K10: =+IF(K3="","",IF(VALUE(RIGHT(K3,LEN(K3)-FIND(" ",K3)))=1,BALANCE!K28,BALANCE!K28-BALANCE!J28)) ->  | L10: =+IF(L3="","",IF(VALUE(RIGHT(L3,LEN(L3)-FIND(" ",L3)))=1,BALANCE!L28,BALANCE!L28-BALANCE!K28)) -> 
B11: (-) CapEx | C11: =+IF(C3="","",IF(VALUE(RIGHT(C3,LEN(C3)-FIND(" ",C3)))=1,BALANCE!C14+BALANCE!C15+BALANCE!C17+C5+C6,(BALANCE!C14+BALANCE!C15+BALANCE!C17)-(BALANCE!B14+BALANCE!B15+BALANCE!B17)+C5+C6)) -> 50225000 | D11: =+IF(D3="","",IF(VALUE(RIGHT(D3,LEN(D3)-FIND(" ",D3)))=1,BALANCE!D14+BALANCE!D15+BALANCE!D17+D5+D6,(BALANCE!D14+BALANCE!D15+BALANCE!D17)-(BALANCE!C14+BALANCE!C15+BALANCE!C17)+D5+D6)) -> 235869.0544 | E11: =+IF(E3="","",IF(VALUE(RIGHT(E3,LEN(E3)-FIND(" ",E3)))=1,BALANCE!E14+BALANCE!E15+BALANCE!E17+E5+E6,(BALANCE!E14+BALANCE!E15+BALANCE!E17)-(BALANCE!D14+BALANCE!D15+BALANCE!D17)+E5+E6)) -> 1518738.187 | F11: =+IF(F3="","",IF(VALUE(RIGHT(F3,LEN(F3)-FIND(" ",F3)))=1,BALANCE!F14+BALANCE!F15+BALANCE!F17+F5+F6,(BALANCE!F14+BALANCE!F15+BALANCE!F17)-(BALANCE!E14+BALANCE!E15+BALANCE!E17)+F5+F6)) -> 1594675.096 | G11: =+IF(G3="","",IF(VALUE(RIGHT(G3,LEN(G3)-FIND(" ",G3)))=1,BALANCE!G14+BALANCE!G15+BALANCE!G17+G5+G6,(BALANCE!G14+BALANCE!G15+BALANCE!G17)-(BALANCE!F14+BALANCE!F15+BALANCE!F17)+G5+G6)) -> 273047.9141 | H11: =+IF(H3="","",IF(VALUE(RIGHT(H3,LEN(H3)-FIND(" ",H3)))=1,BALANCE!H14+BALANCE!H15+BALANCE!H17+H5+H6,(BALANCE!H14+BALANCE!H15+BALANCE!H17)-(BALANCE!G14+BALANCE!G15+BALANCE!G17)+H5+H6)) ->  | I11: =+IF(I3="","",IF(VALUE(RIGHT(I3,LEN(I3)-FIND(" ",I3)))=1,BALANCE!I14+BALANCE!I15+BALANCE!I17+I5+I6,(BALANCE!I14+BALANCE!I15+BALANCE!I17)-(BALANCE!H14+BALANCE!H15+BALANCE!H17)+I5+I6)) ->  | J11: =+IF(J3="","",IF(VALUE(RIGHT(J3,LEN(J3)-FIND(" ",J3)))=1,BALANCE!J14+BALANCE!J15+BALANCE!J17+J5+J6,(BALANCE!J14+BALANCE!J15+BALANCE!J17)-(BALANCE!I14+BALANCE!I15+BALANCE!I17)+J5+J6)) ->  | K11: =+IF(K3="","",IF(VALUE(RIGHT(K3,LEN(K3)-FIND(" ",K3)))=1,BALANCE!K14+BALANCE!K15+BALANCE!K17+K5+K6,(BALANCE!K14+BALANCE!K15+BALANCE!K17)-(BALANCE!J14+BALANCE!J15+BALANCE!J17)+K5+K6)) ->  | L11: =+IF(L3="","",IF(VALUE(RIGHT(L3,LEN(L3)-FIND(" ",L3)))=1,BALANCE!L14+BALANCE!L15+BALANCE!L17+L5+L6,(BALANCE!L14+BALANCE!L15+BALANCE!L17)-(BALANCE!K14+BALANCE!K15+BALANCE!K17)+L5+L6)) -> 
B12: CapEx operativo | C12: =IF(C3="","",C$11*(1-SUPUESTOS!C44)) -> 5022500 | D12: =IF(D3="","",D$11*(1-SUPUESTOS!D44)) -> 23586.90544 | E12: =IF(E3="","",E$11*(1-SUPUESTOS!E44)) -> 151873.8187 | F12: =IF(F3="","",F$11*(1-SUPUESTOS!F44)) -> 159467.5096 | G12: =IF(G3="","",G$11*(1-SUPUESTOS!G44)) -> 27304.79141 | H12: =IF(H3="","",H$11*(1-SUPUESTOS!H44)) ->  | I12: =IF(I3="","",I$11*(1-SUPUESTOS!I44)) ->  | J12: =IF(J3="","",J$11*(1-SUPUESTOS!J44)) ->  | K12: =IF(K3="","",K$11*(1-SUPUESTOS!K44)) ->  | L12: =IF(L3="","",L$11*(1-SUPUESTOS!L44)) -> 
B13: CapEx no operativo | C13: =+IF(C3="","",C11*SUPUESTOS!C44) -> 45202500 | D13: =+IF(D3="","",D11*SUPUESTOS!D44) -> 212282.1489 | E13: =+IF(E3="","",E11*SUPUESTOS!E44) -> 1366864.368 | F13: =+IF(F3="","",F11*SUPUESTOS!F44) -> 1435207.586 | G13: =+IF(G3="","",G11*SUPUESTOS!G44) -> 245743.1226 | H13: =+IF(H3="","",H11*SUPUESTOS!H44) ->  | I13: =+IF(I3="","",I11*SUPUESTOS!I44) ->  | J13: =+IF(J3="","",J11*SUPUESTOS!J44) ->  | K13: =+IF(K3="","",K11*SUPUESTOS!K44) ->  | L13: =+IF(L3="","",L11*SUPUESTOS!L44) -> 
B14: (=) Flujo de Caja Libre (Antes de capex no operativo) | C14: =+IF(C3="","",C7-C8-C9+C10-C12) -> -559422452 | D14: 428474462.2 | E14: -174358663.1 | F14: -415118787.4 | G14: 1553055959
B15: (=) Flujo de Caja Libre (Después de capex no operativo) | C15: =IF(C3="","",C14-C13) -> -604624952 | D15: 428262180.1 | E15: -175725527.4 | F15: -416553995 | G15: 1552810216
B16: (-) Intereses ajustados | C16: =+IF('FLUJO DE CAJA'!C3="","",'P&G'!C15*(1-SUPUESTOS!$C$60)) -> 0 | D16: =+IF('FLUJO DE CAJA'!D3="","",'P&G'!D15*(1-SUPUESTOS!$C$60)) -> 0 | E16: =+IF('FLUJO DE CAJA'!E3="","",'P&G'!E15*(1-SUPUESTOS!$C$60)) -> 5268456.969 | F16: =+IF('FLUJO DE CAJA'!F3="","",'P&G'!F15*(1-SUPUESTOS!$C$60)) -> 33666161.01 | G16: =+IF('FLUJO DE CAJA'!G3="","",'P&G'!G15*(1-SUPUESTOS!$C$60)) -> 40579242.39 | H16: =+IF('FLUJO DE CAJA'!H3="","",'P&G'!H15*(1-SUPUESTOS!$C$60)) ->  | I16: =+IF('FLUJO DE CAJA'!I3="","",'P&G'!I15*(1-SUPUESTOS!$C$60)) ->  | J16: =+IF('FLUJO DE CAJA'!J3="","",'P&G'!J15*(1-SUPUESTOS!$C$60)) ->  | K16: =+IF('FLUJO DE CAJA'!K3="","",'P&G'!K15*(1-SUPUESTOS!$C$60)) ->  | L16: =+IF('FLUJO DE CAJA'!L3="","",'P&G'!L15*(1-SUPUESTOS!$C$60)) -> 
B17: (+) Incremento Obligaciones financieras -CP | C17: =+IF(C3="","",IF(VALUE(RIGHT(C3,LEN(C3)-FIND(" ",C3)))=1,BALANCE!C27,BALANCE!C27-BALANCE!B27)) -> 0 | D17: =+IF(D3="","",IF(VALUE(RIGHT(D3,LEN(D3)-FIND(" ",D3)))=1,BALANCE!D27,BALANCE!D27-BALANCE!C27)) -> 13508864.02 | E17: =+IF(E3="","",IF(VALUE(RIGHT(E3,LEN(E3)-FIND(" ",E3)))=1,BALANCE!E27,BALANCE!E27-BALANCE!D27)) -> 72814625.74 | F17: =+IF(F3="","",IF(VALUE(RIGHT(F3,LEN(F3)-FIND(" ",F3)))=1,BALANCE!F27,BALANCE!F27-BALANCE!E27)) -> 17725849.69 | G17: =+IF(G3="","",IF(VALUE(RIGHT(G3,LEN(G3)-FIND(" ",G3)))=1,BALANCE!G27,BALANCE!G27-BALANCE!F27)) -> -104049339.5 | H17: =+IF(H3="","",IF(VALUE(RIGHT(H3,LEN(H3)-FIND(" ",H3)))=1,BALANCE!H27,BALANCE!H27-BALANCE!G27)) ->  | I17: =+IF(I3="","",IF(VALUE(RIGHT(I3,LEN(I3)-FIND(" ",I3)))=1,BALANCE!I27,BALANCE!I27-BALANCE!H27)) ->  | J17: =+IF(J3="","",IF(VALUE(RIGHT(J3,LEN(J3)-FIND(" ",J3)))=1,BALANCE!J27,BALANCE!J27-BALANCE!I27)) ->  | K17: =+IF(K3="","",IF(VALUE(RIGHT(K3,LEN(K3)-FIND(" ",K3)))=1,BALANCE!K27,BALANCE!K27-BALANCE!J27)) ->  | L17: =+IF(L3="","",IF(VALUE(RIGHT(L3,LEN(L3)-FIND(" ",L3)))=1,BALANCE!L27,BALANCE!L27-BALANCE!K27)) -> 
B18: (+) Incremento Obligaciones financieras -LP | C18: =+IF(C3="","",IF(VALUE(RIGHT(C3,LEN(C3)-FIND(" ",C3)))=1,BALANCE!C35,BALANCE!C35-BALANCE!B35)) -> 0 | D18: =+IF(D3="","",IF(VALUE(RIGHT(D3,LEN(D3)-FIND(" ",D3)))=1,BALANCE!D35,BALANCE!D35-BALANCE!C35)) -> 54035456.09 | E18: =+IF(E3="","",IF(VALUE(RIGHT(E3,LEN(E3)-FIND(" ",E3)))=1,BALANCE!E35,BALANCE!E35-BALANCE!D35)) -> 291258503 | F18: =+IF(F3="","",IF(VALUE(RIGHT(F3,LEN(F3)-FIND(" ",F3)))=1,BALANCE!F35,BALANCE!F35-BALANCE!E35)) -> 70903398.78 | G18: =+IF(G3="","",IF(VALUE(RIGHT(G3,LEN(G3)-FIND(" ",G3)))=1,BALANCE!G35,BALANCE!G35-BALANCE!F35)) -> -416197357.8 | H18: =+IF(H3="","",IF(VALUE(RIGHT(H3,LEN(H3)-FIND(" ",H3)))=1,BALANCE!H35,BALANCE!H35-BALANCE!G35)) ->  | I18: =+IF(I3="","",IF(VALUE(RIGHT(I3,LEN(I3)-FIND(" ",I3)))=1,BALANCE!I35,BALANCE!I35-BALANCE!H35)) ->  | J18: =+IF(J3="","",IF(VALUE(RIGHT(J3,LEN(J3)-FIND(" ",J3)))=1,BALANCE!J35,BALANCE!J35-BALANCE!I35)) ->  | K18: =+IF(K3="","",IF(VALUE(RIGHT(K3,LEN(K3)-FIND(" ",K3)))=1,BALANCE!K35,BALANCE!K35-BALANCE!J35)) ->  | L18: =+IF(L3="","",IF(VALUE(RIGHT(L3,LEN(L3)-FIND(" ",L3)))=1,BALANCE!L35,BALANCE!L35-BALANCE!K35)) -> 
B19: (=) Flujo de Caja Libre del Inversionista | C19: =IF(C3="","",C15-C16+C17+C18) -> -604624952 | D19: 495806500.2 | E19: 183079144.3 | F19: -361590907.5 | G19: 991984276.6
B20: Ajustes de caja
A21: P&G | B21: (+) Ingresos financieros ajustados | C21: =+IF(C3="","",'P&G'!C14*(1-SUPUESTOS!$C$60)) -> 3990892.154 | D21: =+IF(D3="","",'P&G'!D14*(1-SUPUESTOS!$C$60)) -> 1457009.438 | E21: =+IF(E3="","",'P&G'!E14*(1-SUPUESTOS!$C$60)) -> 3569536.487 | F21: =+IF(F3="","",'P&G'!F14*(1-SUPUESTOS!$C$60)) -> 3424324.886 | G21: =+IF(G3="","",'P&G'!G14*(1-SUPUESTOS!$C$60)) -> 882178.4308 | H21: =+IF(H3="","",'P&G'!H14*(1-SUPUESTOS!$C$60)) ->  | I21: =+IF(I3="","",'P&G'!I14*(1-SUPUESTOS!$C$60)) ->  | J21: =+IF(J3="","",'P&G'!J14*(1-SUPUESTOS!$C$60)) ->  | K21: =+IF(K3="","",'P&G'!K14*(1-SUPUESTOS!$C$60)) ->  | L21: =+IF(L3="","",'P&G'!L14*(1-SUPUESTOS!$C$60)) -> 
B22: (-) Otros gastos financieros | C22: =+IF(C3="","",'P&G'!C16*(1-SUPUESTOS!$C$60)) -> 42728.1582 | D22: =+IF(D3="","",'P&G'!D16*(1-SUPUESTOS!$C$60)) -> 420391.8127 | E22: =+IF(E3="","",'P&G'!E16*(1-SUPUESTOS!$C$60)) -> 2505261.562 | F22: =+IF(F3="","",'P&G'!F16*(1-SUPUESTOS!$C$60)) -> 2743498.41 | G22: =+IF(G3="","",'P&G'!G16*(1-SUPUESTOS!$C$60)) -> 944717.0757 | H22: =+IF(H3="","",'P&G'!H16*(1-SUPUESTOS!$C$60)) ->  | I22: =+IF(I3="","",'P&G'!I16*(1-SUPUESTOS!$C$60)) ->  | J22: =+IF(J3="","",'P&G'!J16*(1-SUPUESTOS!$C$60)) ->  | K22: =+IF(K3="","",'P&G'!K16*(1-SUPUESTOS!$C$60)) ->  | L22: =+IF(L3="","",'P&G'!L16*(1-SUPUESTOS!$C$60)) -> 
A23: BALANCE | B23: (-) Incremento en activos por impuestos | C23: =+IF(C3="","",IF(VALUE(RIGHT(C3,LEN(C3)-FIND(" ",C3)))=1,BALANCE!C10,BALANCE!C10-BALANCE!B10)) -> 0 | D23: =+IF(D3="","",IF(VALUE(RIGHT(D3,LEN(D3)-FIND(" ",D3)))=1,BALANCE!D10,BALANCE!D10-BALANCE!C10)) -> 0 | E23: =+IF(E3="","",IF(VALUE(RIGHT(E3,LEN(E3)-FIND(" ",E3)))=1,BALANCE!E10,BALANCE!E10-BALANCE!D10)) -> 0 | F23: =+IF(F3="","",IF(VALUE(RIGHT(F3,LEN(F3)-FIND(" ",F3)))=1,BALANCE!F10,BALANCE!F10-BALANCE!E10)) -> 0 | G23: =+IF(G3="","",IF(VALUE(RIGHT(G3,LEN(G3)-FIND(" ",G3)))=1,BALANCE!G10,BALANCE!G10-BALANCE!F10)) -> 0 | H23: =+IF(H3="","",IF(VALUE(RIGHT(H3,LEN(H3)-FIND(" ",H3)))=1,BALANCE!H10,BALANCE!H10-BALANCE!G10)) ->  | I23: =+IF(I3="","",IF(VALUE(RIGHT(I3,LEN(I3)-FIND(" ",I3)))=1,BALANCE!I10,BALANCE!I10-BALANCE!H10)) ->  | J23: =+IF(J3="","",IF(VALUE(RIGHT(J3,LEN(J3)-FIND(" ",J3)))=1,BALANCE!J10,BALANCE!J10-BALANCE!I10)) ->  | K23: =+IF(K3="","",IF(VALUE(RIGHT(K3,LEN(K3)-FIND(" ",K3)))=1,BALANCE!K10,BALANCE!K10-BALANCE!J10)) ->  | L23: =+IF(L3="","",IF(VALUE(RIGHT(L3,LEN(L3)-FIND(" ",L3)))=1,BALANCE!L10,BALANCE!L10-BALANCE!K10)) -> 
B24: (-) Incremento en inversiones financieras | C24: =+IF(C3="","",IF(VALUE(RIGHT(C3,LEN(C3)-FIND(" ",C3)))=1,BALANCE!C18,BALANCE!C18-BALANCE!B18)) -> 0 | D24: =+IF(D3="","",IF(VALUE(RIGHT(D3,LEN(D3)-FIND(" ",D3)))=1,BALANCE!D18,BALANCE!D18-BALANCE!C18)) -> 0 | E24: =+IF(E3="","",IF(VALUE(RIGHT(E3,LEN(E3)-FIND(" ",E3)))=1,BALANCE!E18,BALANCE!E18-BALANCE!D18)) -> 0 | F24: =+IF(F3="","",IF(VALUE(RIGHT(F3,LEN(F3)-FIND(" ",F3)))=1,BALANCE!F18,BALANCE!F18-BALANCE!E18)) -> 0 | G24: =+IF(G3="","",IF(VALUE(RIGHT(G3,LEN(G3)-FIND(" ",G3)))=1,BALANCE!G18,BALANCE!G18-BALANCE!F18)) -> 0 | H24: =+IF(H3="","",IF(VALUE(RIGHT(H3,LEN(H3)-FIND(" ",H3)))=1,BALANCE!H18,BALANCE!H18-BALANCE!G18)) ->  | I24: =+IF(I3="","",IF(VALUE(RIGHT(I3,LEN(I3)-FIND(" ",I3)))=1,BALANCE!I18,BALANCE!I18-BALANCE!H18)) ->  | J24: =+IF(J3="","",IF(VALUE(RIGHT(J3,LEN(J3)-FIND(" ",J3)))=1,BALANCE!J18,BALANCE!J18-BALANCE!I18)) ->  | K24: =+IF(K3="","",IF(VALUE(RIGHT(K3,LEN(K3)-FIND(" ",K3)))=1,BALANCE!K18,BALANCE!K18-BALANCE!J18)) ->  | L24: =+IF(L3="","",IF(VALUE(RIGHT(L3,LEN(L3)-FIND(" ",L3)))=1,BALANCE!L18,BALANCE!L18-BALANCE!K18)) -> 
B25: (-) Incremento en otros activos no financieros | C25: =+IF(C3="","",IF(VALUE(RIGHT(C3,LEN(C3)-FIND(" ",C3)))=1,BALANCE!C11,BALANCE!C11-BALANCE!B11)) -> 0 | D25: =+IF(D3="","",IF(VALUE(RIGHT(D3,LEN(D3)-FIND(" ",D3)))=1,BALANCE!D11,BALANCE!D11-BALANCE!C11)) -> 0 | E25: =+IF(E3="","",IF(VALUE(RIGHT(E3,LEN(E3)-FIND(" ",E3)))=1,BALANCE!E11,BALANCE!E11-BALANCE!D11)) -> 0 | F25: =+IF(F3="","",IF(VALUE(RIGHT(F3,LEN(F3)-FIND(" ",F3)))=1,BALANCE!F11,BALANCE!F11-BALANCE!E11)) -> 0 | G25: =+IF(G3="","",IF(VALUE(RIGHT(G3,LEN(G3)-FIND(" ",G3)))=1,BALANCE!G11,BALANCE!G11-BALANCE!F11)) -> 0 | H25: =+IF(H3="","",IF(VALUE(RIGHT(H3,LEN(H3)-FIND(" ",H3)))=1,BALANCE!H11,BALANCE!H11-BALANCE!G11)) ->  | I25: =+IF(I3="","",IF(VALUE(RIGHT(I3,LEN(I3)-FIND(" ",I3)))=1,BALANCE!I11,BALANCE!I11-BALANCE!H11)) ->  | J25: =+IF(J3="","",IF(VALUE(RIGHT(J3,LEN(J3)-FIND(" ",J3)))=1,BALANCE!J11,BALANCE!J11-BALANCE!I11)) ->  | K25: =+IF(K3="","",IF(VALUE(RIGHT(K3,LEN(K3)-FIND(" ",K3)))=1,BALANCE!K11,BALANCE!K11-BALANCE!J11)) ->  | L25: =+IF(L3="","",IF(VALUE(RIGHT(L3,LEN(L3)-FIND(" ",L3)))=1,BALANCE!L11,BALANCE!L11-BALANCE!K11)) -> 
B26: (-) Incremento en deudores comerciales - LP | C26: =+IF(C3="","",IF(VALUE(RIGHT(C3,LEN(C3)-FIND(" ",C3)))=1,BALANCE!C19,BALANCE!C19-BALANCE!B19)) -> 0 | D26: =+IF(D3="","",IF(VALUE(RIGHT(D3,LEN(D3)-FIND(" ",D3)))=1,BALANCE!D19,BALANCE!D19-BALANCE!C19)) -> 0 | E26: =+IF(E3="","",IF(VALUE(RIGHT(E3,LEN(E3)-FIND(" ",E3)))=1,BALANCE!E19,BALANCE!E19-BALANCE!D19)) -> 0 | F26: =+IF(F3="","",IF(VALUE(RIGHT(F3,LEN(F3)-FIND(" ",F3)))=1,BALANCE!F19,BALANCE!F19-BALANCE!E19)) -> 0 | G26: =+IF(G3="","",IF(VALUE(RIGHT(G3,LEN(G3)-FIND(" ",G3)))=1,BALANCE!G19,BALANCE!G19-BALANCE!F19)) -> 0 | H26: =+IF(H3="","",IF(VALUE(RIGHT(H3,LEN(H3)-FIND(" ",H3)))=1,BALANCE!H19,BALANCE!H19-BALANCE!G19)) ->  | I26: =+IF(I3="","",IF(VALUE(RIGHT(I3,LEN(I3)-FIND(" ",I3)))=1,BALANCE!I19,BALANCE!I19-BALANCE!H19)) ->  | J26: =+IF(J3="","",IF(VALUE(RIGHT(J3,LEN(J3)-FIND(" ",J3)))=1,BALANCE!J19,BALANCE!J19-BALANCE!I19)) ->  | K26: =+IF(K3="","",IF(VALUE(RIGHT(K3,LEN(K3)-FIND(" ",K3)))=1,BALANCE!K19,BALANCE!K19-BALANCE!J19)) ->  | L26: =+IF(L3="","",IF(VALUE(RIGHT(L3,LEN(L3)-FIND(" ",L3)))=1,BALANCE!L19,BALANCE!L19-BALANCE!K19)) -> 
B27: (-) Incremento en activos por impuestos diferidos | C27: =+IF(C3="","",IF(VALUE(RIGHT(C3,LEN(C3)-FIND(" ",C3)))=1,BALANCE!C20,BALANCE!C20-BALANCE!B20)) -> 5208020.491 | D27: =+IF(D3="","",IF(VALUE(RIGHT(D3,LEN(D3)-FIND(" ",D3)))=1,BALANCE!D20,BALANCE!D20-BALANCE!C20)) -> -5208020.491 | E27: =+IF(E3="","",IF(VALUE(RIGHT(E3,LEN(E3)-FIND(" ",E3)))=1,BALANCE!E20,BALANCE!E20-BALANCE!D20)) -> 218865430.1 | F27: =+IF(F3="","",IF(VALUE(RIGHT(F3,LEN(F3)-FIND(" ",F3)))=1,BALANCE!F20,BALANCE!F20-BALANCE!E20)) -> 243868729 | G27: =+IF(G3="","",IF(VALUE(RIGHT(G3,LEN(G3)-FIND(" ",G3)))=1,BALANCE!G20,BALANCE!G20-BALANCE!F20)) -> -462734159 | H27: =+IF(H3="","",IF(VALUE(RIGHT(H3,LEN(H3)-FIND(" ",H3)))=1,BALANCE!H20,BALANCE!H20-BALANCE!G20)) ->  | I27: =+IF(I3="","",IF(VALUE(RIGHT(I3,LEN(I3)-FIND(" ",I3)))=1,BALANCE!I20,BALANCE!I20-BALANCE!H20)) ->  | J27: =+IF(J3="","",IF(VALUE(RIGHT(J3,LEN(J3)-FIND(" ",J3)))=1,BALANCE!J20,BALANCE!J20-BALANCE!I20)) ->  | K27: =+IF(K3="","",IF(VALUE(RIGHT(K3,LEN(K3)-FIND(" ",K3)))=1,BALANCE!K20,BALANCE!K20-BALANCE!J20)) ->  | L27: =+IF(L3="","",IF(VALUE(RIGHT(L3,LEN(L3)-FIND(" ",L3)))=1,BALANCE!L20,BALANCE!L20-BALANCE!K20)) -> 
B28: (-) Incremento en otros activos - LP | C28: =+IF(C3="","",IF(VALUE(RIGHT(C3,LEN(C3)-FIND(" ",C3)))=1,BALANCE!C21,BALANCE!C21-BALANCE!B21)) -> 0 | D28: =+IF(D3="","",IF(VALUE(RIGHT(D3,LEN(D3)-FIND(" ",D3)))=1,BALANCE!D21,BALANCE!D21-BALANCE!C21)) -> 0 | E28: =+IF(E3="","",IF(VALUE(RIGHT(E3,LEN(E3)-FIND(" ",E3)))=1,BALANCE!E21,BALANCE!E21-BALANCE!D21)) -> 0 | F28: =+IF(F3="","",IF(VALUE(RIGHT(F3,LEN(F3)-FIND(" ",F3)))=1,BALANCE!F21,BALANCE!F21-BALANCE!E21)) -> 0 | G28: =+IF(G3="","",IF(VALUE(RIGHT(G3,LEN(G3)-FIND(" ",G3)))=1,BALANCE!G21,BALANCE!G21-BALANCE!F21)) -> 0 | H28: =+IF(H3="","",IF(VALUE(RIGHT(H3,LEN(H3)-FIND(" ",H3)))=1,BALANCE!H21,BALANCE!H21-BALANCE!G21)) ->  | I28: =+IF(I3="","",IF(VALUE(RIGHT(I3,LEN(I3)-FIND(" ",I3)))=1,BALANCE!I21,BALANCE!I21-BALANCE!H21)) ->  | J28: =+IF(J3="","",IF(VALUE(RIGHT(J3,LEN(J3)-FIND(" ",J3)))=1,BALANCE!J21,BALANCE!J21-BALANCE!I21)) ->  | K28: =+IF(K3="","",IF(VALUE(RIGHT(K3,LEN(K3)-FIND(" ",K3)))=1,BALANCE!K21,BALANCE!K21-BALANCE!J21)) ->  | L28: =+IF(L3="","",IF(VALUE(RIGHT(L3,LEN(L3)-FIND(" ",L3)))=1,BALANCE!L21,BALANCE!L21-BALANCE!K21)) -> 
B29: (+) Incremento en pasivos por impuestos - CP | C29: =+IF(C3="","",IF(VALUE(RIGHT(C3,LEN(C3)-FIND(" ",C3)))=1,BALANCE!C30,BALANCE!C30-BALANCE!B30)) -> 0 | D29: =+IF(D3="","",IF(VALUE(RIGHT(D3,LEN(D3)-FIND(" ",D3)))=1,BALANCE!D30,BALANCE!D30-BALANCE!C30)) -> 0 | E29: =+IF(E3="","",IF(VALUE(RIGHT(E3,LEN(E3)-FIND(" ",E3)))=1,BALANCE!E30,BALANCE!E30-BALANCE!D30)) -> 0 | F29: =+IF(F3="","",IF(VALUE(RIGHT(F3,LEN(F3)-FIND(" ",F3)))=1,BALANCE!F30,BALANCE!F30-BALANCE!E30)) -> 0 | G29: =+IF(G3="","",IF(VALUE(RIGHT(G3,LEN(G3)-FIND(" ",G3)))=1,BALANCE!G30,BALANCE!G30-BALANCE!F30)) -> 0 | H29: =+IF(H3="","",IF(VALUE(RIGHT(H3,LEN(H3)-FIND(" ",H3)))=1,BALANCE!H30,BALANCE!H30-BALANCE!G30)) ->  | I29: =+IF(I3="","",IF(VALUE(RIGHT(I3,LEN(I3)-FIND(" ",I3)))=1,BALANCE!I30,BALANCE!I30-BALANCE!H30)) ->  | J29: =+IF(J3="","",IF(VALUE(RIGHT(J3,LEN(J3)-FIND(" ",J3)))=1,BALANCE!J30,BALANCE!J30-BALANCE!I30)) ->  | K29: =+IF(K3="","",IF(VALUE(RIGHT(K3,LEN(K3)-FIND(" ",K3)))=1,BALANCE!K30,BALANCE!K30-BALANCE!J30)) ->  | L29: =+IF(L3="","",IF(VALUE(RIGHT(L3,LEN(L3)-FIND(" ",L3)))=1,BALANCE!L30,BALANCE!L30-BALANCE!K30)) -> 
B30: (+) Incremento en beneficio a empleados | C30: =+IF(C3="","",IF(VALUE(RIGHT(C3,LEN(C3)-FIND(" ",C3)))=1,BALANCE!C31,BALANCE!C31-BALANCE!B31)) -> 0 | D30: =+IF(D3="","",IF(VALUE(RIGHT(D3,LEN(D3)-FIND(" ",D3)))=1,BALANCE!D31,BALANCE!D31-BALANCE!C31)) -> 2054645.204 | E30: =+IF(E3="","",IF(VALUE(RIGHT(E3,LEN(E3)-FIND(" ",E3)))=1,BALANCE!E31,BALANCE!E31-BALANCE!D31)) -> 0 | F30: =+IF(F3="","",IF(VALUE(RIGHT(F3,LEN(F3)-FIND(" ",F3)))=1,BALANCE!F31,BALANCE!F31-BALANCE!E31)) -> -2054645.204 | G30: =+IF(G3="","",IF(VALUE(RIGHT(G3,LEN(G3)-FIND(" ",G3)))=1,BALANCE!G31,BALANCE!G31-BALANCE!F31)) -> 30182462.79 | H30: =+IF(H3="","",IF(VALUE(RIGHT(H3,LEN(H3)-FIND(" ",H3)))=1,BALANCE!H31,BALANCE!H31-BALANCE!G31)) ->  | I30: =+IF(I3="","",IF(VALUE(RIGHT(I3,LEN(I3)-FIND(" ",I3)))=1,BALANCE!I31,BALANCE!I31-BALANCE!H31)) ->  | J30: =+IF(J3="","",IF(VALUE(RIGHT(J3,LEN(J3)-FIND(" ",J3)))=1,BALANCE!J31,BALANCE!J31-BALANCE!I31)) ->  | K30: =+IF(K3="","",IF(VALUE(RIGHT(K3,LEN(K3)-FIND(" ",K3)))=1,BALANCE!K31,BALANCE!K31-BALANCE!J31)) ->  | L30: =+IF(L3="","",IF(VALUE(RIGHT(L3,LEN(L3)-FIND(" ",L3)))=1,BALANCE!L31,BALANCE!L31-BALANCE!K31)) -> 
B31: (+) Incremento en otros pasivos | C31: =+IF(C3="","",IF(VALUE(RIGHT(C3,LEN(C3)-FIND(" ",C3)))=1,BALANCE!C32,BALANCE!C32-BALANCE!B32)) -> 0 | D31: =+IF(D3="","",IF(VALUE(RIGHT(D3,LEN(D3)-FIND(" ",D3)))=1,BALANCE!D32,BALANCE!D32-BALANCE!C32)) -> 0 | E31: =+IF(E3="","",IF(VALUE(RIGHT(E3,LEN(E3)-FIND(" ",E3)))=1,BALANCE!E32,BALANCE!E32-BALANCE!D32)) -> 0 | F31: =+IF(F3="","",IF(VALUE(RIGHT(F3,LEN(F3)-FIND(" ",F3)))=1,BALANCE!F32,BALANCE!F32-BALANCE!E32)) -> 0 | G31: =+IF(G3="","",IF(VALUE(RIGHT(G3,LEN(G3)-FIND(" ",G3)))=1,BALANCE!G32,BALANCE!G32-BALANCE!F32)) -> 0 | H31: =+IF(H3="","",IF(VALUE(RIGHT(H3,LEN(H3)-FIND(" ",H3)))=1,BALANCE!H32,BALANCE!H32-BALANCE!G32)) ->  | I31: =+IF(I3="","",IF(VALUE(RIGHT(I3,LEN(I3)-FIND(" ",I3)))=1,BALANCE!I32,BALANCE!I32-BALANCE!H32)) ->  | J31: =+IF(J3="","",IF(VALUE(RIGHT(J3,LEN(J3)-FIND(" ",J3)))=1,BALANCE!J32,BALANCE!J32-BALANCE!I32)) ->  | K31: =+IF(K3="","",IF(VALUE(RIGHT(K3,LEN(K3)-FIND(" ",K3)))=1,BALANCE!K32,BALANCE!K32-BALANCE!J32)) ->  | L31: =+IF(L3="","",IF(VALUE(RIGHT(L3,LEN(L3)-FIND(" ",L3)))=1,BALANCE!L32,BALANCE!L32-BALANCE!K32)) -> 
B32: (+) Incremento en otras provisiones | C32: =+IF(C3="","",IF(VALUE(RIGHT(C3,LEN(C3)-FIND(" ",C3)))=1,BALANCE!C29,BALANCE!C29-BALANCE!B29)) -> 0 | D32: =+IF(D3="","",IF(VALUE(RIGHT(D3,LEN(D3)-FIND(" ",D3)))=1,BALANCE!D29,BALANCE!D29-BALANCE!C29)) -> 0 | E32: =+IF(E3="","",IF(VALUE(RIGHT(E3,LEN(E3)-FIND(" ",E3)))=1,BALANCE!E29,BALANCE!E29-BALANCE!D29)) -> 0 | F32: =+IF(F3="","",IF(VALUE(RIGHT(F3,LEN(F3)-FIND(" ",F3)))=1,BALANCE!F29,BALANCE!F29-BALANCE!E29)) -> 0 | G32: =+IF(G3="","",IF(VALUE(RIGHT(G3,LEN(G3)-FIND(" ",G3)))=1,BALANCE!G29,BALANCE!G29-BALANCE!F29)) -> 0 | H32: =+IF(H3="","",IF(VALUE(RIGHT(H3,LEN(H3)-FIND(" ",H3)))=1,BALANCE!H29,BALANCE!H29-BALANCE!G29)) ->  | I32: =+IF(I3="","",IF(VALUE(RIGHT(I3,LEN(I3)-FIND(" ",I3)))=1,BALANCE!I29,BALANCE!I29-BALANCE!H29)) ->  | J32: =+IF(J3="","",IF(VALUE(RIGHT(J3,LEN(J3)-FIND(" ",J3)))=1,BALANCE!J29,BALANCE!J29-BALANCE!I29)) ->  | K32: =+IF(K3="","",IF(VALUE(RIGHT(K3,LEN(K3)-FIND(" ",K3)))=1,BALANCE!K29,BALANCE!K29-BALANCE!J29)) ->  | L32: =+IF(L3="","",IF(VALUE(RIGHT(L3,LEN(L3)-FIND(" ",L3)))=1,BALANCE!L29,BALANCE!L29-BALANCE!K29)) -> 
B33: (+) Incremento en pasivo por impuestos diferidos | C33: =+IF(C3="","",IF(VALUE(RIGHT(C3,LEN(C3)-FIND(" ",C3)))=1,BALANCE!C37,BALANCE!C37-BALANCE!B37)) -> 0 | D33: =+IF(D3="","",IF(VALUE(RIGHT(D3,LEN(D3)-FIND(" ",D3)))=1,BALANCE!D37,BALANCE!D37-BALANCE!C37)) -> 0 | E33: =+IF(E3="","",IF(VALUE(RIGHT(E3,LEN(E3)-FIND(" ",E3)))=1,BALANCE!E37,BALANCE!E37-BALANCE!D37)) -> 0 | F33: =+IF(F3="","",IF(VALUE(RIGHT(F3,LEN(F3)-FIND(" ",F3)))=1,BALANCE!F37,BALANCE!F37-BALANCE!E37)) -> 0 | G33: =+IF(G3="","",IF(VALUE(RIGHT(G3,LEN(G3)-FIND(" ",G3)))=1,BALANCE!G37,BALANCE!G37-BALANCE!F37)) -> 0 | H33: =+IF(H3="","",IF(VALUE(RIGHT(H3,LEN(H3)-FIND(" ",H3)))=1,BALANCE!H37,BALANCE!H37-BALANCE!G37)) ->  | I33: =+IF(I3="","",IF(VALUE(RIGHT(I3,LEN(I3)-FIND(" ",I3)))=1,BALANCE!I37,BALANCE!I37-BALANCE!H37)) ->  | J33: =+IF(J3="","",IF(VALUE(RIGHT(J3,LEN(J3)-FIND(" ",J3)))=1,BALANCE!J37,BALANCE!J37-BALANCE!I37)) ->  | K33: =+IF(K3="","",IF(VALUE(RIGHT(K3,LEN(K3)-FIND(" ",K3)))=1,BALANCE!K37,BALANCE!K37-BALANCE!J37)) ->  | L33: =+IF(L3="","",IF(VALUE(RIGHT(L3,LEN(L3)-FIND(" ",L3)))=1,BALANCE!L37,BALANCE!L37-BALANCE!K37)) -> 
B34: (+) Incremento en provisiones por beneficios a empleados | C34: =+IF(C3="","",IF(VALUE(RIGHT(C3,LEN(C3)-FIND(" ",C3)))=1,BALANCE!C38,BALANCE!C38-BALANCE!B38)) -> 0 | D34: =+IF(D3="","",IF(VALUE(RIGHT(D3,LEN(D3)-FIND(" ",D3)))=1,BALANCE!D38,BALANCE!D38-BALANCE!C38)) -> 1027322.602 | E34: =+IF(E3="","",IF(VALUE(RIGHT(E3,LEN(E3)-FIND(" ",E3)))=1,BALANCE!E38,BALANCE!E38-BALANCE!D38)) -> 0 | F34: =+IF(F3="","",IF(VALUE(RIGHT(F3,LEN(F3)-FIND(" ",F3)))=1,BALANCE!F38,BALANCE!F38-BALANCE!E38)) -> -1027322.602 | G34: =+IF(G3="","",IF(VALUE(RIGHT(G3,LEN(G3)-FIND(" ",G3)))=1,BALANCE!G38,BALANCE!G38-BALANCE!F38)) -> 15091231.4 | H34: =+IF(H3="","",IF(VALUE(RIGHT(H3,LEN(H3)-FIND(" ",H3)))=1,BALANCE!H38,BALANCE!H38-BALANCE!G38)) ->  | I34: =+IF(I3="","",IF(VALUE(RIGHT(I3,LEN(I3)-FIND(" ",I3)))=1,BALANCE!I38,BALANCE!I38-BALANCE!H38)) ->  | J34: =+IF(J3="","",IF(VALUE(RIGHT(J3,LEN(J3)-FIND(" ",J3)))=1,BALANCE!J38,BALANCE!J38-BALANCE!I38)) ->  | K34: =+IF(K3="","",IF(VALUE(RIGHT(K3,LEN(K3)-FIND(" ",K3)))=1,BALANCE!K38,BALANCE!K38-BALANCE!J38)) ->  | L34: =+IF(L3="","",IF(VALUE(RIGHT(L3,LEN(L3)-FIND(" ",L3)))=1,BALANCE!L38,BALANCE!L38-BALANCE!K38)) -> 
B35: (-) Dividendos | C35: =+IF(C3="","",'P&G'!C19*SUPUESTOS!C37) -> 0 | D35: =+IF(D3="","",'P&G'!D19*SUPUESTOS!D37) -> 0 | E35: =+IF(E3="","",'P&G'!E19*SUPUESTOS!E37) -> 0 | F35: =+IF(F3="","",'P&G'!F19*SUPUESTOS!F37) -> 0 | G35: =+IF(G3="","",'P&G'!G19*SUPUESTOS!G37) -> 0 | H35: =+IF(H3="","",'P&G'!H19*SUPUESTOS!H37) ->  | I35: =+IF(I3="","",'P&G'!I19*SUPUESTOS!I37) ->  | J35: =+IF(J3="","",'P&G'!J19*SUPUESTOS!J37) ->  | K35: =+IF(K3="","",'P&G'!K19*SUPUESTOS!K37) ->  | L35: =+IF(L3="","",'P&G'!L19*SUPUESTOS!L37) -> 
B36: (=) Cambio en efectivo | C36: =IF(C3="","",C19+C21-SUM(C22:C28)+SUM(C29:C34)-C35) -> -605884808.5 | D36: 505133106.1 | E36: -34722010.84 | F36: -607860777.8 | G36: 1499929591
H38: 1576960

Sheet KPI'S
B1: KPI'S | L1: ROMA INVESTI
C3: =+IF(SUPUESTOS!C3="","",SUPUESTOS!C3) -> Año 1 | D3: =+IF(SUPUESTOS!D3="","",SUPUESTOS!D3) -> Año 2 | E3: =+IF(SUPUESTOS!E3="","",SUPUESTOS!E3) -> Año 3 | F3: =+IF(SUPUESTOS!F3="","",SUPUESTOS!F3) -> Año 4 | G3: =+IF(SUPUESTOS!G3="","",SUPUESTOS!G3) -> Año 5 | H3: =+IF(SUPUESTOS!H3="","",SUPUESTOS!H3) ->  | I3: =+IF(SUPUESTOS!I3="","",SUPUESTOS!I3) ->  | J3: =+IF(SUPUESTOS!J3="","",SUPUESTOS!J3) ->  | K3: =+IF(SUPUESTOS!K3="","",SUPUESTOS!K3) ->  | L3: =+IF(SUPUESTOS!L3="","",SUPUESTOS!L3) -> 
B4: Avance acumulado (Curva S) | C4: =+IF(C3="","",SUPUESTOS!C8) -> 0 | D4: =+IF(D3="","",SUPUESTOS!D8) -> 0.07010371655 | E4: =+IF(E3="","",SUPUESTOS!E8) -> 0.5 | F4: =+IF(F3="","",SUPUESTOS!F8) -> 0.9298962835 | G4: =+IF(G3="","",SUPUESTOS!G8) -> 1 | H4: =+IF(H3="","",SUPUESTOS!H8) ->  | I4: =+IF(I3="","",SUPUESTOS!I8) ->  | J4: =+IF(J3="","",SUPUESTOS!J8) ->  | K4: =+IF(K3="","",SUPUESTOS!K8) ->  | L4: =+IF(L3="","",SUPUESTOS!L8) -> 
B5: Terreno | C5: =+IF(C3="","",SUPUESTOS!C5) -> 401800000 | D5: =+IF(D3="","",SUPUESTOS!D5) -> 0 | E5: =+IF(E3="","",SUPUESTOS!E5) -> 0 | F5: =+IF(F3="","",SUPUESTOS!F5) -> 0 | G5: =+IF(G3="","",SUPUESTOS!G5) -> 0 | H5: =+IF(H3="","",SUPUESTOS!H5) ->  | I5: =+IF(I3="","",SUPUESTOS!I5) ->  | J5: =+IF(J3="","",SUPUESTOS!J5) ->  | K5: =+IF(K3="","",SUPUESTOS!K5) ->  | L5: =+IF(L3="","",SUPUESTOS!L5) -> 
B6: Estructuración | C6: =+IF(C3="","",SUPUESTOS!C4) -> 86100000 | D6: =+IF(D3="","",SUPUESTOS!D4) -> 0 | E6: =+IF(E3="","",SUPUESTOS!E4) -> 0 | F6: =+IF(F3="","",SUPUESTOS!F4) -> 0 | G6: =+IF(G3="","",SUPUESTOS!G4) -> 0 | H6: =+IF(H3="","",SUPUESTOS!H4) ->  | I6: =+IF(I3="","",SUPUESTOS!I4) ->  | J6: =+IF(J3="","",SUPUESTOS!J4) ->  | K6: =+IF(K3="","",SUPUESTOS!K4) ->  | L6: =+IF(L3="","",SUPUESTOS!L4) -> 
B7: Licencias y permisos | C7: =+IF(C3="","",SUPUESTOS!C6) -> 57400000 | D7: =+IF(D3="","",SUPUESTOS!D6) -> 0 | E7: =+IF(E3="","",SUPUESTOS!E6) -> 0 | F7: =+IF(F3="","",SUPUESTOS!F6) -> 0 | G7: =+IF(G3="","",SUPUESTOS!G6) -> 0 | H7: =+IF(H3="","",SUPUESTOS!H6) ->  | I7: =+IF(I3="","",SUPUESTOS!I6) ->  | J7: =+IF(J3="","",SUPUESTOS!J6) ->  | K7: =+IF(K3="","",SUPUESTOS!K6) ->  | L7: =+IF(L3="","",SUPUESTOS!L6) -> 
B8: Fiducia | C8: =+IF(C3="","",SUPUESTOS!C12) -> 16433907 | D8: =+IF(D3="","",SUPUESTOS!D12) -> 4785754.478 | E8: =+IF(E3="","",SUPUESTOS!E12) -> 27909019.03 | F8: =+IF(F3="","",SUPUESTOS!F12) -> 29309361.44 | G8: =+IF(G3="","",SUPUESTOS!G12) -> 8853148.99 | H8: =+IF(H3="","",SUPUESTOS!H12) ->  | I8: =+IF(I3="","",SUPUESTOS!I12) ->  | J8: =+IF(J3="","",SUPUESTOS!J12) ->  | K8: =+IF(K3="","",SUPUESTOS!K12) ->  | L8: =+IF(L3="","",SUPUESTOS!L12) -> 
B9: Construcción | C9: =+IF(C3="","",SUPUESTOS!C10) -> 0 | D9: =+IF(D3="","",SUPUESTOS!D10) -> 128655847.8 | E9: =+IF(E3="","",SUPUESTOS!E10) -> 828402647.3 | F9: =+IF(F3="","",SUPUESTOS!F10) -> 869822779.6 | G9: =+IF(G3="","",SUPUESTOS!G10) -> 148935225.8 | H9: =+IF(H3="","",SUPUESTOS!H10) ->  | I9: =+IF(I3="","",SUPUESTOS!I10) ->  | J9: =+IF(J3="","",SUPUESTOS!J10) ->  | K9: =+IF(K3="","",SUPUESTOS!K10) ->  | L9: =+IF(L3="","",SUPUESTOS!L10) -> 
B10: Gerencia | C10: =+IF(C3="","",SUPUESTOS!C11) -> 0 | D10: =+IF(D3="","",SUPUESTOS!D11) -> 12865584.78 | E10: =+IF(E3="","",SUPUESTOS!E11) -> 82840264.73 | F10: =+IF(F3="","",SUPUESTOS!F11) -> 86982277.96 | G10: =+IF(G3="","",SUPUESTOS!G11) -> 14893522.58 | H10: =+IF(H3="","",SUPUESTOS!H11) ->  | I10: =+IF(I3="","",SUPUESTOS!I11) ->  | J10: =+IF(J3="","",SUPUESTOS!J11) ->  | K10: =+IF(K3="","",SUPUESTOS!K11) ->  | L10: =+IF(L3="","",SUPUESTOS!L11) -> 
B11: Comercialización | C11: =+IF(C3="","",SUPUESTOS!C16+SUPUESTOS!C17) -> 0 | D11: =+IF(D3="","",SUPUESTOS!D16+SUPUESTOS!D17) -> 10544873.64 | E11: =+IF(E3="","",SUPUESTOS!E16+SUPUESTOS!E17) -> 11177566.06 | F11: =+IF(F3="","",SUPUESTOS!F16+SUPUESTOS!F17) -> 11848220.02 | G11: =+IF(G3="","",SUPUESTOS!G16+SUPUESTOS!G17) -> 87913792.56 | H11: =+IF(H3="","",SUPUESTOS!H16+SUPUESTOS!H17) ->  | I11: =+IF(I3="","",SUPUESTOS!I16+SUPUESTOS!I17) ->  | J11: =+IF(J3="","",SUPUESTOS!J16+SUPUESTOS!J17) ->  | K11: =+IF(K3="","",SUPUESTOS!K16+SUPUESTOS!K17) ->  | L11: =+IF(L3="","",SUPUESTOS!L16+SUPUESTOS!L17) -> 
B12: Financieros (Neto) | C12: =+IF(C3="","",'P&G'!C15+'P&G'!C16-'P&G'!C14) -> -6074098.455 | D12: =+IF(D3="","",'P&G'!D15+'P&G'!D16-'P&G'!D14) -> -1594796.347 | E12: =+IF(E3="","",'P&G'!E15+'P&G'!E16-'P&G'!E14) -> 6467972.375 | F12: =+IF(F3="","",'P&G'!F15+'P&G'!F16-'P&G'!F14) -> 50746668.51 | G12: =+IF(G3="","",'P&G'!G15+'P&G'!G16-'P&G'!G14) -> 62525816.97 | H12: =+IF(H3="","",'P&G'!H15+'P&G'!H16-'P&G'!H14) ->  | I12: =+IF(I3="","",'P&G'!I15+'P&G'!I16-'P&G'!I14) ->  | J12: =+IF(J3="","",'P&G'!J15+'P&G'!J16-'P&G'!J14) ->  | K12: =+IF(K3="","",'P&G'!K15+'P&G'!K16-'P&G'!K14) ->  | L12: =+IF(L3="","",'P&G'!L15+'P&G'!L16-'P&G'!L14) -> 
B13: Impuestos | C13: =+IF(C3="","",IF(SUPUESTOS!C18+'P&G'!C18<0,0,SUPUESTOS!C18+'P&G'!C18)) -> 0 | D13: =+IF(D3="","",IF(SUPUESTOS!D18+'P&G'!D18<0,0,SUPUESTOS!D18+'P&G'!D18)) -> 60154468.87 | E13: =+IF(E3="","",IF(SUPUESTOS!E18+'P&G'!E18<0,0,SUPUESTOS!E18+'P&G'!E18)) -> 0 | F13: =+IF(F3="","",IF(SUPUESTOS!F18+'P&G'!F18<0,0,SUPUESTOS!F18+'P&G'!F18)) -> 0 | G13: =+IF(G3="","",IF(SUPUESTOS!G18+'P&G'!G18<0,0,SUPUESTOS!G18+'P&G'!G18)) -> 852932195.3 | H13: =+IF(H3="","",IF(SUPUESTOS!H18+'P&G'!H18<0,0,SUPUESTOS!H18+'P&G'!H18)) ->  | I13: =+IF(I3="","",IF(SUPUESTOS!I18+'P&G'!I18<0,0,SUPUESTOS!I18+'P&G'!I18)) ->  | J13: =+IF(J3="","",IF(SUPUESTOS!J18+'P&G'!J18<0,0,SUPUESTOS!J18+'P&G'!J18)) ->  | K13: =+IF(K3="","",IF(SUPUESTOS!K18+'P&G'!K18<0,0,SUPUESTOS!K18+'P&G'!K18)) ->  | L13: =+IF(L3="","",IF(SUPUESTOS!L18+'P&G'!L18<0,0,SUPUESTOS!L18+'P&G'!L18)) -> 
B14: Inversión total | C14: =+IF(C3="","",SUM(C5:C13)) -> 555659808.5 | D14: 215411733.3 | E14: 956797469.5 | F14: 1048709308 | G14: 1176053702
B15: Inversión total acumulada | C15: =+IF(C3="","",IF(VALUE(RIGHT(C3,LEN(C3)-FIND(" ",C3)))=1,C14,B15+C14)) -> 555659808.5 | D15: 771071541.8 | E15: 1727869011 | F15: 2776578319 | G15: 3952632021
B16: Ventas | C16: =+IF(C3="","",'P&G'!C4) -> 0 | D16: =+IF(D3="","",'P&G'!D4) -> 322473200 | E16: =+IF(E3="","",'P&G'!E4) -> 341821592 | F16: =+IF(F3="","",'P&G'!F4) -> 362330887.5 | G16: =+IF(G3="","",'P&G'!G4) -> 2688495185 | H16: =+IF(H3="","",'P&G'!H4) ->  | I16: =+IF(I3="","",'P&G'!I4) ->  | J16: =+IF(J3="","",'P&G'!J4) ->  | K16: =+IF(K3="","",'P&G'!K4) ->  | L16: =+IF(L3="","",'P&G'!L4) -> 
B17: Ventas acumuladas | C17: =+IF(C3="","",IF(VALUE(RIGHT(C3,LEN(C3)-FIND(" ",C3)))=1,'P&G'!C4,B17+'P&G'!C4)) -> 0 | D17: =+IF(D3="","",IF(VALUE(RIGHT(D3,LEN(D3)-FIND(" ",D3)))=1,'P&G'!D4,C17+'P&G'!D4)) -> 322473200 | E17: =+IF(E3="","",IF(VALUE(RIGHT(E3,LEN(E3)-FIND(" ",E3)))=1,'P&G'!E4,D17+'P&G'!E4)) -> 664294792 | F17: =+IF(F3="","",IF(VALUE(RIGHT(F3,LEN(F3)-FIND(" ",F3)))=1,'P&G'!F4,E17+'P&G'!F4)) -> 1026625680 | G17: =+IF(G3="","",IF(VALUE(RIGHT(G3,LEN(G3)-FIND(" ",G3)))=1,'P&G'!G4,F17+'P&G'!G4)) -> 3715120865 | H17: =+IF(H3="","",IF(VALUE(RIGHT(H3,LEN(H3)-FIND(" ",H3)))=1,'P&G'!H4,G17+'P&G'!H4)) ->  | I17: =+IF(I3="","",IF(VALUE(RIGHT(I3,LEN(I3)-FIND(" ",I3)))=1,'P&G'!I4,H17+'P&G'!I4)) ->  | J17: =+IF(J3="","",IF(VALUE(RIGHT(J3,LEN(J3)-FIND(" ",J3)))=1,'P&G'!J4,I17+'P&G'!J4)) ->  | K17: =+IF(K3="","",IF(VALUE(RIGHT(K3,LEN(K3)-FIND(" ",K3)))=1,'P&G'!K4,J17+'P&G'!K4)) ->  | L17: =+IF(L3="","",IF(VALUE(RIGHT(L3,LEN(L3)-FIND(" ",L3)))=1,'P&G'!L4,K17+'P&G'!L4)) -> 
B18: Punto de equilibrio | C18: =+IF(C3="","",IF((C17/(SUM(_xlfn._xlws.FILTER($C$14:$L$14,$C$14:$L$14<>""))))>1,1,C17/(SUM(_xlfn._xlws.FILTER(C$14:L$14,$C$14:$L$14<>""))))) -> 0 | D18: =+IF(D3="","",IF((D17/(SUM(_xlfn._xlws.FILTER($C$14:$L$14,$C$14:$L$14<>""))))>1,1,D17/(SUM(_xlfn._xlws.FILTER(D$14:M$14,$C$14:$L$14<>""))))) -> 0.09492959607 | E18: =+IF(E3="","",IF((E17/(SUM(_xlfn._xlws.FILTER($C$14:$L$14,$C$14:$L$14<>""))))>1,1,E17/(SUM(_xlfn._xlws.FILTER(E$14:N$14,$C$14:$L$14<>""))))) -> 0.208795274 | F18: =+IF(F3="","",IF((F17/(SUM(_xlfn._xlws.FILTER($C$14:$L$14,$C$14:$L$14<>""))))>1,1,F17/(SUM(_xlfn._xlws.FILTER(F$14:O$14,$C$14:$L$14<>""))))) -> 0.4614539504 | G18: =+IF(G3="","",IF((G17/(SUM(_xlfn._xlws.FILTER($C$14:$L$14,$C$14:$L$14<>""))))>1,1,G17/(SUM(_xlfn._xlws.FILTER(G$14:P$14,$C$14:$L$14<>""))))) -> 3.158972127 | H18: =+IF(H3="","",IF((H17/(SUM(_xlfn._xlws.FILTER($C$14:$L$14,$C$14:$L$14<>""))))>1,1,H17/(SUM(_xlfn._xlws.FILTER(H$14:Q$14,$C$14:$L$14<>""))))) ->  | I18: =+IF(I3="","",IF((I17/(SUM(_xlfn._xlws.FILTER($C$14:$L$14,$C$14:$L$14<>""))))>1,1,I17/(SUM(_xlfn._xlws.FILTER(I$14:R$14,$C$14:$L$14<>""))))) ->  | J18: =+IF(J3="","",IF((J17/(SUM(_xlfn._xlws.FILTER($C$14:$L$14,$C$14:$L$14<>""))))>1,1,J17/(SUM(_xlfn._xlws.FILTER(J$14:S$14,$C$14:$L$14<>""))))) ->  | K18: =+IF(K3="","",IF((K17/(SUM(_xlfn._xlws.FILTER($C$14:$L$14,$C$14:$L$14<>""))))>1,1,K17/(SUM(_xlfn._xlws.FILTER(K$14:T$14,$C$14:$L$14<>""))))) ->  | L18: =+IF(L3="","",IF((L17/(SUM(_xlfn._xlws.FILTER($C$14:$L$14,$C$14:$L$14<>""))))>1,1,L17/(SUM(_xlfn._xlws.FILTER(L$14:U$14,$C$14:$L$14<>""))))) -> 
B19: Efectivo Acumulado | C19: =+IF(C3="","",BALANCE!C6) -> 348390191.5 | D19: =+IF(D3="","",BALANCE!D6) -> 853523297.6 | E19: =+IF(E3="","",BALANCE!E6) -> 818801286.7 | F19: =+IF(F3="","",BALANCE!F6) -> 210940508.9 | G19: =+IF(G3="","",BALANCE!G6) -> 1710870100 | H19: =+IF(H3="","",BALANCE!H6) ->  | I19: =+IF(I3="","",BALANCE!I6) ->  | J19: =+IF(J3="","",BALANCE!J6) ->  | K19: =+IF(K3="","",BALANCE!K6) ->  | L19: =+IF(L3="","",BALANCE!L6) -> 
B20: EBITDA | C20: =+IF(C3="","",IF('P&G'!C13<0,0,'P&G'!C13+'P&G'!C12+'P&G'!C11+'P&G'!C8+'P&G'!C7)) -> 0 | D20: =+IF(D3="","",IF('P&G'!D13<0,0,'P&G'!D13+'P&G'!D12+'P&G'!D11+'P&G'!D8+'P&G'!D7)) -> 160784041.3 | E20: =+IF(E3="","",IF('P&G'!E13<0,0,'P&G'!E13+'P&G'!E12+'P&G'!E11+'P&G'!E8+'P&G'!E7)) -> 0 | F20: =+IF(F3="","",IF('P&G'!F13<0,0,'P&G'!F13+'P&G'!F12+'P&G'!F11+'P&G'!F8+'P&G'!F7)) -> 0 | G20: =+IF(G3="","",IF('P&G'!G13<0,0,'P&G'!G13+'P&G'!G12+'P&G'!G11+'P&G'!G8+'P&G'!G7)) -> 2387572068 | H20: =+IF(H3="","",IF('P&G'!H13<0,0,'P&G'!H13+'P&G'!H12+'P&G'!H11+'P&G'!H8+'P&G'!H7)) ->  | I20: =+IF(I3="","",IF('P&G'!I13<0,0,'P&G'!I13+'P&G'!I12+'P&G'!I11+'P&G'!I8+'P&G'!I7)) ->  | J20: =+IF(J3="","",IF('P&G'!J13<0,0,'P&G'!J13+'P&G'!J12+'P&G'!J11+'P&G'!J8+'P&G'!J7)) ->  | K20: =+IF(K3="","",IF('P&G'!K13<0,0,'P&G'!K13+'P&G'!K12+'P&G'!K11+'P&G'!K8+'P&G'!K7)) ->  | L20: =+IF(L3="","",IF('P&G'!L13<0,0,'P&G'!L13+'P&G'!L12+'P&G'!L11+'P&G'!L8+'P&G'!L7)) ->  | M20: =+IF(M3="","",#REF!+#REF!+#REF!+#REF!+#REF!) ->  | N20: =+IF(N3="","",#REF!+#REF!+#REF!+#REF!+#REF!) ->  | O20: =+IF(O3="","",#REF!+#REF!+#REF!+#REF!+#REF!) ->  | P20: =+IF(P3="","",#REF!+#REF!+#REF!+#REF!+#REF!) ->  | Q20: =+IF(Q3="","",#REF!+#REF!+#REF!+#REF!+#REF!) ->  | R20: =+IF(R3="","",#REF!+#REF!+#REF!+#REF!+#REF!) ->  | S20: =+IF(S3="","",#REF!+#REF!+#REF!+#REF!+#REF!) ->  | T20: =+IF(T3="","",#REF!+#REF!+#REF!+#REF!+#REF!) ->  | U20: =+IF(U3="","",#REF!+#REF!+#REF!+#REF!+#REF!) ->  | V20: =+IF(V3="","",#REF!+#REF!+#REF!+#REF!+#REF!) ->  | W20: =+IF(W3="","",#REF!+#REF!+#REF!+#REF!+#REF!) ->  | X20: =+IF(X3="","",#REF!+#REF!+#REF!+#REF!+#REF!) ->  | Y20: =+IF(Y3="","",#REF!+#REF!+#REF!+#REF!+#REF!) ->  | Z20: =+IF(Z3="","",#REF!+#REF!+#REF!+#REF!+#REF!) ->  | AA20: =+IF(AA3="","",#REF!+#REF!+#REF!+#REF!+#REF!) ->  | AB20: =+IF(AB3="","",#REF!+#REF!+#REF!+#REF!+#REF!) ->  | AC20: =+IF(AC3="","",#REF!+#REF!+#REF!+#REF!+#REF!) ->  | AD20: =+IF(AD3="","",#REF!+#REF!+#REF!+#REF!+#REF!) ->  | AE20: =+IF(AE3="","",#REF!+#REF!+#REF!+#REF!+#REF!) ->  | AF20: =+IF(AF3="","",#REF!+#REF!+#REF!+#REF!+#REF!) ->  | AG20: =+IF(AG3="","",#REF!+#REF!+#REF!+#REF!+#REF!) ->  | AH20: =+IF(AH3="","",#REF!+#REF!+#REF!+#REF!+#REF!) ->  | AI20: =+IF(AI3="","",#REF!+#REF!+#REF!+#REF!+#REF!) ->  | AJ20: =+IF(AJ3="","",#REF!+#REF!+#REF!+#REF!+#REF!) ->  | AK20: =+IF(AK3="","",#REF!+#REF!+#REF!+#REF!+#REF!) ->  | AL20: =+IF(AL3="","",#REF!+#REF!+#REF!+#REF!+#REF!) ->  | AM20: =+IF(AM3="","",#REF!+#REF!+#REF!+#REF!+#REF!) ->  | AN20: =+IF(AN3="","",#REF!+#REF!+#REF!+#REF!+#REF!) ->  | AO20: =+IF(AO3="","",#REF!+#REF!+#REF!+#REF!+#REF!) ->  | AP20: =+IF(AP3="","",#REF!+#REF!+#REF!+#REF!+#REF!) ->  | AQ20: =+IF(AQ3="","",#REF!+#REF!+#REF!+#REF!+#REF!) ->  | AR20: =+IF(AR3="","",#REF!+#REF!+#REF!+#REF!+#REF!) ->  | AS20: =+IF(AS3="","",#REF!+#REF!+#REF!+#REF!+#REF!) ->  | AT20: =+IF(AT3="","",#REF!+#REF!+#REF!+#REF!+#REF!) ->  | AU20: =+IF(AU3="","",#REF!+#REF!+#REF!+#REF!+#REF!) ->  | AV20: =+IF(AV3="","",#REF!+#REF!+#REF!+#REF!+#REF!) ->  | AW20: =+IF(AW3="","",#REF!+#REF!+#REF!+#REF!+#REF!) ->  | AX20: =+IF(AX3="","",#REF!+#REF!+#REF!+#REF!+#REF!) ->  | AY20: =+IF(AY3="","",#REF!+#REF!+#REF!+#REF!+#REF!) ->  | AZ20: =+IF(AZ3="","",#REF!+#REF!+#REF!+#REF!+#REF!) ->  | BA20: =+IF(BA3="","",#REF!+#REF!+#REF!+#REF!+#REF!) ->  | BB20: =+IF(BB3="","",#REF!+#REF!+#REF!+#REF!+#REF!) ->  | BC20: =+IF(BC3="","",#REF!+#REF!+#REF!+#REF!+#REF!) ->  | BD20: =+IF(BD3="","",#REF!+#REF!+#REF!+#REF!+#REF!) ->  | BE20: =+IF(BE3="","",#REF!+#REF!+#REF!+#REF!+#REF!) ->  | BF20: =+IF(BF3="","",#REF!+#REF!+#REF!+#REF!+#REF!) ->  | BG20: =+IF(BG3="","",#REF!+#REF!+#REF!+#REF!+#REF!) ->  | BH20: =+IF(BH3="","",#REF!+#REF!+#REF!+#REF!+#REF!) ->  | BI20: =+IF(BI3="","",#REF!+#REF!+#REF!+#REF!+#REF!) ->  | BJ20: =+IF(BJ3="","",#REF!+#REF!+#REF!+#REF!+#REF!) ->  | BK20: =+IF(BK3="","",#REF!+#REF!+#REF!+#REF!+#REF!) ->  | BL20: =+IF(BL3="","",#REF!+#REF!+#REF!+#REF!+#REF!) ->  | BM20: =+IF(BM3="","",#REF!+#REF!+#REF!+#REF!+#REF!) ->  | BN20: =+IF(BN3="","",#REF!+#REF!+#REF!+#REF!+#REF!) ->  | BO20: =+IF(BO3="","",#REF!+#REF!+#REF!+#REF!+#REF!) ->  | BP20: =+IF(BP3="","",#REF!+#REF!+#REF!+#REF!+#REF!) ->  | BQ20: =+IF(BQ3="","",#REF!+#REF!+#REF!+#REF!+#REF!) ->  | BR20: =+IF(BR3="","",#REF!+#REF!+#REF!+#REF!+#REF!) ->  | BS20: =+IF(BS3="","",#REF!+#REF!+#REF!+#REF!+#REF!) ->  | BT20: =+IF(BT3="","",#REF!+#REF!+#REF!+#REF!+#REF!) ->  | BU20: =+IF(BU3="","",#REF!+#REF!+#REF!+#REF!+#REF!) ->  | BV20: =+IF(BV3="","",#REF!+#REF!+#REF!+#REF!+#REF!) ->  | BW20: =+IF(BW3="","",#REF!+#REF!+#REF!+#REF!+#REF!) ->  | BX20: =+IF(BX3="","",#REF!+#REF!+#REF!+#REF!+#REF!) ->  | BY20: =+IF(BY3="","",#REF!+#REF!+#REF!+#REF!+#REF!) ->  | BZ20: =+IF(BZ3="","",#REF!+#REF!+#REF!+#REF!+#REF!) ->  | CA20: =+IF(CA3="","",#REF!+#REF!+#REF!+#REF!+#REF!) ->  | CB20: =+IF(CB3="","",#REF!+#REF!+#REF!+#REF!+#REF!) ->  | CC20: =+IF(CC3="","",#REF!+#REF!+#REF!+#REF!+#REF!) ->  | CD20: =+IF(CD3="","",#REF!+#REF!+#REF!+#REF!+#REF!) ->  | CE20: =+IF(CE3="","",#REF!+#REF!+#REF!+#REF!+#REF!) ->  | CF20: =+IF(CF3="","",#REF!+#REF!+#REF!+#REF!+#REF!) ->  | CG20: =+IF(CG3="","",#REF!+#REF!+#REF!+#REF!+#REF!) ->  | CH20: =+IF(CH3="","",#REF!+#REF!+#REF!+#REF!+#REF!) ->  | CI20: =+IF(CI3="","",#REF!+#REF!+#REF!+#REF!+#REF!) ->  | CJ20: =+IF(CJ3="","",#REF!+#REF!+#REF!+#REF!+#REF!) ->  | CK20: =+IF(CK3="","",#REF!+#REF!+#REF!+#REF!+#REF!) ->  | CL20: =+IF(CL3="","",#REF!+#REF!+#REF!+#REF!+#REF!) ->  | CM20: =+IF(CM3="","",#REF!+#REF!+#REF!+#REF!+#REF!) ->  | CN20: =+IF(CN3="","",#REF!+#REF!+#REF!+#REF!+#REF!) ->  | CO20: =+IF(CO3="","",#REF!+#REF!+#REF!+#REF!+#REF!) ->  | CP20: =+IF(CP3="","",#REF!+#REF!+#REF!+#REF!+#REF!) ->  | CQ20: =+IF(CQ3="","",#REF!+#REF!+#REF!+#REF!+#REF!) ->  | CR20: =+IF(CR3="","",#REF!+#REF!+#REF!+#REF!+#REF!) ->  | CS20: =+IF(CS3="","",#REF!+#REF!+#REF!+#REF!+#REF!) ->  | CT20: =+IF(CT3="","",#REF!+#REF!+#REF!+#REF!+#REF!) ->  | CU20: =+IF(CU3="","",#REF!+#REF!+#REF!+#REF!+#REF!) ->  | CV20: =+IF(CV3="","",#REF!+#REF!+#REF!+#REF!+#REF!) ->  | CW20: =+IF(CW3="","",#REF!+#REF!+#REF!+#REF!+#REF!) ->  | CX20: =+IF(CX3="","",#REF!+#REF!+#REF!+#REF!+#REF!) ->  | CY20: =+IF(CY3="","",#REF!+#REF!+#REF!+#REF!+#REF!) ->  | CZ20: =+IF(CZ3="","",#REF!+#REF!+#REF!+#REF!+#REF!) ->  | DA20: =+IF(DA3="","",#REF!+#REF!+#REF!+#REF!+#REF!) ->  | DB20: =+IF(DB3="","",#REF!+#REF!+#REF!+#REF!+#REF!) ->  | DC20: =+IF(DC3="","",#REF!+#REF!+#REF!+#REF!+#REF!) ->  | DD20: =+IF(DD3="","",#REF!+#REF!+#REF!+#REF!+#REF!) ->  | DE20: =+IF(DE3="","",#REF!+#REF!+#REF!+#REF!+#REF!) ->  | DF20: =+IF(DF3="","",#REF!+#REF!+#REF!+#REF!+#REF!) ->  | DG20: =+IF(DG3="","",#REF!+#REF!+#REF!+#REF!+#REF!) ->  | DH20: =+IF(DH3="","",#REF!+#REF!+#REF!+#REF!+#REF!) ->  | DI20: =+IF(DI3="","",#REF!+#REF!+#REF!+#REF!+#REF!) ->  | DJ20: =+IF(DJ3="","",#REF!+#REF!+#REF!+#REF!+#REF!) ->  | DK20: =+IF(DK3="","",#REF!+#REF!+#REF!+#REF!+#REF!) ->  | DL20: =+IF(DL3="","",#REF!+#REF!+#REF!+#REF!+#REF!) ->  | DM20: =+IF(DM3="","",#REF!+#REF!+#REF!+#REF!+#REF!) ->  | DN20: =+IF(DN3="","",#REF!+#REF!+#REF!+#REF!+#REF!) ->  | DO20: =+IF(DO3="","",#REF!+#REF!+#REF!+#REF!+#REF!) ->  | DP20: =+IF(DP3="","",#REF!+#REF!+#REF!+#REF!+#REF!) ->  | DQ20: =+IF(DQ3="","",#REF!+#REF!+#REF!+#REF!+#REF!) ->  | DR20: =+IF(DR3="","",#REF!+#REF!+#REF!+#REF!+#REF!) -> 
B21: Flujo de caja libre (Año) | C21: =+IF(C3="","",'FLUJO DE CAJA'!C19) -> -604624952 | D21: =+IF(D3="","",'FLUJO DE CAJA'!D19) -> 495806500.2 | E21: =+IF(E3="","",'FLUJO DE CAJA'!E19) -> 183079144.3 | F21: =+IF(F3="","",'FLUJO DE CAJA'!F19) -> -361590907.5 | G21: =+IF(G3="","",'FLUJO DE CAJA'!G19) -> 991984276.6 | H21: =+IF(H3="","",'FLUJO DE CAJA'!H19) ->  | I21: =+IF(I3="","",'FLUJO DE CAJA'!I19) ->  | J21: =+IF(J3="","",'FLUJO DE CAJA'!J19) ->  | K21: =+IF(K3="","",'FLUJO DE CAJA'!K19) ->  | L21: =+IF(L3="","",'FLUJO DE CAJA'!L19) -> 
B22: Margen Ebitda | C22: =+IF(C3="","",IF(C20=0,0,C20/'P&G'!C5)) -> 0 | D22: =+IF(D3="","",IF(D20=0,0,D20/'P&G'!D5)) -> 0.4985966005 | E22: =+IF(E3="","",IF(E20=0,0,E20/'P&G'!E5)) -> 0 | F22: =+IF(F3="","",IF(F20=0,0,F20/'P&G'!F5)) -> 0 | G22: =+IF(G3="","",IF(G20=0,0,G20/'P&G'!G5)) -> 0.8880700552 | H22: =+IF(H3="","",IF(H20=0,0,H20/'P&G'!H5)) ->  | I22: =+IF(I3="","",IF(I20=0,0,I20/'P&G'!I5)) ->  | J22: =+IF(J3="","",IF(J20=0,0,J20/'P&G'!J5)) ->  | K22: =+IF(K3="","",IF(K20=0,0,K20/'P&G'!K5)) ->  | L22: =+IF(L3="","",IF(L20=0,0,L20/'P&G'!L5)) ->  | M22: =+IF(M3="","",IF(M20<=0,0,M20/#REF!)) ->  | N22: =+IF(N3="","",IF(N20<=0,0,N20/#REF!)) ->  | O22: =+IF(O3="","",IF(O20<=0,0,O20/#REF!)) ->  | P22: =+IF(P3="","",IF(P20<=0,0,P20/#REF!)) ->  | Q22: =+IF(Q3="","",IF(Q20<=0,0,Q20/#REF!)) ->  | R22: =+IF(R3="","",IF(R20<=0,0,R20/#REF!)) ->  | S22: =+IF(S3="","",IF(S20<=0,0,S20/#REF!)) ->  | T22: =+IF(T3="","",IF(T20<=0,0,T20/#REF!)) ->  | U22: =+IF(U3="","",IF(U20<=0,0,U20/#REF!)) ->  | V22: =+IF(V3="","",IF(V20<=0,0,V20/#REF!)) ->  | W22: =+IF(W3="","",IF(W20<=0,0,W20/#REF!)) ->  | X22: =+IF(X3="","",IF(X20<=0,0,X20/#REF!)) ->  | Y22: =+IF(Y3="","",IF(Y20<=0,0,Y20/#REF!)) ->  | Z22: =+IF(Z3="","",IF(Z20<=0,0,Z20/#REF!)) ->  | AA22: =+IF(AA3="","",IF(AA20<=0,0,AA20/#REF!)) ->  | AB22: =+IF(AB3="","",IF(AB20<=0,0,AB20/#REF!)) ->  | AC22: =+IF(AC3="","",IF(AC20<=0,0,AC20/#REF!)) ->  | AD22: =+IF(AD3="","",IF(AD20<=0,0,AD20/#REF!)) ->  | AE22: =+IF(AE3="","",IF(AE20<=0,0,AE20/#REF!)) ->  | AF22: =+IF(AF3="","",IF(AF20<=0,0,AF20/#REF!)) ->  | AG22: =+IF(AG3="","",IF(AG20<=0,0,AG20/#REF!)) ->  | AH22: =+IF(AH3="","",IF(AH20<=0,0,AH20/#REF!)) ->  | AI22: =+IF(AI3="","",IF(AI20<=0,0,AI20/#REF!)) ->  | AJ22: =+IF(AJ3="","",IF(AJ20<=0,0,AJ20/#REF!)) ->  | AK22: =+IF(AK3="","",IF(AK20<=0,0,AK20/#REF!)) ->  | AL22: =+IF(AL3="","",IF(AL20<=0,0,AL20/#REF!)) ->  | AM22: =+IF(AM3="","",IF(AM20<=0,0,AM20/#REF!)) ->  | AN22: =+IF(AN3="","",IF(AN20<=0,0,AN20/#REF!)) ->  | AO22: =+IF(AO3="","",IF(AO20<=0,0,AO20/#REF!)) ->  | AP22: =+IF(AP3="","",IF(AP20<=0,0,AP20/#REF!)) ->  | AQ22: =+IF(AQ3="","",IF(AQ20<=0,0,AQ20/#REF!)) ->  | AR22: =+IF(AR3="","",IF(AR20<=0,0,AR20/#REF!)) ->  | AS22: =+IF(AS3="","",IF(AS20<=0,0,AS20/#REF!)) ->  | AT22: =+IF(AT3="","",IF(AT20<=0,0,AT20/#REF!)) ->  | AU22: =+IF(AU3="","",IF(AU20<=0,0,AU20/#REF!)) ->  | AV22: =+IF(AV3="","",IF(AV20<=0,0,AV20/#REF!)) ->  | AW22: =+IF(AW3="","",IF(AW20<=0,0,AW20/#REF!)) ->  | AX22: =+IF(AX3="","",IF(AX20<=0,0,AX20/#REF!)) ->  | AY22: =+IF(AY3="","",IF(AY20<=0,0,AY20/#REF!)) ->  | AZ22: =+IF(AZ3="","",IF(AZ20<=0,0,AZ20/#REF!)) ->  | BA22: =+IF(BA3="","",IF(BA20<=0,0,BA20/#REF!)) ->  | BB22: =+IF(BB3="","",IF(BB20<=0,0,BB20/#REF!)) ->  | BC22: =+IF(BC3="","",IF(BC20<=0,0,BC20/#REF!)) ->  | BD22: =+IF(BD3="","",IF(BD20<=0,0,BD20/#REF!)) ->  | BE22: =+IF(BE3="","",IF(BE20<=0,0,BE20/#REF!)) ->  | BF22: =+IF(BF3="","",IF(BF20<=0,0,BF20/#REF!)) ->  | BG22: =+IF(BG3="","",IF(BG20<=0,0,BG20/#REF!)) ->  | BH22: =+IF(BH3="","",IF(BH20<=0,0,BH20/#REF!)) ->  | BI22: =+IF(BI3="","",IF(BI20<=0,0,BI20/#REF!)) ->  | BJ22: =+IF(BJ3="","",IF(BJ20<=0,0,BJ20/#REF!)) ->  | BK22: =+IF(BK3="","",IF(BK20<=0,0,BK20/#REF!)) ->  | BL22: =+IF(BL3="","",IF(BL20<=0,0,BL20/#REF!)) ->  | BM22: =+IF(BM3="","",IF(BM20<=0,0,BM20/#REF!)) ->  | BN22: =+IF(BN3="","",IF(BN20<=0,0,BN20/#REF!)) ->  | BO22: =+IF(BO3="","",IF(BO20<=0,0,BO20/#REF!)) ->  | BP22: =+IF(BP3="","",IF(BP20<=0,0,BP20/#REF!)) ->  | BQ22: =+IF(BQ3="","",IF(BQ20<=0,0,BQ20/#REF!)) ->  | BR22: =+IF(BR3="","",IF(BR20<=0,0,BR20/#REF!)) ->  | BS22: =+IF(BS3="","",IF(BS20<=0,0,BS20/#REF!)) ->  | BT22: =+IF(BT3="","",IF(BT20<=0,0,BT20/#REF!)) ->  | BU22: =+IF(BU3="","",IF(BU20<=0,0,BU20/#REF!)) ->  | BV22: =+IF(BV3="","",IF(BV20<=0,0,BV20/#REF!)) ->  | BW22: =+IF(BW3="","",IF(BW20<=0,0,BW20/#REF!)) ->  | BX22: =+IF(BX3="","",IF(BX20<=0,0,BX20/#REF!)) ->  | BY22: =+IF(BY3="","",IF(BY20<=0,0,BY20/#REF!)) ->  | BZ22: =+IF(BZ3="","",IF(BZ20<=0,0,BZ20/#REF!)) ->  | CA22: =+IF(CA3="","",IF(CA20<=0,0,CA20/#REF!)) ->  | CB22: =+IF(CB3="","",IF(CB20<=0,0,CB20/#REF!)) ->  | CC22: =+IF(CC3="","",IF(CC20<=0,0,CC20/#REF!)) ->  | CD22: =+IF(CD3="","",IF(CD20<=0,0,CD20/#REF!)) ->  | CE22: =+IF(CE3="","",IF(CE20<=0,0,CE20/#REF!)) ->  | CF22: =+IF(CF3="","",IF(CF20<=0,0,CF20/#REF!)) ->  | CG22: =+IF(CG3="","",IF(CG20<=0,0,CG20/#REF!)) ->  | CH22: =+IF(CH3="","",IF(CH20<=0,0,CH20/#REF!)) ->  | CI22: =+IF(CI3="","",IF(CI20<=0,0,CI20/#REF!)) ->  | CJ22: =+IF(CJ3="","",IF(CJ20<=0,0,CJ20/#REF!)) ->  | CK22: =+IF(CK3="","",IF(CK20<=0,0,CK20/#REF!)) ->  | CL22: =+IF(CL3="","",IF(CL20<=0,0,CL20/#REF!)) ->  | CM22: =+IF(CM3="","",IF(CM20<=0,0,CM20/#REF!)) ->  | CN22: =+IF(CN3="","",IF(CN20<=0,0,CN20/#REF!)) ->  | CO22: =+IF(CO3="","",IF(CO20<=0,0,CO20/#REF!)) ->  | CP22: =+IF(CP3="","",IF(CP20<=0,0,CP20/#REF!)) ->  | CQ22: =+IF(CQ3="","",IF(CQ20<=0,0,CQ20/#REF!)) ->  | CR22: =+IF(CR3="","",IF(CR20<=0,0,CR20/#REF!)) ->  | CS22: =+IF(CS3="","",IF(CS20<=0,0,CS20/#REF!)) ->  | CT22: =+IF(CT3="","",IF(CT20<=0,0,CT20/#REF!)) ->  | CU22: =+IF(CU3="","",IF(CU20<=0,0,CU20/#REF!)) ->  | CV22: =+IF(CV3="","",IF(CV20<=0,0,CV20/#REF!)) ->  | CW22: =+IF(CW3="","",IF(CW20<=0,0,CW20/#REF!)) ->  | CX22: =+IF(CX3="","",IF(CX20<=0,0,CX20/#REF!)) ->  | CY22: =+IF(CY3="","",IF(CY20<=0,0,CY20/#REF!)) ->  | CZ22: =+IF(CZ3="","",IF(CZ20<=0,0,CZ20/#REF!)) ->  | DA22: =+IF(DA3="","",IF(DA20<=0,0,DA20/#REF!)) ->  | DB22: =+IF(DB3="","",IF(DB20<=0,0,DB20/#REF!)) ->  | DC22: =+IF(DC3="","",IF(DC20<=0,0,DC20/#REF!)) ->  | DD22: =+IF(DD3="","",IF(DD20<=0,0,DD20/#REF!)) ->  | DE22: =+IF(DE3="","",IF(DE20<=0,0,DE20/#REF!)) ->  | DF22: =+IF(DF3="","",IF(DF20<=0,0,DF20/#REF!)) ->  | DG22: =+IF(DG3="","",IF(DG20<=0,0,DG20/#REF!)) ->  | DH22: =+IF(DH3="","",IF(DH20<=0,0,DH20/#REF!)) ->  | DI22: =+IF(DI3="","",IF(DI20<=0,0,DI20/#REF!)) ->  | DJ22: =+IF(DJ3="","",IF(DJ20<=0,0,DJ20/#REF!)) ->  | DK22: =+IF(DK3="","",IF(DK20<=0,0,DK20/#REF!)) ->  | DL22: =+IF(DL3="","",IF(DL20<=0,0,DL20/#REF!)) ->  | DM22: =+IF(DM3="","",IF(DM20<=0,0,DM20/#REF!)) ->  | DN22: =+IF(DN3="","",IF(DN20<=0,0,DN20/#REF!)) ->  | DO22: =+IF(DO3="","",IF(DO20<=0,0,DO20/#REF!)) ->  | DP22: =+IF(DP3="","",IF(DP20<=0,0,DP20/#REF!)) ->  | DQ22: =+IF(DQ3="","",IF(DQ20<=0,0,DQ20/#REF!)) ->  | DR22: =+IF(DR3="","",IF(DR20<=0,0,DR20/#REF!)) -> 
B23: Margen Neto | C23: =+IF(C3="","",IF('P&G'!C19<0,0,IF('P&G'!C5<=0,0,'P&G'!C19/'P&G'!C5))) -> 0 | D23: =+IF(D3="","",IF('P&G'!D19<0,0,IF('P&G'!D5<=0,0,'P&G'!D19/'P&G'!D5))) -> 0.3185761179 | E23: =+IF(E3="","",IF('P&G'!E19<0,0,IF('P&G'!E5<=0,0,'P&G'!E19/'P&G'!E5))) -> 0 | F23: =+IF(F3="","",IF('P&G'!F19<0,0,IF('P&G'!F5<=0,0,'P&G'!F19/'P&G'!F5))) -> 0 | G23: =+IF(G3="","",IF('P&G'!G19<0,0,IF('P&G'!G5<=0,0,'P&G'!G19/'P&G'!G5))) -> 0.5613263315 | H23: =+IF(H3="","",IF('P&G'!H19<0,0,IF('P&G'!H5<=0,0,'P&G'!H19/'P&G'!H5))) ->  | I23: =+IF(I3="","",IF('P&G'!I19<0,0,IF('P&G'!I5<=0,0,'P&G'!I19/'P&G'!I5))) ->  | J23: =+IF(J3="","",IF('P&G'!J19<0,0,IF('P&G'!J5<=0,0,'P&G'!J19/'P&G'!J5))) ->  | K23: =+IF(K3="","",IF('P&G'!K19<0,0,IF('P&G'!K5<=0,0,'P&G'!K19/'P&G'!K5))) ->  | L23: =+IF(L3="","",IF('P&G'!L19<0,0,IF('P&G'!L5<=0,0,'P&G'!L19/'P&G'!L5))) ->  | M23: =+IF(M3="","",IF(#REF!<0,0,#REF!/#REF!)) ->  | N23: =+IF(N3="","",IF(#REF!<0,0,#REF!/#REF!)) ->  | O23: =+IF(O3="","",IF(#REF!<0,0,#REF!/#REF!)) ->  | P23: =+IF(P3="","",IF(#REF!<0,0,#REF!/#REF!)) ->  | Q23: =+IF(Q3="","",IF(#REF!<0,0,#REF!/#REF!)) ->  | R23: =+IF(R3="","",IF(#REF!<0,0,#REF!/#REF!)) ->  | S23: =+IF(S3="","",IF(#REF!<0,0,#REF!/#REF!)) ->  | T23: =+IF(T3="","",IF(#REF!<0,0,#REF!/#REF!)) ->  | U23: =+IF(U3="","",IF(#REF!<0,0,#REF!/#REF!)) ->  | V23: =+IF(V3="","",IF(#REF!<0,0,#REF!/#REF!)) ->  | W23: =+IF(W3="","",IF(#REF!<0,0,#REF!/#REF!)) ->  | X23: =+IF(X3="","",IF(#REF!<0,0,#REF!/#REF!)) ->  | Y23: =+IF(Y3="","",IF(#REF!<0,0,#REF!/#REF!)) ->  | Z23: =+IF(Z3="","",IF(#REF!<0,0,#REF!/#REF!)) ->  | AA23: =+IF(AA3="","",IF(#REF!<0,0,#REF!/#REF!)) ->  | AB23: =+IF(AB3="","",IF(#REF!<0,0,#REF!/#REF!)) ->  | AC23: =+IF(AC3="","",IF(#REF!<0,0,#REF!/#REF!)) ->  | AD23: =+IF(AD3="","",IF(#REF!<0,0,#REF!/#REF!)) ->  | AE23: =+IF(AE3="","",IF(#REF!<0,0,#REF!/#REF!)) ->  | AF23: =+IF(AF3="","",IF(#REF!<0,0,#REF!/#REF!)) ->  | AG23: =+IF(AG3="","",IF(#REF!<0,0,#REF!/#REF!)) ->  | AH23: =+IF(AH3="","",IF(#REF!<0,0,#REF!/#REF!)) ->  | AI23: =+IF(AI3="","",IF(#REF!<0,0,#REF!/#REF!)) ->  | AJ23: =+IF(AJ3="","",IF(#REF!<0,0,#REF!/#REF!)) ->  | AK23: =+IF(AK3="","",IF(#REF!<0,0,#REF!/#REF!)) ->  | AL23: =+IF(AL3="","",IF(#REF!<0,0,#REF!/#REF!)) ->  | AM23: =+IF(AM3="","",IF(#REF!<0,0,#REF!/#REF!)) ->  | AN23: =+IF(AN3="","",IF(#REF!<0,0,#REF!/#REF!)) ->  | AO23: =+IF(AO3="","",IF(#REF!<0,0,#REF!/#REF!)) ->  | AP23: =+IF(AP3="","",IF(#REF!<0,0,#REF!/#REF!)) ->  | AQ23: =+IF(AQ3="","",IF(#REF!<0,0,#REF!/#REF!)) ->  | AR23: =+IF(AR3="","",IF(#REF!<0,0,#REF!/#REF!)) ->  | AS23: =+IF(AS3="","",IF(#REF!<0,0,#REF!/#REF!)) ->  | AT23: =+IF(AT3="","",IF(#REF!<0,0,#REF!/#REF!)) ->  | AU23: =+IF(AU3="","",IF(#REF!<0,0,#REF!/#REF!)) ->  | AV23: =+IF(AV3="","",IF(#REF!<0,0,#REF!/#REF!)) ->  | AW23: =+IF(AW3="","",IF(#REF!<0,0,#REF!/#REF!)) ->  | AX23: =+IF(AX3="","",IF(#REF!<0,0,#REF!/#REF!)) ->  | AY23: =+IF(AY3="","",IF(#REF!<0,0,#REF!/#REF!)) ->  | AZ23: =+IF(AZ3="","",IF(#REF!<0,0,#REF!/#REF!)) ->  | BA23: =+IF(BA3="","",IF(#REF!<0,0,#REF!/#REF!)) ->  | BB23: =+IF(BB3="","",IF(#REF!<0,0,#REF!/#REF!)) ->  | BC23: =+IF(BC3="","",IF(#REF!<0,0,#REF!/#REF!)) ->  | BD23: =+IF(BD3="","",IF(#REF!<0,0,#REF!/#REF!)) ->  | BE23: =+IF(BE3="","",IF(#REF!<0,0,#REF!/#REF!)) ->  | BF23: =+IF(BF3="","",IF(#REF!<0,0,#REF!/#REF!)) ->  | BG23: =+IF(BG3="","",IF(#REF!<0,0,#REF!/#REF!)) ->  | BH23: =+IF(BH3="","",IF(#REF!<0,0,#REF!/#REF!)) ->  | BI23: =+IF(BI3="","",IF(#REF!<0,0,#REF!/#REF!)) ->  | BJ23: =+IF(BJ3="","",IF(#REF!<0,0,#REF!/#REF!)) ->  | BK23: =+IF(BK3="","",IF(#REF!<0,0,#REF!/#REF!)) ->  | BL23: =+IF(BL3="","",IF(#REF!<0,0,#REF!/#REF!)) ->  | BM23: =+IF(BM3="","",IF(#REF!<0,0,#REF!/#REF!)) ->  | BN23: =+IF(BN3="","",IF(#REF!<0,0,#REF!/#REF!)) ->  | BO23: =+IF(BO3="","",IF(#REF!<0,0,#REF!/#REF!)) ->  | BP23: =+IF(BP3="","",IF(#REF!<0,0,#REF!/#REF!)) ->  | BQ23: =+IF(BQ3="","",IF(#REF!<0,0,#REF!/#REF!)) ->  | BR23: =+IF(BR3="","",IF(#REF!<0,0,#REF!/#REF!)) ->  | BS23: =+IF(BS3="","",IF(#REF!<0,0,#REF!/#REF!)) ->  | BT23: =+IF(BT3="","",IF(#REF!<0,0,#REF!/#REF!)) ->  | BU23: =+IF(BU3="","",IF(#REF!<0,0,#REF!/#REF!)) ->  | BV23: =+IF(BV3="","",IF(#REF!<0,0,#REF!/#REF!)) ->  | BW23: =+IF(BW3="","",IF(#REF!<0,0,#REF!/#REF!)) ->  | BX23: =+IF(BX3="","",IF(#REF!<0,0,#REF!/#REF!)) ->  | BY23: =+IF(BY3="","",IF(#REF!<0,0,#REF!/#REF!)) ->  | BZ23: =+IF(BZ3="","",IF(#REF!<0,0,#REF!/#REF!)) ->  | CA23: =+IF(CA3="","",IF(#REF!<0,0,#REF!/#REF!)) ->  | CB23: =+IF(CB3="","",IF(#REF!<0,0,#REF!/#REF!)) ->  | CC23: =+IF(CC3="","",IF(#REF!<0,0,#REF!/#REF!)) ->  | CD23: =+IF(CD3="","",IF(#REF!<0,0,#REF!/#REF!)) ->  | CE23: =+IF(CE3="","",IF(#REF!<0,0,#REF!/#REF!)) ->  | CF23: =+IF(CF3="","",IF(#REF!<0,0,#REF!/#REF!)) ->  | CG23: =+IF(CG3="","",IF(#REF!<0,0,#REF!/#REF!)) ->  | CH23: =+IF(CH3="","",IF(#REF!<0,0,#REF!/#REF!)) ->  | CI23: =+IF(CI3="","",IF(#REF!<0,0,#REF!/#REF!)) ->  | CJ23: =+IF(CJ3="","",IF(#REF!<0,0,#REF!/#REF!)) ->  | CK23: =+IF(CK3="","",IF(#REF!<0,0,#REF!/#REF!)) ->  | CL23: =+IF(CL3="","",IF(#REF!<0,0,#REF!/#REF!)) ->  | CM23: =+IF(CM3="","",IF(#REF!<0,0,#REF!/#REF!)) ->  | CN23: =+IF(CN3="","",IF(#REF!<0,0,#REF!/#REF!)) ->  | CO23: =+IF(CO3="","",IF(#REF!<0,0,#REF!/#REF!)) ->  | CP23: =+IF(CP3="","",IF(#REF!<0,0,#REF!/#REF!)) ->  | CQ23: =+IF(CQ3="","",IF(#REF!<0,0,#REF!/#REF!)) ->  | CR23: =+IF(CR3="","",IF(#REF!<0,0,#REF!/#REF!)) ->  | CS23: =+IF(CS3="","",IF(#REF!<0,0,#REF!/#REF!)) ->  | CT23: =+IF(CT3="","",IF(#REF!<0,0,#REF!/#REF!)) ->  | CU23: =+IF(CU3="","",IF(#REF!<0,0,#REF!/#REF!)) ->  | CV23: =+IF(CV3="","",IF(#REF!<0,0,#REF!/#REF!)) ->  | CW23: =+IF(CW3="","",IF(#REF!<0,0,#REF!/#REF!)) ->  | CX23: =+IF(CX3="","",IF(#REF!<0,0,#REF!/#REF!)) ->  | CY23: =+IF(CY3="","",IF(#REF!<0,0,#REF!/#REF!)) ->  | CZ23: =+IF(CZ3="","",IF(#REF!<0,0,#REF!/#REF!)) ->  | DA23: =+IF(DA3="","",IF(#REF!<0,0,#REF!/#REF!)) ->  | DB23: =+IF(DB3="","",IF(#REF!<0,0,#REF!/#REF!)) ->  | DC23: =+IF(DC3="","",IF(#REF!<0,0,#REF!/#REF!)) ->  | DD23: =+IF(DD3="","",IF(#REF!<0,0,#REF!/#REF!)) ->  | DE23: =+IF(DE3="","",IF(#REF!<0,0,#REF!/#REF!)) ->  | DF23: =+IF(DF3="","",IF(#REF!<0,0,#REF!/#REF!)) ->  | DG23: =+IF(DG3="","",IF(#REF!<0,0,#REF!/#REF!)) ->  | DH23: =+IF(DH3="","",IF(#REF!<0,0,#REF!/#REF!)) ->  | DI23: =+IF(DI3="","",IF(#REF!<0,0,#REF!/#REF!)) ->  | DJ23: =+IF(DJ3="","",IF(#REF!<0,0,#REF!/#REF!)) ->  | DK23: =+IF(DK3="","",IF(#REF!<0,0,#REF!/#REF!)) ->  | DL23: =+IF(DL3="","",IF(#REF!<0,0,#REF!/#REF!)) ->  | DM23: =+IF(DM3="","",IF(#REF!<0,0,#REF!/#REF!)) ->  | DN23: =+IF(DN3="","",IF(#REF!<0,0,#REF!/#REF!)) ->  | DO23: =+IF(DO3="","",IF(#REF!<0,0,#REF!/#REF!)) ->  | DP23: =+IF(DP3="","",IF(#REF!<0,0,#REF!/#REF!)) ->  | DQ23: =+IF(DQ3="","",IF(#REF!<0,0,#REF!/#REF!)) ->  | DR23: =+IF(DR3="","",IF(#REF!<0,0,#REF!/#REF!)) -> 
B24: Margen Operativo | C24: =+IF(C3="","",IF('P&G'!C13<0,0,'P&G'!C13/'P&G'!C5)) -> 0 | D24: =+IF(D3="","",IF('P&G'!D13<0,0,'P&G'!D13/'P&G'!D5)) -> 0.4851715886 | E24: =+IF(E3="","",IF('P&G'!E13<0,0,'P&G'!E13/'P&G'!E5)) -> 0 | F24: =+IF(F3="","",IF('P&G'!F13<0,0,'P&G'!F13/'P&G'!F5)) -> 0 | G24: =+IF(G3="","",IF('P&G'!G13<0,0,'P&G'!G13/'P&G'!G5)) -> 0.8868357798 | H24: =+IF(H3="","",IF('P&G'!H13<0,0,'P&G'!H13/'P&G'!H5)) ->  | I24: =+IF(I3="","",IF('P&G'!I13<0,0,'P&G'!I13/'P&G'!I5)) ->  | J24: =+IF(J3="","",IF('P&G'!J13<0,0,'P&G'!J13/'P&G'!J5)) ->  | K24: =+IF(K3="","",IF('P&G'!K13<0,0,'P&G'!K13/'P&G'!K5)) ->  | L24: =+IF(L3="","",IF('P&G'!L13<0,0,'P&G'!L13/'P&G'!L5)) -> 
B25: ROA (E.A) | C25: =+IF(C3="","",IF('P&G'!C19<0,0,'P&G'!C19/BALANCE!C23)) -> 0 | D25: =+IF(D3="","",IF('P&G'!D19<0,0,'P&G'!D19/BALANCE!D23)) -> 0.08973548598 | E25: =+IF(E3="","",IF('P&G'!E19<0,0,'P&G'!E19/BALANCE!E23)) -> 0 | F25: =+IF(F3="","",IF('P&G'!F19<0,0,'P&G'!F19/BALANCE!F23)) -> 0 | G25: =+IF(G3="","",IF('P&G'!G19<0,0,'P&G'!G19/BALANCE!G23)) -> 0.7674509534 | H25: =+IF(H3="","",IF('P&G'!H19<0,0,'P&G'!H19/BALANCE!H23)) ->  | I25: =+IF(I3="","",IF('P&G'!I19<0,0,'P&G'!I19/BALANCE!I23)) ->  | J25: =+IF(J3="","",IF('P&G'!J19<0,0,'P&G'!J19/BALANCE!J23)) ->  | K25: =+IF(K3="","",IF('P&G'!K19<0,0,'P&G'!K19/BALANCE!K23)) ->  | L25: =+IF(L3="","",IF('P&G'!L19<0,0,'P&G'!L19/BALANCE!L23)) -> 
B26: ROE (E.A) | C26: =+IF(C3="","",IF('P&G'!C19<0,0,'P&G'!C19/BALANCE!C51)) -> 0 | D26: =+IF(D3="","",IF('P&G'!D19<0,0,'P&G'!D19/BALANCE!D51)) -> 0.09808918674 | E26: =+IF(E3="","",IF('P&G'!E19<0,0,'P&G'!E19/BALANCE!E51)) -> 0 | F26: =+IF(F3="","",IF('P&G'!F19<0,0,'P&G'!F19/BALANCE!F51)) -> 0 | G26: =+IF(G3="","",IF('P&G'!G19<0,0,'P&G'!G19/BALANCE!G51)) -> 0.8892390866 | H26: =+IF(H3="","",IF('P&G'!H19<0,0,'P&G'!H19/BALANCE!H51)) ->  | I26: =+IF(I3="","",IF('P&G'!I19<0,0,'P&G'!I19/BALANCE!I51)) ->  | J26: =+IF(J3="","",IF('P&G'!J19<0,0,'P&G'!J19/BALANCE!J51)) ->  | K26: =+IF(K3="","",IF('P&G'!K19<0,0,'P&G'!K19/BALANCE!K51)) ->  | L26: =+IF(L3="","",IF('P&G'!L19<0,0,'P&G'!L19/BALANCE!L51)) -> 
B27: ROIC (E.A) | C27: =+IF(C3="","",IF('FLUJO DE CAJA'!C4<0,0,'FLUJO DE CAJA'!C4/(BALANCE!C51+BALANCE!C35+BALANCE!C27))) -> 0 | D27: =+IF(D3="","",IF('FLUJO DE CAJA'!D4<0,0,'FLUJO DE CAJA'!D4/(BALANCE!D51+BALANCE!D35+BALANCE!D27))) -> 0.09121670881 | E27: =+IF(E3="","",IF('FLUJO DE CAJA'!E4<0,0,'FLUJO DE CAJA'!E4/(BALANCE!E51+BALANCE!E35+BALANCE!E27))) -> 0 | F27: =+IF(F3="","",IF('FLUJO DE CAJA'!F4<0,0,'FLUJO DE CAJA'!F4/(BALANCE!F51+BALANCE!F35+BALANCE!F27))) -> 0 | G27: =+IF(G3="","",IF('FLUJO DE CAJA'!G4<0,0,'FLUJO DE CAJA'!G4/(BALANCE!G51+BALANCE!G35+BALANCE!G27))) -> 0.9131869403 | H27: =+IF(H3="","",IF('FLUJO DE CAJA'!H4<0,0,'FLUJO DE CAJA'!H4/(BALANCE!H51+BALANCE!H35+BALANCE!H27))) ->  | I27: =+IF(I3="","",IF('FLUJO DE CAJA'!I4<0,0,'FLUJO DE CAJA'!I4/(BALANCE!I51+BALANCE!I35+BALANCE!I27))) ->  | J27: =+IF(J3="","",IF('FLUJO DE CAJA'!J4<0,0,'FLUJO DE CAJA'!J4/(BALANCE!J51+BALANCE!J35+BALANCE!J27))) ->  | K27: =+IF(K3="","",IF('FLUJO DE CAJA'!K4<0,0,'FLUJO DE CAJA'!K4/(BALANCE!K51+BALANCE!K35+BALANCE!K27))) ->  | L27: =+IF(L3="","",IF('FLUJO DE CAJA'!L4<0,0,'FLUJO DE CAJA'!L4/(BALANCE!L51+BALANCE!L35+BALANCE!L27))) -> 
B28: TIR (E.A) | C28: =+IF(C$3="","",IRR(_xlfn._xlws.FILTER($C$21:$L$21,$C$21:$L$21<>""))) -> 0.3654611106 | H28: =+IF(H$3="","",IRR(_xlfn._xlws.FILTER($C$21:$L$21,$C$21:$L$21<>""))) ->  | I28: =+IF(I$3="","",IRR(_xlfn._xlws.FILTER($C$21:$L$21,$C$21:$L$21<>""))) ->  | J28: =+IF(J$3="","",IRR(_xlfn._xlws.FILTER($C$21:$L$21,$C$21:$L$21<>""))) ->  | K28: =+IF(K$3="","",IRR(_xlfn._xlws.FILTER($C$21:$L$21,$C$21:$L$21<>""))) ->  | L28: =+IF(L$3="","",IRR(_xlfn._xlws.FILTER($C$21:$L$21,$C$21:$L$21<>""))) -> 
B29: VPN | C29: =NPV(DATOS!$C$17,_xlfn._xlws.FILTER(C21:L21,C21:L21<>"")) -> 255968355.8

Sheet DASHBOARD
B1: DASHBOARD
B2: DASHBOARD
B4: INDICADORES CLAVE
B5: TIR (E.A) | F5: VPN | J5: ="EBITDA (AÑO "&DATOS!C3&")" -> EBITDA (AÑO 5)
B6: =+'KPI''S'!C28 -> 0.3654611106 | F6: =+'KPI''S'!C29 -> 255968355.8 | J6: =INDEX('KPI''S'!20:20,2+DATOS!C3) -> 2387572068
B8: MARGEN EBITDA | F8: MARGEN NETO | J8: ROE (E.A)
B9: =INDEX('KPI''S'!22:22,2+DATOS!C3) -> 0.8880700552 | F9: =INDEX('KPI''S'!23:23,2+DATOS!C3) -> 0.5613263315 | J9: =INDEX('KPI''S'!26:26,2+DATOS!C3) -> 0.8892390866
